Publisher Label,Publisher URI,"Supplier","Invoice ","Amount (£)","Purpose","Transaction Number","Payment Date","Organisational Unit","Cost Centre(T)","Internal category number"
"Wolverhampton City Council","http://opendatacommunities.org/id/metropolitan-district-council/wolverhampton","Access To Business","A2B/WCC/001","-35,000.00","Services - Professional Fees","130128721","29/07/16","Enterprise","Provision for New Initiatives","R4400"
"Wolverhampton City Council","http://opendatacommunities.org/id/metropolitan-district-council/wolverhampton","Access To Business","357","26,500.00","Services - Professional Fees","130128661","29/07/16","Enterprise","Provision for New Initiatives","R4400"
"Wolverhampton City Council","http://opendatacommunities.org/id/metropolitan-district-council/wolverhampton","Access To Business","357","-26,500.00","Services - Professional Fees","130128661","29/07/16","Enterprise","Provision for New Initiatives","R4400"
"Wolverhampton City Council","http://opendatacommunities.org/id/metropolitan-district-council/wolverhampton","Access To Business","357","26,500.00","Services - Professional Fees","130128661","29/07/16","Enterprise","Provision for New Initiatives","R4400"
"Wolverhampton City Council","http://opendatacommunities.org/id/metropolitan-district-council/wolverhampton","Access To Business","345","781.25","Room Hire","130127487","29/07/16","Adult Education","Work Related Studies","R2201"
"Wolverhampton City Council","http://opendatacommunities.org/id/metropolitan-district-council/wolverhampton","Access To Business","363","8,500.00","Services - Professional Fees","130130944","29/07/16","Enterprise","Provision for New Initiatives","R4400"
"Wolverhampton City Council","http://opendatacommunities.org/id/metropolitan-district-council/wolverhampton","Access To Business","355","218.75","Room Hire","130127489","06/07/16","Adult Education","Work Related Studies","R2201"
"Wolverhampton City Council","http://opendatacommunities.org/id/metropolitan-district-council/wolverhampton","Access To Business","356","250","Training Expenses","130128068","08/07/16","Adult Education","Staff Development","R1650"
"Wolverhampton City Council","http://opendatacommunities.org/id/metropolitan-district-council/wolverhampton","THE Acme Facilities Group Ltd","IN289848","883","Equipment - Catering","130131201","29/07/16","Visitor Economy","Art Gallery Tea Room","R4010"
"Wolverhampton City Council","http://opendatacommunities.org/id/metropolitan-district-council/wolverhampton","THE Acme Facilities Group Ltd","IN289849","469","Equipment - Catering","130131202","29/07/16","Leisure Services","WV Active Catering","R4010"
"Wolverhampton City Council","http://opendatacommunities.org/id/metropolitan-district-council/wolverhampton","THE Acme Facilities Group Ltd","IN289120","210","Equipment - R & M","130130149","20/07/16","Catering","Education Catering - General Overheads","R4003"
"Wolverhampton City Council","http://opendatacommunities.org/id/metropolitan-district-council/wolverhampton","THE Acme Facilities Group Ltd","IN288146","162","Equipment - Catering","130127367","01/07/16","Catering","Education Catering - General Overheads","R4010"
"Wolverhampton City Council","http://opendatacommunities.org/id/metropolitan-district-council/wolverhampton","THE Acme Facilities Group Ltd","IN288408","507","Equipment - Catering","130130331","22/07/16","Catering","Education Catering - General Overheads","R4010"
"Wolverhampton City Council","http://opendatacommunities.org/id/metropolitan-district-council/wolverhampton","THE Acme Facilities Group Ltd","IN289102","420","Equipment - Catering","130129340","15/07/16","Leisure Services","WV Active Catering","R4010"
"Wolverhampton City Council","http://opendatacommunities.org/id/metropolitan-district-council/wolverhampton","Acorn Environmental Mgt Group Limited","8914","-222.21","Grounds Maintenance - Contract","130120761","13/07/16","Environmental Maintenance","Arbor Scheme","R2075"
"Wolverhampton City Council","http://opendatacommunities.org/id/metropolitan-district-council/wolverhampton","Acorn Environmental Mgt Group Limited","9017","760.74","Grounds Maintenance - Contract","130124237","13/07/16","Environmental Maintenance","Arbor Scheme","R2075"
"Wolverhampton City Council","http://opendatacommunities.org/id/metropolitan-district-council/wolverhampton","Acorn Environmental Mgt Group Limited","9177","588","Grounds Maintenance - Contract","130130307","22/07/16","Environmental Maintenance","Arbor Scheme","R2075"
"Wolverhampton City Council","http://opendatacommunities.org/id/metropolitan-district-council/wolverhampton","M Sicilia","10","160","TPP - Maintenance Contractor - General","190248664","08/07/16","Parking Services","Cycling Schemes - Bikeability","R5720"
"Wolverhampton City Council","http://opendatacommunities.org/id/metropolitan-district-council/wolverhampton","M Williams","26","160","TPP - Maintenance Contractor - General","190248657","08/07/16","Parking Services","Cycling Schemes - Bikeability","R5720"
"Wolverhampton City Council","http://opendatacommunities.org/id/metropolitan-district-council/wolverhampton","Acs Business Supplies Limited","SINV00325481","253.6","Stationery","130125153","01/07/16","ICTS","Document Centre - General","R4308"
"Wolverhampton City Council","http://opendatacommunities.org/id/metropolitan-district-council/wolverhampton","Acs Business Supplies Limited","SINV00325949","255.38","Stationery","130125154","01/07/16","Democratic Services","Electoral Registration","R4308"
"Wolverhampton City Council","http://opendatacommunities.org/id/metropolitan-district-council/wolverhampton","Acs Business Supplies Limited","SINV00326129","507.2","Stationery","130125340","01/07/16","ICTS","Document Centre - General","R4308"
"Wolverhampton City Council","http://opendatacommunities.org/id/metropolitan-district-council/wolverhampton","Acs Business Supplies Limited","SINV00324971","18.01","Stationery","130124771","01/07/16","Leisure Services","Bert Williams Leisure Centre","R4308"
"Wolverhampton City Council","http://opendatacommunities.org/id/metropolitan-district-council/wolverhampton","Acs Business Supplies Limited","SINV00325950","19.96","Stationery","130125585","01/07/16","School Planning & Resources","Education Data Services","R4308"
"Wolverhampton City Council","http://opendatacommunities.org/id/metropolitan-district-council/wolverhampton","Acs Business Supplies Limited","SINV00325952","113.32","Stationery","130125156","01/07/16","Older People Provider Services","Bradley Lodge Resource Centre","R4308"
"Wolverhampton City Council","http://opendatacommunities.org/id/metropolitan-district-council/wolverhampton","Acs Business Supplies Limited","SINV00328908","59.29","Stationery","130127906","20/07/16","School Planning & Resources","Music Support Team","R4308"
"Wolverhampton City Council","http://opendatacommunities.org/id/metropolitan-district-council/wolverhampton","Acs Business Supplies Limited","SINV00328910","103.11","Stationery","130127908","20/07/16","Looked After Children","Looked After Team 1","R4308"
"Wolverhampton City Council","http://opendatacommunities.org/id/metropolitan-district-council/wolverhampton","Acs Business Supplies Limited","SINV00329414","19.98","Stationery","130128161","20/07/16","Cleaning","Cleaning of Buildings - General","R4308"
"Wolverhampton City Council","http://opendatacommunities.org/id/metropolitan-district-council/wolverhampton","Acs Business Supplies Limited","SINV00329415","77.4","Stationery","130128162","20/07/16","Catering","Education Catering - General Overheads","R4308"
"Wolverhampton City Council","http://opendatacommunities.org/id/metropolitan-district-council/wolverhampton","Acs Business Supplies Limited","SINV00328913","77.94","Stationery","130127911","20/07/16","Catering","Education Catering - General Overheads","R4308"
"Wolverhampton City Council","http://opendatacommunities.org/id/metropolitan-district-council/wolverhampton","Acs Business Supplies Limited","SINV00328907","98.91","Stationery","130127905","20/07/16","Learning Disability Provider","Duke Street Bungalows","R4308"
"Wolverhampton City Council","http://opendatacommunities.org/id/metropolitan-district-council/wolverhampton","Acs Business Supplies Limited","SINV00328909","507.2","Stationery","130127907","20/07/16","ICTS","Document Centre - General","R4308"
"Wolverhampton City Council","http://opendatacommunities.org/id/metropolitan-district-council/wolverhampton","Acs Business Supplies Limited","SINV00328912","15.24","Stationery","130127910","20/07/16","Adult Education","Creative Studies Delivery Area","R4308"
"Wolverhampton City Council","http://opendatacommunities.org/id/metropolitan-district-council/wolverhampton","Acs Business Supplies Limited","SINV00330035","45.36","Stationery","130128441","20/07/16","Fleet Services","Fleet Management","R4308"
"Wolverhampton City Council","http://opendatacommunities.org/id/metropolitan-district-council/wolverhampton","Acs Business Supplies Limited","SINV00329417","31.7","Stationery","130128164","20/07/16","Early Intervention","EIP Locality 3","R4308"
"Wolverhampton City Council","http://opendatacommunities.org/id/metropolitan-district-council/wolverhampton","Acs Business Supplies Limited","SINV00329416","79.74","Stationery","130128163","20/07/16","Visitor Economy","Civic Halls Non-Direct Event Management Account","R4308"
"Wolverhampton City Council","http://opendatacommunities.org/id/metropolitan-district-council/wolverhampton","Acs Business Supplies Limited","SINV00329325","507.2","Stationery","130128160","20/07/16","ICTS","Document Centre - General","R4308"
"Wolverhampton City Council","http://opendatacommunities.org/id/metropolitan-district-council/wolverhampton","Acs Business Supplies Limited","SINV00329602","5.76","Stationery","130128440","20/07/16","Operation & Maintenance of Existing Network","Surface Water Management","R4308"
"Wolverhampton City Council","http://opendatacommunities.org/id/metropolitan-district-council/wolverhampton","Acs Business Supplies Limited","SINV00330072","81.26","Stationery","130128442","20/07/16","Governance Services","Democratic Support","R4308"
"Wolverhampton City Council","http://opendatacommunities.org/id/metropolitan-district-council/wolverhampton","Acs Business Supplies Limited","SINV00331064","20.64","Stationery","130129367","29/07/16","Community Safety","SWP - Infrastructure","R4308"
"Wolverhampton City Council","http://opendatacommunities.org/id/metropolitan-district-council/wolverhampton","Acs Business Supplies Limited","SINV00330700","37.22","Stationery","130129362","29/07/16","Looked After Children","LAC Transitions Team","R4308"
"Wolverhampton City Council","http://opendatacommunities.org/id/metropolitan-district-council/wolverhampton","Acs Business Supplies Limited","SINV00330702","100.56","Stationery","130129364","29/07/16","Looked After Children","LAC Transitions Team","R4308"
"Wolverhampton City Council","http://opendatacommunities.org/id/metropolitan-district-council/wolverhampton","Acs Business Supplies Limited","SINV00330697","106.74","Stationery","130129359","29/07/16","Adult Education","Service Wide","R4308"
"Wolverhampton City Council","http://opendatacommunities.org/id/metropolitan-district-council/wolverhampton","Acs Business Supplies Limited","SINV00331344","57.65","Stationery","130129588","29/07/16","Revenues & Benefits","Revenues","R4308"
"Wolverhampton City Council","http://opendatacommunities.org/id/metropolitan-district-council/wolverhampton","Acs Business Supplies Limited","SINV00330699","507.2","Stationery","130129361","29/07/16","ICTS","Document Centre - General","R4308"
"Wolverhampton City Council","http://opendatacommunities.org/id/metropolitan-district-council/wolverhampton","Acs Business Supplies Limited","SINV00331066","507.2","Stationery","130129369","29/07/16","ICTS","Document Centre - General","R4308"
"Wolverhampton City Council","http://opendatacommunities.org/id/metropolitan-district-council/wolverhampton","Acs Business Supplies Limited","SINV00330701","190.2","Stationery","130129363","29/07/16","Independent Living Service","Independent Living Service","R4308"
"Wolverhampton City Council","http://opendatacommunities.org/id/metropolitan-district-council/wolverhampton","Acs Business Supplies Limited","SINV00330703","52.02","Stationery","130129365","29/07/16","Older People Provider Services","Reablement Team","R4308"
"Wolverhampton City Council","http://opendatacommunities.org/id/metropolitan-district-council/wolverhampton","Acs Business Supplies Limited","SINV00331343","137.95","Stationery","130129587","29/07/16","Independent Living Service","Independent Living Service","R4308"
"Wolverhampton City Council","http://opendatacommunities.org/id/metropolitan-district-council/wolverhampton","Acs Business Supplies Limited","SINV00330696","40.19","Stationery","130129358","29/07/16","Revenues & Benefits","Revenues","R4308"
"Wolverhampton City Council","http://opendatacommunities.org/id/metropolitan-district-council/wolverhampton","Acs Business Supplies Limited","SINV00331065","31.7","Stationery","130129368","29/07/16","Psychology","Inclusion Support","R4308"
"Wolverhampton City Council","http://opendatacommunities.org/id/metropolitan-district-council/wolverhampton","Acs Business Supplies Limited","SINV00330694","311.76","Stationery","130129356","29/07/16","Fleet Services","Passenger Transport - General","R4308"
"Wolverhampton City Council","http://opendatacommunities.org/id/metropolitan-district-council/wolverhampton","Acs Business Supplies Limited","SCRN00038913","-60.63","Stationery","130115977","29/07/16","Speclialist Support","Upper Pendeford Farm Short Breaks Centre","R4308"
"Wolverhampton City Council","http://opendatacommunities.org/id/metropolitan-district-council/wolverhampton","Acs Business Supplies Limited","SINV00331346","236.25","Stationery","130129590","29/07/16","Adult Education","Language Studies Delivery Area","R4308"
"Wolverhampton City Council","http://opendatacommunities.org/id/metropolitan-district-council/wolverhampton","Acs Business Supplies Limited","SINV00331345","126.8","Stationery","130129589","29/07/16","Adult Education","Service Wide","R4308"
"Wolverhampton City Council","http://opendatacommunities.org/id/metropolitan-district-council/wolverhampton","Acs Business Supplies Limited","SCRN00040821","-21.99","Stationery","130130161","29/07/16","Adult Education","Service Wide","R4308"
"Wolverhampton City Council","http://opendatacommunities.org/id/metropolitan-district-council/wolverhampton","Acs Business Supplies Limited","SINV00324301","3,032.00","Stationery","130123910","22/07/16","Adult Education","Alan Garner Centre Building","R4308"
"Wolverhampton City Council","http://opendatacommunities.org/id/metropolitan-district-council/wolverhampton","Acs Business Supplies Limited","SINV00319115","813.47","Stationery","130128861","13/07/16","Legal Services","Legal Services","R4308"
"Wolverhampton City Council","http://opendatacommunities.org/id/metropolitan-district-council/wolverhampton","Acs Business Supplies Limited","SINV00329601","237.6","Stationery","130128439","22/07/16","Adult Education","Service Wide","R4308"
"Wolverhampton City Council","http://opendatacommunities.org/id/metropolitan-district-council/wolverhampton","Acs Business Supplies Limited","SINV00316836","32.18","Stationery","130118058","08/07/16","Intelligence & Evidence","Information and Intelligence","R4308"
"Wolverhampton City Council","http://opendatacommunities.org/id/metropolitan-district-council/wolverhampton","Acs Business Supplies Limited","SCRN00040350","-24","Stationery","130124883","08/07/16","Adult Education","Service Wide","R4308"
"Wolverhampton City Council","http://opendatacommunities.org/id/metropolitan-district-council/wolverhampton","Acs Business Supplies Limited","SINV00326923","140.39","Stationery","130126557","08/07/16","Strategic Director Place","Business Manager - Place","R4308"
"Wolverhampton City Council","http://opendatacommunities.org/id/metropolitan-district-council/wolverhampton","Acs Business Supplies Limited","SINV00326549","21.3","Stationery","130125719","08/07/16","Older People Assessment & Care Management","Assessment Team (East)","R4308"
"Wolverhampton City Council","http://opendatacommunities.org/id/metropolitan-district-council/wolverhampton","Acs Business Supplies Limited","SINV00326925","28.66","Stationery","130126086","08/07/16","School Planning & Resources","Education Data Services","R4308"
"Wolverhampton City Council","http://opendatacommunities.org/id/metropolitan-district-council/wolverhampton","Acs Business Supplies Limited","SINV00326546","507.2","Stationery","130125716","08/07/16","ICTS","Document Centre - General","R4308"
"Wolverhampton City Council","http://opendatacommunities.org/id/metropolitan-district-council/wolverhampton","Acs Business Supplies Limited","SINV00326551","23.44","Stationery","130125721","08/07/16","Skills","Connexions Contract","R4308"
"Wolverhampton City Council","http://opendatacommunities.org/id/metropolitan-district-council/wolverhampton","Acs Business Supplies Limited","SINV00326920","269.99","Stationery","130126082","08/07/16","Library Services","Global Budgets","R4308"
"Wolverhampton City Council","http://opendatacommunities.org/id/metropolitan-district-council/wolverhampton","Acs Business Supplies Limited","SINV00326547","46.53","Stationery","130125717","08/07/16","Speclialist Support","Upper Pendeford Farm Short Breaks Centre","R4308"
"Wolverhampton City Council","http://opendatacommunities.org/id/metropolitan-district-council/wolverhampton","Acs Business Supplies Limited","SINV00326548","57.55","Stationery","130125718","08/07/16","Speclialist Support","Upper Pendeford Farm Short Breaks Centre","R4308"
"Wolverhampton City Council","http://opendatacommunities.org/id/metropolitan-district-council/wolverhampton","Acs Business Supplies Limited","SINV00326680","784","Stationery","130125722","08/07/16","Customer Services","City Direct","R4308"
"Wolverhampton City Council","http://opendatacommunities.org/id/metropolitan-district-council/wolverhampton","Acs Business Supplies Limited","SINV00326921","1,868.16","Stationery","130126083","08/07/16","Adult Education","Service Wide","R4308"
"Wolverhampton City Council","http://opendatacommunities.org/id/metropolitan-district-council/wolverhampton","Acs Business Supplies Limited","SINV00326922","126.8","Stationery","130126084","08/07/16","Adult Education","Service Wide","R4308"
"Wolverhampton City Council","http://opendatacommunities.org/id/metropolitan-district-council/wolverhampton","Acs Business Supplies Limited","SINV00326924","126.8","Stationery","130126085","08/07/16","Adult Education","The Maltings","R4308"
"Wolverhampton City Council","http://opendatacommunities.org/id/metropolitan-district-council/wolverhampton","Acs Business Supplies Limited","SINV00327567","12.66","Stationery","130126094","15/07/16","Welfare Rights & Financial Assessment","Direct Payments","R4308"
"Wolverhampton City Council","http://opendatacommunities.org/id/metropolitan-district-council/wolverhampton","Acs Business Supplies Limited","SINV00328610","566.05","Stationery","130127384","15/07/16","Democratic Services","Register Office","R4308"
"Wolverhampton City Council","http://opendatacommunities.org/id/metropolitan-district-council/wolverhampton","Acs Business Supplies Limited","SINV00328162","42.46","Stationery","130127176","15/07/16","ICTS","Digital Transformation Programme","R4308"
"Wolverhampton City Council","http://opendatacommunities.org/id/metropolitan-district-council/wolverhampton","Acs Business Supplies Limited","SINV00327850","664.38","Stationery","130126863","15/07/16","Legal Services","Legal Services","R4308"
"Wolverhampton City Council","http://opendatacommunities.org/id/metropolitan-district-council/wolverhampton","Acs Business Supplies Limited","SINV00328611","22.8","Stationery","130127385","15/07/16","ICTS","Document Centre - General","R4308"
"Wolverhampton City Council","http://opendatacommunities.org/id/metropolitan-district-council/wolverhampton","Acs Business Supplies Limited","SINV00327300","8.06","Stationery","130126088","15/07/16","Welfare Rights & Financial Assessment","Welfare Rights","R4308"
"Wolverhampton City Council","http://opendatacommunities.org/id/metropolitan-district-council/wolverhampton","Acs Business Supplies Limited","SINV00327302","7.94","Stationery","130126090","15/07/16","Welfare Rights & Financial Assessment","Macmillan Welfare Rights Service","R4308"
"Wolverhampton City Council","http://opendatacommunities.org/id/metropolitan-district-council/wolverhampton","Acs Business Supplies Limited","SINV00327305","1.37","Stationery","130126093","15/07/16","Welfare Rights & Financial Assessment","Macmillan Welfare Rights Service","R4308"
"Wolverhampton City Council","http://opendatacommunities.org/id/metropolitan-district-council/wolverhampton","Acs Business Supplies Limited","SINV00327304","1.81","Stationery","130126092","15/07/16","Welfare Rights & Financial Assessment","Macmillan Welfare Rights Service","R4308"
"Wolverhampton City Council","http://opendatacommunities.org/id/metropolitan-district-council/wolverhampton","Acs Business Supplies Limited","SINV00327301","3.62","Stationery","130126089","15/07/16","Welfare Rights & Financial Assessment","Macmillan Welfare Rights Service","R4308"
"Wolverhampton City Council","http://opendatacommunities.org/id/metropolitan-district-council/wolverhampton","Acs Business Supplies Limited","SINV00327303","3.62","Stationery","130126091","15/07/16","Welfare Rights & Financial Assessment","Macmillan Welfare Rights Service","R4308"
"Wolverhampton City Council","http://opendatacommunities.org/id/metropolitan-district-council/wolverhampton","Acs Business Supplies Limited","SINV00326550","13.36","Stationery","130125720","15/07/16","Welfare Rights & Financial Assessment","Financial Assessments","R4308"
"Wolverhampton City Council","http://opendatacommunities.org/id/metropolitan-district-council/wolverhampton","Acs Business Supplies Limited","SINV00327564","64.47","Stationery","130126399","15/07/16","Strategic Finance","Strategic Finance","R4308"
"Wolverhampton City Council","http://opendatacommunities.org/id/metropolitan-district-council/wolverhampton","Acs Business Supplies Limited","SINV00327857","13.64","Stationery","130126870","15/07/16","Standards and Vulnerable Pupils","Parent / Partnership Service","R4308"
"Wolverhampton City Council","http://opendatacommunities.org/id/metropolitan-district-council/wolverhampton","Acs Business Supplies Limited","SINV00327856","22.2","Stationery","130126869","15/07/16","Older People Assessment & Care Management","Assessment Team (West)","R4308"
"Wolverhampton City Council","http://opendatacommunities.org/id/metropolitan-district-council/wolverhampton","Acs Business Supplies Limited","SINV00327852","79.96","Stationery","130126865","15/07/16","Looked After Children","Fostering Team","R4308"
"Wolverhampton City Council","http://opendatacommunities.org/id/metropolitan-district-council/wolverhampton","Acs Business Supplies Limited","SINV00327855","23.94","Stationery","130126868","15/07/16","Adult Education","Service Wide","R4308"
"Wolverhampton City Council","http://opendatacommunities.org/id/metropolitan-district-council/wolverhampton","Acs Business Supplies Limited","SINV00327859","6.65","Stationery","130126872","15/07/16","Adult Education","Language Studies Delivery Area","R4308"
"Wolverhampton City Council","http://opendatacommunities.org/id/metropolitan-district-council/wolverhampton","Acs Business Supplies Limited","SINV00327853","507.2","Stationery","130126866","15/07/16","ICTS","Document Centre - General","R4308"
"Wolverhampton City Council","http://opendatacommunities.org/id/metropolitan-district-council/wolverhampton","Acs Business Supplies Limited","SINV00328164","507.2","Stationery","130127178","15/07/16","ICTS","Document Centre - General","R4308"
"Wolverhampton City Council","http://opendatacommunities.org/id/metropolitan-district-council/wolverhampton","Acs Business Supplies Limited","SINV00328163","37.99","Stationery","130127177","15/07/16","Customer Services","City Direct","R4308"
"Wolverhampton City Council","http://opendatacommunities.org/id/metropolitan-district-council/wolverhampton","Acs Business Supplies Limited","SINV00328613","174.64","Stationery","130127387","15/07/16","Looked After Children","LAC Transitions Team","R4308"
"Wolverhampton City Council","http://opendatacommunities.org/id/metropolitan-district-council/wolverhampton","Acs Business Supplies Limited","SINV00328614","26.6","Stationery","130127388","15/07/16","Looked After Children","Fostering Team","R4308"
"Wolverhampton City Council","http://opendatacommunities.org/id/metropolitan-district-council/wolverhampton","Acs Business Supplies Limited","SINV00328612","16.29","Stationery","130127386","15/07/16","School Planning & Resources","Music Support Team","R4308"
"Wolverhampton City Council","http://opendatacommunities.org/id/metropolitan-district-council/wolverhampton","Acs Business Supplies Limited","SINV00327570","21.72","Stationery","130126095","15/07/16","Strategic Director Place","Business Manager - Place","R4308"
"Wolverhampton City Council","http://opendatacommunities.org/id/metropolitan-district-council/wolverhampton","Acs Business Supplies Limited","SINV00327565","66.9","Stationery","130126400","15/07/16","Youth Offending","Youth Offending Team","R4308"
"Wolverhampton City Council","http://opendatacommunities.org/id/metropolitan-district-council/wolverhampton","Acs Business Supplies Limited","SINV00327299","10.16","Stationery","130126087","15/07/16","Safeguarding","Head of Service Quality and Safeguarding","R4308"
"Wolverhampton City Council","http://opendatacommunities.org/id/metropolitan-district-council/wolverhampton","Acs Business Supplies Limited","SINV00327563","507.2","Stationery","130126398","15/07/16","ICTS","Document Centre - General","R4308"
"Wolverhampton City Council","http://opendatacommunities.org/id/metropolitan-district-council/wolverhampton","Acs Business Supplies Limited","SINV00327566","61.16","Stationery","130126401","15/07/16","Learning Disability Provider","Outreach Support","R4308"
"Wolverhampton City Council","http://opendatacommunities.org/id/metropolitan-district-council/wolverhampton","Acs Business Supplies Limited","SINV00327854","76.44","Stationery","130126867","15/07/16","Democratic Services","Electoral Registration","R4308"
"Wolverhampton City Council","http://opendatacommunities.org/id/metropolitan-district-council/wolverhampton","Acs Business Supplies Limited","SINV00327851","180.19","Stationery","130126864","15/07/16","Psychology","Inclusion Support","R4308"
"Wolverhampton City Council","http://opendatacommunities.org/id/metropolitan-district-council/wolverhampton","Acs Business Supplies Limited","SINV00324047","119.08","Stationery","130127383","06/07/16","Facilities Management","i10 Facilities Management","R4308"
"Wolverhampton City Council","http://opendatacommunities.org/id/metropolitan-district-council/wolverhampton","Acs Business Supplies Limited","SINV00312649","17.01","Stationery","130115224","06/07/16","Fleet Services","Fleet Management","R4308"
"Wolverhampton City Council","http://opendatacommunities.org/id/metropolitan-district-council/wolverhampton","Acs Business Supplies Limited","SINV00313090","5.46","Stationery","130125151","06/07/16","Fleet Services","Fleet Management","R4308"
"Wolverhampton City Council","http://opendatacommunities.org/id/metropolitan-district-council/wolverhampton","Activities 4 U","3098","120","Services - Supplies and Services to service users","130126464","27/07/16","Older People Provider Services","Bradley Lodge Resource Centre","R4408"
"Wolverhampton City Council","http://opendatacommunities.org/id/metropolitan-district-council/wolverhampton","Activities 4 U","3098","-120","Services - Supplies and Services to service users","130126464","27/07/16","Older People Provider Services","Bradley Lodge Resource Centre","R4408"
"Wolverhampton City Council","http://opendatacommunities.org/id/metropolitan-district-council/wolverhampton","Activities 4 U","3098","120","Services - Supplies and Services to service users","130126464","27/07/16","Older People Provider Services","Bradley Lodge Resource Centre","R4408"
"Wolverhampton City Council","http://opendatacommunities.org/id/metropolitan-district-council/wolverhampton","Activities 4 U","3090","120","Services - Supplies and Services to service users","130122125","27/07/16","Older People Provider Services","Bradley Lodge Resource Centre","R4408"
"Wolverhampton City Council","http://opendatacommunities.org/id/metropolitan-district-council/wolverhampton","Activities 4 U","3090","-120","Services - Supplies and Services to service users","130122125","27/07/16","Older People Provider Services","Bradley Lodge Resource Centre","R4408"
"Wolverhampton City Council","http://opendatacommunities.org/id/metropolitan-district-council/wolverhampton","Activities 4 U","3090","120","Services - Supplies and Services to service users","130122125","27/07/16","Older People Provider Services","Bradley Lodge Resource Centre","R4408"
"Wolverhampton City Council","http://opendatacommunities.org/id/metropolitan-district-council/wolverhampton","Activities 4 U","3092","120","Services - Supplies and Services to service users","130126463","27/07/16","Older People Provider Services","Bradley Lodge Resource Centre","R4408"
"Wolverhampton City Council","http://opendatacommunities.org/id/metropolitan-district-council/wolverhampton","Activities 4 U","3092","-120","Services - Supplies and Services to service users","130126463","27/07/16","Older People Provider Services","Bradley Lodge Resource Centre","R4408"
"Wolverhampton City Council","http://opendatacommunities.org/id/metropolitan-district-council/wolverhampton","Activities 4 U","3092","120","Services - Supplies and Services to service users","130126463","27/07/16","Older People Provider Services","Bradley Lodge Resource Centre","R4408"
"Wolverhampton City Council","http://opendatacommunities.org/id/metropolitan-district-council/wolverhampton","Acuma Solutions Limited","SIN016176","1,738.44","Computing - Maint Agreements","130129022","15/07/16","ICTS","Strategic ICTS (ICT Service Budget)","R4534"
"Wolverhampton City Council","http://opendatacommunities.org/id/metropolitan-district-council/wolverhampton","P Kitterick","22","1,530.00","TPP - Maintenance Contractor - General","190248655","08/07/16","Parking Services","Cycling Schemes - Bikeability","R5720"
"Wolverhampton City Council","http://opendatacommunities.org/id/metropolitan-district-council/wolverhampton","Partisip8/P Sicilia","695","1,670.00","TPP - Maintenance Contractor - General","190248659","08/07/16","Parking Services","Cycling Schemes - Bikeability","R5720"
"Wolverhampton City Council","http://opendatacommunities.org/id/metropolitan-district-council/wolverhampton","Philip Lay","14","910","TPP - Maintenance Contractor - General","190248653","08/07/16","Parking Services","Cycling Schemes - Bikeability","R5720"
"Wolverhampton City Council","http://opendatacommunities.org/id/metropolitan-district-council/wolverhampton","R Millard","000027/1","27.5","Services - Professional Fees","190248651","08/07/16","Parking Services","Advisory Road Markings and Disabled Bays","R4400"
"Wolverhampton City Council","http://opendatacommunities.org/id/metropolitan-district-council/wolverhampton","R Millard","27","595","TPP - Maintenance Contractor - General","190248650","08/07/16","Parking Services","Cycling Schemes - Bikeability","R5720"
"Wolverhampton City Council","http://opendatacommunities.org/id/metropolitan-district-council/wolverhampton","R Millington","22","1,260.00","TPP - Maintenance Contractor - General","190248655","08/07/16","Parking Services","Cycling Schemes - Bikeability","R5720"
"Wolverhampton City Council","http://opendatacommunities.org/id/metropolitan-district-council/wolverhampton","Adt Fire And Security PLC","27685305 - 02","129.17","Fixtures and Fittings - R&M","130130766","27/07/16","Facilities Management","Caretakers Community Centre","R2502"
"Wolverhampton City Council","http://opendatacommunities.org/id/metropolitan-district-council/wolverhampton","Adt Fire And Security PLC","31102639 - 02","128.97","Fixtures and Fittings - R&M","130129708","20/07/16","Facilities Management","Caretakers Community Centre","R2502"
"Wolverhampton City Council","http://opendatacommunities.org/id/metropolitan-district-council/wolverhampton","Adt Fire And Security PLC","33017407 - 02","601.94","Fixtures and Fittings - R&M","130128509","20/07/16","Bereavement Services","Cemeteries","R2502"
"Wolverhampton City Council","http://opendatacommunities.org/id/metropolitan-district-council/wolverhampton","Adt Fire And Security PLC","32520768 - 02","514.25","Fixtures and Fittings - R&M","130128658","13/07/16","Bereavement Services","Cemeteries","R2502"
"Wolverhampton City Council","http://opendatacommunities.org/id/metropolitan-district-council/wolverhampton","Adt Fire And Security PLC","32302479-02","246.69","Construction and Conversion","130129073","13/07/16","","Primary Expansion Programme","C1100"
"Wolverhampton City Council","http://opendatacommunities.org/id/metropolitan-district-council/wolverhampton","Adt Fire And Security PLC","32817074-02","495.69","Fixtures and Fittings - R&M","130128885","15/07/16","Visitor Economy","Art Gallery","R2502"
"Wolverhampton City Council","http://opendatacommunities.org/id/metropolitan-district-council/wolverhampton","Adt Fire And Security PLC","32563658 - 02","74","Services - Security","130127277","06/07/16","Maintenance Programme","Centralised R&M","R4405"
"Wolverhampton City Council","http://opendatacommunities.org/id/metropolitan-district-council/wolverhampton","Adt Fire And Security PLC","32792097 - 02","142","Fixtures and Fittings - R&M","130126672","06/07/16","Markets","Bilston Market and Licensed Operations","R2502"
"Wolverhampton City Council","http://opendatacommunities.org/id/metropolitan-district-council/wolverhampton","Adt Fire And Security PLC","32797233 - 02","180.46","Fixtures and Fittings - R&M","130126673","06/07/16","Markets","Bilston Market and Licensed Operations","R2502"
"Wolverhampton City Council","http://opendatacommunities.org/id/metropolitan-district-council/wolverhampton","S Drew","7","35","Services - Professional Fees","190248652","08/07/16","Parking Services","Advisory Road Markings and Disabled Bays","R4400"
"Wolverhampton City Council","http://opendatacommunities.org/id/metropolitan-district-council/wolverhampton","Adventure Kit UK Limited","3006","60","Equipment - Purchase","130131377","29/07/16","School Planning & Resources","Towers Outdoor Education Centre","R4000"
"Wolverhampton City Council","http://opendatacommunities.org/id/metropolitan-district-council/wolverhampton","Af Blakemore/Blakemore Foodservice","4869915","70.37","Provisions (Resale)","130126721","29/07/16","Older People Provider Services","Bradley Lodge Resource Centre","R4102"
"Wolverhampton City Council","http://opendatacommunities.org/id/metropolitan-district-council/wolverhampton","Af Blakemore/Blakemore Foodservice","4869915","-70.37","Provisions (Resale)","130126721","29/07/16","Older People Provider Services","Bradley Lodge Resource Centre","R4102"
"Wolverhampton City Council","http://opendatacommunities.org/id/metropolitan-district-council/wolverhampton","Af Blakemore/Blakemore Foodservice","4869915","7","Provisions (Resale)","130126721","29/07/16","Older People Provider Services","Bradley Lodge Resource Centre","R4102"
"Wolverhampton City Council","http://opendatacommunities.org/id/metropolitan-district-council/wolverhampton","Af Blakemore/Blakemore Foodservice","4869915","63.37","Provisions (Resale)","130126721","29/07/16","Older People Provider Services","Bradley Lodge Resource Centre","R4102"
"Wolverhampton City Council","http://opendatacommunities.org/id/metropolitan-district-council/wolverhampton","Af Blakemore/Blakemore Foodservice","WCC000151","584.99","Provisions (Resale)","130128175","29/07/16","Leisure Services","Bert Williams Leisure Centre Caf�","R4102"
"Wolverhampton City Council","http://opendatacommunities.org/id/metropolitan-district-council/wolverhampton","Af Blakemore/Blakemore Foodservice","WCC000151","20.39","Provisions (Resale)","130128175","29/07/16","Leisure Services","Bert Williams Leisure Centre Caf�","R4102"
"Wolverhampton City Council","http://opendatacommunities.org/id/metropolitan-district-council/wolverhampton","Af Blakemore/Blakemore Foodservice","WCC000152","1,127.62","Provisions (Resale)","130128176","29/07/16","Leisure Services","Bert Williams Leisure Centre Caf�","R4102"
"Wolverhampton City Council","http://opendatacommunities.org/id/metropolitan-district-council/wolverhampton","Af Blakemore/Blakemore Foodservice","WCC000152","-1,127.62","Provisions (Resale)","130128176","29/07/16","Leisure Services","Bert Williams Leisure Centre Caf�","R4102"
"Wolverhampton City Council","http://opendatacommunities.org/id/metropolitan-district-council/wolverhampton","Af Blakemore/Blakemore Foodservice","WCC000152","500.49","Provisions (Resale)","130128176","29/07/16","Leisure Services","Bert Williams Leisure Centre Caf�","R4102"
"Wolverhampton City Council","http://opendatacommunities.org/id/metropolitan-district-council/wolverhampton","Af Blakemore/Blakemore Foodservice","WCC000152","627.13","Provisions (Resale)","130128176","29/07/16","Leisure Services","Bert Williams Leisure Centre Caf�","R4102"
"Wolverhampton City Council","http://opendatacommunities.org/id/metropolitan-district-council/wolverhampton","Af Blakemore/Blakemore Foodservice","WCC000149","641.19","Provisions (Resale)","130128173","29/07/16","Catering","Civic Centre Catering","R4102"
"Wolverhampton City Council","http://opendatacommunities.org/id/metropolitan-district-council/wolverhampton","Af Blakemore/Blakemore Foodservice","WCC000151","605.38","Provisions (Resale)","130128175","29/07/16","Leisure Services","Bert Williams Leisure Centre Caf�","R4102"
"Wolverhampton City Council","http://opendatacommunities.org/id/metropolitan-district-council/wolverhampton","Af Blakemore/Blakemore Foodservice","WCC000151","-605.38","Provisions (Resale)","130128175","29/07/16","Leisure Services","Bert Williams Leisure Centre Caf�","R4102"
"Wolverhampton City Council","http://opendatacommunities.org/id/metropolitan-district-council/wolverhampton","Af Blakemore/Blakemore Foodservice","WCC000148","362.84","Provisions (Resale)","130128172","29/07/16","Catering","Meals on Wheels","R4102"
"Wolverhampton City Council","http://opendatacommunities.org/id/metropolitan-district-council/wolverhampton","Af Blakemore/Blakemore Foodservice","WCC000148","-362.84","Provisions (Resale)","130128172","29/07/16","Catering","Meals on Wheels","R4102"
"Wolverhampton City Council","http://opendatacommunities.org/id/metropolitan-district-council/wolverhampton","Af Blakemore/Blakemore Foodservice","WCC000148","350.86","Provisions (Resale)","130128172","29/07/16","Catering","Meals on Wheels","R4102"
"Wolverhampton City Council","http://opendatacommunities.org/id/metropolitan-district-council/wolverhampton","Af Blakemore/Blakemore Foodservice","WCC000148","11.98","Provisions (Resale)","130128172","29/07/16","Catering","Meals on Wheels","R4102"
"Wolverhampton City Council","http://opendatacommunities.org/id/metropolitan-district-council/wolverhampton","Af Blakemore/Blakemore Foodservice","WCC000150","2,556.44","Provisions (Resale)","130128174","29/07/16","Catering","Civic Centre Catering","R4102"
"Wolverhampton City Council","http://opendatacommunities.org/id/metropolitan-district-council/wolverhampton","Af Blakemore/Blakemore Foodservice","WCC000150","-2,556.44","Provisions (Resale)","130128174","29/07/16","Catering","Civic Centre Catering","R4102"
"Wolverhampton City Council","http://opendatacommunities.org/id/metropolitan-district-council/wolverhampton","Af Blakemore/Blakemore Foodservice","WCC000150","1,312.63","Provisions (Resale)","130128174","29/07/16","Catering","Civic Centre Catering","R4102"
"Wolverhampton City Council","http://opendatacommunities.org/id/metropolitan-district-council/wolverhampton","Af Blakemore/Blakemore Foodservice","WCC000150","1,243.81","Provisions (Resale)","130128174","29/07/16","Catering","Civic Centre Catering","R4102"
"Wolverhampton City Council","http://opendatacommunities.org/id/metropolitan-district-council/wolverhampton","Af Blakemore/Blakemore Foodservice","WCC000146","63,791.34","Provisions (Resale)","130128170","29/07/16","Catering","Education Catering - General Overheads","R4102"
"Wolverhampton City Council","http://opendatacommunities.org/id/metropolitan-district-council/wolverhampton","Af Blakemore/Blakemore Foodservice","WCC000146","-63,791.34","Provisions (Resale)","130128170","29/07/16","Catering","Education Catering - General Overheads","R4102"
"Wolverhampton City Council","http://opendatacommunities.org/id/metropolitan-district-council/wolverhampton","Af Blakemore/Blakemore Foodservice","WCC000146","51,754.56","Provisions (Resale)","130128170","29/07/16","Catering","Education Catering - General Overheads","R4102"
"Wolverhampton City Council","http://opendatacommunities.org/id/metropolitan-district-council/wolverhampton","Af Blakemore/Blakemore Foodservice","WCC000146","12,036.78","Provisions (Resale)","130128170","29/07/16","Catering","Education Catering - General Overheads","R4102"
"Wolverhampton City Council","http://opendatacommunities.org/id/metropolitan-district-council/wolverhampton","Af Blakemore/Blakemore Foodservice","WCC000147","99,059.70","Provisions (Resale)","130128171","29/07/16","Catering","Education Catering - General Overheads","R4102"
"Wolverhampton City Council","http://opendatacommunities.org/id/metropolitan-district-council/wolverhampton","Af Blakemore/Blakemore Foodservice","WCC000147","-99,059.70","Provisions (Resale)","130128171","29/07/16","Catering","Education Catering - General Overheads","R4102"
"Wolverhampton City Council","http://opendatacommunities.org/id/metropolitan-district-council/wolverhampton","Af Blakemore/Blakemore Foodservice","WCC000147","98,216.07","Provisions (Resale)","130128171","29/07/16","Catering","Education Catering - General Overheads","R4102"
"Wolverhampton City Council","http://opendatacommunities.org/id/metropolitan-district-council/wolverhampton","Af Blakemore/Blakemore Foodservice","WCC000147","843.63","Provisions (Resale)","130128171","29/07/16","Catering","Education Catering - General Overheads","R4102"
"Wolverhampton City Council","http://opendatacommunities.org/id/metropolitan-district-council/wolverhampton","Af Blakemore/Blakemore Foodservice","4776996","52.15","Provisions (Not for resale)","130126684","29/07/16","Older People Provider Services","Bradley Lodge Resource Centre","R4101"
"Wolverhampton City Council","http://opendatacommunities.org/id/metropolitan-district-council/wolverhampton","Af Blakemore/Blakemore Foodservice","4776996","-52.15","Provisions (Not for resale)","130126684","29/07/16","Older People Provider Services","Bradley Lodge Resource Centre","R4101"
"Wolverhampton City Council","http://opendatacommunities.org/id/metropolitan-district-council/wolverhampton","Af Blakemore/Blakemore Foodservice","4776996","41.72","Provisions (Not for resale)","130126684","29/07/16","Older People Provider Services","Bradley Lodge Resource Centre","R4101"
"Wolverhampton City Council","http://opendatacommunities.org/id/metropolitan-district-council/wolverhampton","Af Blakemore/Blakemore Foodservice","4776996","10.43","Provisions (Not for resale)","130126684","29/07/16","Older People Provider Services","Bradley Lodge Resource Centre","R4101"
"Wolverhampton City Council","http://opendatacommunities.org/id/metropolitan-district-council/wolverhampton","Af Blakemore/Blakemore Foodservice","4805605","30.2","Provisions (Resale)","130126699","29/07/16","Older People Provider Services","Bradley Lodge Resource Centre","R4102"
"Wolverhampton City Council","http://opendatacommunities.org/id/metropolitan-district-council/wolverhampton","Af Blakemore/Blakemore Foodservice","4805605","-30.2","Provisions (Resale)","130126699","29/07/16","Older People Provider Services","Bradley Lodge Resource Centre","R4102"
"Wolverhampton City Council","http://opendatacommunities.org/id/metropolitan-district-council/wolverhampton","Af Blakemore/Blakemore Foodservice","4805605","10.5","Provisions (Resale)","130126699","29/07/16","Older People Provider Services","Bradley Lodge Resource Centre","R4102"
"Wolverhampton City Council","http://opendatacommunities.org/id/metropolitan-district-council/wolverhampton","Af Blakemore/Blakemore Foodservice","4805605","19.7","Provisions (Resale)","130126699","29/07/16","Older People Provider Services","Bradley Lodge Resource Centre","R4102"
"Wolverhampton City Council","http://opendatacommunities.org/id/metropolitan-district-council/wolverhampton","Af Blakemore/Blakemore Foodservice","4877374","117.74","Provisions (Resale)","130126507","20/07/16","Community Recreation","Blakenhall Community & Healthy Living Centre","R4102"
"Wolverhampton City Council","http://opendatacommunities.org/id/metropolitan-district-council/wolverhampton","Af Blakemore/Blakemore Foodservice","4877374","-117.74","Provisions (Resale)","130126507","20/07/16","Community Recreation","Blakenhall Community & Healthy Living Centre","R4102"
"Wolverhampton City Council","http://opendatacommunities.org/id/metropolitan-district-council/wolverhampton","Af Blakemore/Blakemore Foodservice","4877374","117.74","Provisions (Resale)","130126507","20/07/16","Community Recreation","Blakenhall Community & Healthy Living Centre","R4102"
"Wolverhampton City Council","http://opendatacommunities.org/id/metropolitan-district-council/wolverhampton","Af Blakemore/Blakemore Foodservice","4968413","108.23","Provisions (Not for resale)","130127033","20/07/16","Older People Provider Services","Blakenhall Resource Centre","R4101"
"Wolverhampton City Council","http://opendatacommunities.org/id/metropolitan-district-council/wolverhampton","Af Blakemore/Blakemore Foodservice","4968413","-108.23","Provisions (Not for resale)","130127033","20/07/16","Older People Provider Services","Blakenhall Resource Centre","R4101"
"Wolverhampton City Council","http://opendatacommunities.org/id/metropolitan-district-council/wolverhampton","Af Blakemore/Blakemore Foodservice","4968413","108.23","Provisions (Not for resale)","130127033","20/07/16","Older People Provider Services","Blakenhall Resource Centre","R4101"
"Wolverhampton City Council","http://opendatacommunities.org/id/metropolitan-district-council/wolverhampton","Af Blakemore/Blakemore Foodservice","5002525","401.81","Provisions (Not for resale)","130127052","20/07/16","Older People Provider Services","Blakenhall Resource Centre","R4101"
"Wolverhampton City Council","http://opendatacommunities.org/id/metropolitan-district-council/wolverhampton","Af Blakemore/Blakemore Foodservice","5002525","-401.81","Provisions (Not for resale)","130127052","20/07/16","Older People Provider Services","Blakenhall Resource Centre","R4101"
"Wolverhampton City Council","http://opendatacommunities.org/id/metropolitan-district-council/wolverhampton","Af Blakemore/Blakemore Foodservice","5002525","92.77","Provisions (Not for resale)","130127052","20/07/16","Older People Provider Services","Blakenhall Resource Centre","R4101"
"Wolverhampton City Council","http://opendatacommunities.org/id/metropolitan-district-council/wolverhampton","Af Blakemore/Blakemore Foodservice","5002525","309.04","Provisions (Not for resale)","130127052","20/07/16","Older People Provider Services","Blakenhall Resource Centre","R4101"
"Wolverhampton City Council","http://opendatacommunities.org/id/metropolitan-district-council/wolverhampton","Af Blakemore/Blakemore Foodservice","4968412","21.26","Provisions (Not for resale)","130127032","20/07/16","Older People Provider Services","Blakenhall Resource Centre","R4101"
"Wolverhampton City Council","http://opendatacommunities.org/id/metropolitan-district-council/wolverhampton","Af Blakemore/Blakemore Foodservice","4968412","-21.26","Provisions (Not for resale)","130127032","20/07/16","Older People Provider Services","Blakenhall Resource Centre","R4101"
"Wolverhampton City Council","http://opendatacommunities.org/id/metropolitan-district-council/wolverhampton","Af Blakemore/Blakemore Foodservice","4968412","21.26","Provisions (Not for resale)","130127032","20/07/16","Older People Provider Services","Blakenhall Resource Centre","R4101"
"Wolverhampton City Council","http://opendatacommunities.org/id/metropolitan-district-council/wolverhampton","Af Blakemore/Blakemore Foodservice","5002498","70.41","Provisions (Not for resale)","130127051","20/07/16","Older People Provider Services","Blakenhall Resource Centre","R4101"
"Wolverhampton City Council","http://opendatacommunities.org/id/metropolitan-district-council/wolverhampton","Af Blakemore/Blakemore Foodservice","5002498","-70.41","Provisions (Not for resale)","130127051","20/07/16","Older People Provider Services","Blakenhall Resource Centre","R4101"
"Wolverhampton City Council","http://opendatacommunities.org/id/metropolitan-district-council/wolverhampton","Af Blakemore/Blakemore Foodservice","5002498","70.41","Provisions (Not for resale)","130127051","20/07/16","Older People Provider Services","Blakenhall Resource Centre","R4101"
"Wolverhampton City Council","http://opendatacommunities.org/id/metropolitan-district-council/wolverhampton","Af Blakemore/Blakemore Foodservice","2536725","157.37","Provisions (Resale)","130126310","20/07/16","Visitor Economy","The Little Civic","R4102"
"Wolverhampton City Council","http://opendatacommunities.org/id/metropolitan-district-council/wolverhampton","Af Blakemore/Blakemore Foodservice","2536725","-157.37","Provisions (Resale)","130126310","20/07/16","Visitor Economy","The Little Civic","R4102"
"Wolverhampton City Council","http://opendatacommunities.org/id/metropolitan-district-council/wolverhampton","Af Blakemore/Blakemore Foodservice","2536725","12.69","Provisions (Resale)","130126310","20/07/16","Visitor Economy","The Little Civic","R4102"
"Wolverhampton City Council","http://opendatacommunities.org/id/metropolitan-district-council/wolverhampton","Af Blakemore/Blakemore Foodservice","2536725","144.68","Provisions (Resale)","130126310","20/07/16","Visitor Economy","The Little Civic","R4102"
"Wolverhampton City Council","http://opendatacommunities.org/id/metropolitan-district-council/wolverhampton","Af Blakemore/Blakemore Foodservice","4796624","21","Provisions (Not for resale)","130126486","20/07/16","Older People Provider Services","Bradley Lodge Resource Centre","R4101"
"Wolverhampton City Council","http://opendatacommunities.org/id/metropolitan-district-council/wolverhampton","Af Blakemore/Blakemore Foodservice","4978109","41.28","Provisions (Not for resale)","130127042","01/07/16","Adult Education","Discretionary Fund","R4101"
"Wolverhampton City Council","http://opendatacommunities.org/id/metropolitan-district-council/wolverhampton","Af Blakemore/Blakemore Foodservice","4889489","61.99","Provisions (Not for resale)","130126731","01/07/16","Learning Disability Provider","Duke Street Bungalows","R4101"
"Wolverhampton City Council","http://opendatacommunities.org/id/metropolitan-district-council/wolverhampton","Af Blakemore/Blakemore Foodservice","4889489","-61.99","Provisions (Not for resale)","130126731","01/07/16","Learning Disability Provider","Duke Street Bungalows","R4101"
"Wolverhampton City Council","http://opendatacommunities.org/id/metropolitan-district-council/wolverhampton","Af Blakemore/Blakemore Foodservice","4849519","248.27","Provisions (Not for resale)","130126714","01/07/16","Learning Disability Provider","Duke Street Bungalows","R4101"
"Wolverhampton City Council","http://opendatacommunities.org/id/metropolitan-district-council/wolverhampton","Af Blakemore/Blakemore Foodservice","4849519","-248.27","Provisions (Not for resale)","130126714","01/07/16","Learning Disability Provider","Duke Street Bungalows","R4101"
"Wolverhampton City Council","http://opendatacommunities.org/id/metropolitan-district-council/wolverhampton","Af Blakemore/Blakemore Foodservice","4849519","224.21","Provisions (Not for resale)","130126714","01/07/16","Learning Disability Provider","Duke Street Bungalows","R4101"
"Wolverhampton City Council","http://opendatacommunities.org/id/metropolitan-district-council/wolverhampton","Af Blakemore/Blakemore Foodservice","4849519","24.06","Provisions (Not for resale)","130126714","01/07/16","Learning Disability Provider","Duke Street Bungalows","R4101"
"Wolverhampton City Council","http://opendatacommunities.org/id/metropolitan-district-council/wolverhampton","Af Blakemore/Blakemore Foodservice","4879259","208.69","Provisions (Not for resale)","130126725","01/07/16","Learning Disability Provider","Duke Street Bungalows","R4101"
"Wolverhampton City Council","http://opendatacommunities.org/id/metropolitan-district-council/wolverhampton","Af Blakemore/Blakemore Foodservice","4879259","-208.69","Provisions (Not for resale)","130126725","01/07/16","Learning Disability Provider","Duke Street Bungalows","R4101"
"Wolverhampton City Council","http://opendatacommunities.org/id/metropolitan-district-council/wolverhampton","Af Blakemore/Blakemore Foodservice","4879259","18.62","Provisions (Not for resale)","130126725","01/07/16","Learning Disability Provider","Duke Street Bungalows","R4101"
"Wolverhampton City Council","http://opendatacommunities.org/id/metropolitan-district-council/wolverhampton","Af Blakemore/Blakemore Foodservice","4879259","190.07","Provisions (Not for resale)","130126725","01/07/16","Learning Disability Provider","Duke Street Bungalows","R4101"
"Wolverhampton City Council","http://opendatacommunities.org/id/metropolitan-district-council/wolverhampton","Af Blakemore/Blakemore Foodservice","4925851","340.12","Provisions (Not for resale)","130126763","01/07/16","Learning Disability Provider","Duke Street Bungalows","R4101"
"Wolverhampton City Council","http://opendatacommunities.org/id/metropolitan-district-council/wolverhampton","Af Blakemore/Blakemore Foodservice","4925851","-340.12","Provisions (Not for resale)","130126763","01/07/16","Learning Disability Provider","Duke Street Bungalows","R4101"
"Wolverhampton City Council","http://opendatacommunities.org/id/metropolitan-district-council/wolverhampton","Af Blakemore/Blakemore Foodservice","4925851","305.79","Provisions (Not for resale)","130126763","01/07/16","Learning Disability Provider","Duke Street Bungalows","R4101"
"Wolverhampton City Council","http://opendatacommunities.org/id/metropolitan-district-council/wolverhampton","Af Blakemore/Blakemore Foodservice","4925851","34.33","Provisions (Not for resale)","130126763","01/07/16","Learning Disability Provider","Duke Street Bungalows","R4101"
"Wolverhampton City Council","http://opendatacommunities.org/id/metropolitan-district-council/wolverhampton","Af Blakemore/Blakemore Foodservice","4967857","138.17","Provisions (Not for resale)","130127031","01/07/16","Learning Disability Provider","Duke Street Bungalows","R4101"
"Wolverhampton City Council","http://opendatacommunities.org/id/metropolitan-district-council/wolverhampton","Af Blakemore/Blakemore Foodservice","4967857","-138.17","Provisions (Not for resale)","130127031","01/07/16","Learning Disability Provider","Duke Street Bungalows","R4101"
"Wolverhampton City Council","http://opendatacommunities.org/id/metropolitan-district-council/wolverhampton","Af Blakemore/Blakemore Foodservice","4967857","123.95","Provisions (Not for resale)","130127031","01/07/16","Learning Disability Provider","Duke Street Bungalows","R4101"
"Wolverhampton City Council","http://opendatacommunities.org/id/metropolitan-district-council/wolverhampton","Af Blakemore/Blakemore Foodservice","4967857","14.22","Provisions (Not for resale)","130127031","01/07/16","Learning Disability Provider","Duke Street Bungalows","R4101"
"Wolverhampton City Council","http://opendatacommunities.org/id/metropolitan-district-council/wolverhampton","Af Blakemore/Blakemore Foodservice","4975341","379","Provisions (Not for resale)","130127039","01/07/16","Learning Disability Provider","Duke Street Bungalows","R4101"
"Wolverhampton City Council","http://opendatacommunities.org/id/metropolitan-district-council/wolverhampton","Af Blakemore/Blakemore Foodservice","4975341","-379","Provisions (Not for resale)","130127039","01/07/16","Learning Disability Provider","Duke Street Bungalows","R4101"
"Wolverhampton City Council","http://opendatacommunities.org/id/metropolitan-district-council/wolverhampton","Af Blakemore/Blakemore Foodservice","4975341","328.69","Provisions (Not for resale)","130127039","01/07/16","Learning Disability Provider","Duke Street Bungalows","R4101"
"Wolverhampton City Council","http://opendatacommunities.org/id/metropolitan-district-council/wolverhampton","Af Blakemore/Blakemore Foodservice","4975341","50.31","Provisions (Not for resale)","130127039","01/07/16","Learning Disability Provider","Duke Street Bungalows","R4101"
"Wolverhampton City Council","http://opendatacommunities.org/id/metropolitan-district-council/wolverhampton","Af Blakemore/Blakemore Foodservice","4952793","278","Provisions (Not for resale)","130127019","01/07/16","Learning Disability Provider","Duke Street Bungalows","R4101"
"Wolverhampton City Council","http://opendatacommunities.org/id/metropolitan-district-council/wolverhampton","Af Blakemore/Blakemore Foodservice","4952793","-278","Provisions (Not for resale)","130127019","01/07/16","Learning Disability Provider","Duke Street Bungalows","R4101"
"Wolverhampton City Council","http://opendatacommunities.org/id/metropolitan-district-council/wolverhampton","Af Blakemore/Blakemore Foodservice","4952793","32.07","Provisions (Not for resale)","130127019","01/07/16","Learning Disability Provider","Duke Street Bungalows","R4101"
"Wolverhampton City Council","http://opendatacommunities.org/id/metropolitan-district-council/wolverhampton","Af Blakemore/Blakemore Foodservice","4952793","245.93","Provisions (Not for resale)","130127019","01/07/16","Learning Disability Provider","Duke Street Bungalows","R4101"
"Wolverhampton City Council","http://opendatacommunities.org/id/metropolitan-district-council/wolverhampton","Af Blakemore/Blakemore Foodservice","4975931","356.27","Provisions (Not for resale)","130127040","01/07/16","Learning Disability Provider","Duke Street Bungalows","R4101"
"Wolverhampton City Council","http://opendatacommunities.org/id/metropolitan-district-council/wolverhampton","Af Blakemore/Blakemore Foodservice","4975931","-356.27","Provisions (Not for resale)","130127040","01/07/16","Learning Disability Provider","Duke Street Bungalows","R4101"
"Wolverhampton City Council","http://opendatacommunities.org/id/metropolitan-district-council/wolverhampton","Af Blakemore/Blakemore Foodservice","5041078","61.24","Provisions (Resale)","130127089","01/07/16","Older People Provider Services","Ekta Day Centre","R4102"
"Wolverhampton City Council","http://opendatacommunities.org/id/metropolitan-district-council/wolverhampton","Af Blakemore/Blakemore Foodservice","5041078","-61.24","Provisions (Resale)","130127089","01/07/16","Older People Provider Services","Ekta Day Centre","R4102"
"Wolverhampton City Council","http://opendatacommunities.org/id/metropolitan-district-council/wolverhampton","Af Blakemore/Blakemore Foodservice","5041078","3.14","Provisions (Resale)","130127089","01/07/16","Older People Provider Services","Ekta Day Centre","R4102"
"Wolverhampton City Council","http://opendatacommunities.org/id/metropolitan-district-council/wolverhampton","Af Blakemore/Blakemore Foodservice","5041078","58.1","Provisions (Resale)","130127089","01/07/16","Older People Provider Services","Ekta Day Centre","R4102"
"Wolverhampton City Council","http://opendatacommunities.org/id/metropolitan-district-council/wolverhampton","Af Blakemore/Blakemore Foodservice","4975931","5.71","Provisions (Not for resale)","130127040","01/07/16","Learning Disability Provider","Duke Street Bungalows","R4101"
"Wolverhampton City Council","http://opendatacommunities.org/id/metropolitan-district-council/wolverhampton","Af Blakemore/Blakemore Foodservice","4975931","350.56","Provisions (Not for resale)","130127040","01/07/16","Learning Disability Provider","Duke Street Bungalows","R4101"
"Wolverhampton City Council","http://opendatacommunities.org/id/metropolitan-district-council/wolverhampton","Af Blakemore/Blakemore Foodservice","4880342","114.37","Provisions (Not for resale)","130126509","01/07/16","Learning Disability Provider","Duke Street Bungalows","R4101"
"Wolverhampton City Council","http://opendatacommunities.org/id/metropolitan-district-council/wolverhampton","Af Blakemore/Blakemore Foodservice","4880342","-114.37","Provisions (Not for resale)","130126509","01/07/16","Learning Disability Provider","Duke Street Bungalows","R4101"
"Wolverhampton City Council","http://opendatacommunities.org/id/metropolitan-district-council/wolverhampton","Af Blakemore/Blakemore Foodservice","4880342","68.87","Provisions (Not for resale)","130126509","01/07/16","Learning Disability Provider","Duke Street Bungalows","R4101"
"Wolverhampton City Council","http://opendatacommunities.org/id/metropolitan-district-council/wolverhampton","Af Blakemore/Blakemore Foodservice","4880342","45.5","Provisions (Not for resale)","130126509","01/07/16","Learning Disability Provider","Duke Street Bungalows","R4101"
"Wolverhampton City Council","http://opendatacommunities.org/id/metropolitan-district-council/wolverhampton","Af Blakemore/Blakemore Foodservice","4891379","3.14","Provisions (Resale)","130126734","01/07/16","Older People Provider Services","Ekta Day Centre","R4102"
"Wolverhampton City Council","http://opendatacommunities.org/id/metropolitan-district-council/wolverhampton","Af Blakemore/Blakemore Foodservice","4880867","3.14","Provisions (Resale)","130126728","01/07/16","Older People Provider Services","Ekta Day Centre","R4102"
"Wolverhampton City Council","http://opendatacommunities.org/id/metropolitan-district-council/wolverhampton","Af Blakemore/Blakemore Foodservice","4771004","5.34","Provisions (Resale)","130126682","01/07/16","Older People Provider Services","Ekta Day Centre","R4102"
"Wolverhampton City Council","http://opendatacommunities.org/id/metropolitan-district-council/wolverhampton","Af Blakemore/Blakemore Foodservice","4776570","18.76","Provisions (Resale)","130126683","01/07/16","Older People Provider Services","Ekta Day Centre","R4102"
"Wolverhampton City Council","http://opendatacommunities.org/id/metropolitan-district-council/wolverhampton","Af Blakemore/Blakemore Foodservice","4910633","3.14","Provisions (Resale)","130126751","01/07/16","Older People Provider Services","Ekta Day Centre","R4102"
"Wolverhampton City Council","http://opendatacommunities.org/id/metropolitan-district-council/wolverhampton","Af Blakemore/Blakemore Foodservice","4918537","3.14","Provisions (Resale)","130126756","01/07/16","Older People Provider Services","Ekta Day Centre","R4102"
"Wolverhampton City Council","http://opendatacommunities.org/id/metropolitan-district-council/wolverhampton","Af Blakemore/Blakemore Foodservice","4958168","22.63","Provisions (Resale)","130127021","01/07/16","Older People Provider Services","Ekta Day Centre","R4102"
"Wolverhampton City Council","http://opendatacommunities.org/id/metropolitan-district-council/wolverhampton","Af Blakemore/Blakemore Foodservice","4927114","3.14","Provisions (Resale)","130126764","01/07/16","Older People Provider Services","Ekta Day Centre","R4102"
"Wolverhampton City Council","http://opendatacommunities.org/id/metropolitan-district-council/wolverhampton","Af Blakemore/Blakemore Foodservice","4954019","21.22","Provisions (Resale)","130127020","01/07/16","Older People Provider Services","Ekta Day Centre","R4102"
"Wolverhampton City Council","http://opendatacommunities.org/id/metropolitan-district-council/wolverhampton","Af Blakemore/Blakemore Foodservice","4795849","6.28","Provisions (Resale)","130126694","01/07/16","Older People Provider Services","Ekta Day Centre","R4102"
"Wolverhampton City Council","http://opendatacommunities.org/id/metropolitan-district-council/wolverhampton","Af Blakemore/Blakemore Foodservice","4805272","3.14","Provisions (Resale)","130126698","01/07/16","Older People Provider Services","Ekta Day Centre","R4102"
"Wolverhampton City Council","http://opendatacommunities.org/id/metropolitan-district-council/wolverhampton","Af Blakemore/Blakemore Foodservice","4814835","3.14","Provisions (Resale)","130126703","01/07/16","Older People Provider Services","Ekta Day Centre","R4102"
"Wolverhampton City Council","http://opendatacommunities.org/id/metropolitan-district-council/wolverhampton","Af Blakemore/Blakemore Foodservice","5032869","13.76","Provisions (Not for resale)","130127080","01/07/16","Adult Education","Discretionary Fund","R4101"
"Wolverhampton City Council","http://opendatacommunities.org/id/metropolitan-district-council/wolverhampton","Af Blakemore/Blakemore Foodservice","5023872","21.14","Provisions (Resale)","130127067","01/07/16","Older People Provider Services","Ekta Day Centre","R4102"
"Wolverhampton City Council","http://opendatacommunities.org/id/metropolitan-district-council/wolverhampton","Af Blakemore/Blakemore Foodservice","5003895","3.14","Provisions (Resale)","130127053","01/07/16","Older People Provider Services","Ekta Day Centre","R4102"
"Wolverhampton City Council","http://opendatacommunities.org/id/metropolitan-district-council/wolverhampton","Af Blakemore/Blakemore Foodservice","4962511","3.14","Provisions (Resale)","130127027","01/07/16","Older People Provider Services","Ekta Day Centre","R4102"
"Wolverhampton City Council","http://opendatacommunities.org/id/metropolitan-district-council/wolverhampton","Af Blakemore/Blakemore Foodservice","4782662","16.24","Provisions (Not for resale)","130126687","01/07/16","Learning Disability Provider","Duke Street Bungalows","R4101"
"Wolverhampton City Council","http://opendatacommunities.org/id/metropolitan-district-council/wolverhampton","Af Blakemore/Blakemore Foodservice","4823278","91.01","Provisions (Not for resale)","130126706","01/07/16","Learning Disability Provider","Duke Street Bungalows","R4101"
"Wolverhampton City Council","http://opendatacommunities.org/id/metropolitan-district-council/wolverhampton","Af Blakemore/Blakemore Foodservice","4823278","-91.01","Provisions (Not for resale)","130126706","01/07/16","Learning Disability Provider","Duke Street Bungalows","R4101"
"Wolverhampton City Council","http://opendatacommunities.org/id/metropolitan-district-council/wolverhampton","Af Blakemore/Blakemore Foodservice","4823278","25.94","Provisions (Not for resale)","130126706","01/07/16","Learning Disability Provider","Duke Street Bungalows","R4101"
"Wolverhampton City Council","http://opendatacommunities.org/id/metropolitan-district-council/wolverhampton","Af Blakemore/Blakemore Foodservice","4823278","65.07","Provisions (Not for resale)","130126706","01/07/16","Learning Disability Provider","Duke Street Bungalows","R4101"
"Wolverhampton City Council","http://opendatacommunities.org/id/metropolitan-district-council/wolverhampton","Af Blakemore/Blakemore Foodservice","4813214","263.61","Provisions (Not for resale)","130126700","01/07/16","Learning Disability Provider","Duke Street Bungalows","R4101"
"Wolverhampton City Council","http://opendatacommunities.org/id/metropolitan-district-council/wolverhampton","Af Blakemore/Blakemore Foodservice","4813214","-263.61","Provisions (Not for resale)","130126700","01/07/16","Learning Disability Provider","Duke Street Bungalows","R4101"
"Wolverhampton City Council","http://opendatacommunities.org/id/metropolitan-district-council/wolverhampton","Af Blakemore/Blakemore Foodservice","4813214","245.93","Provisions (Not for resale)","130126700","01/07/16","Learning Disability Provider","Duke Street Bungalows","R4101"
"Wolverhampton City Council","http://opendatacommunities.org/id/metropolitan-district-council/wolverhampton","Af Blakemore/Blakemore Foodservice","4813214","17.68","Provisions (Not for resale)","130126700","01/07/16","Learning Disability Provider","Duke Street Bungalows","R4101"
"Wolverhampton City Council","http://opendatacommunities.org/id/metropolitan-district-council/wolverhampton","Af Blakemore/Blakemore Foodservice","4918320","402.68","Provisions (Not for resale)","130126755","01/07/16","Learning Disability Provider","Duke Street Bungalows","R4101"
"Wolverhampton City Council","http://opendatacommunities.org/id/metropolitan-district-council/wolverhampton","Af Blakemore/Blakemore Foodservice","4918320","-402.68","Provisions (Not for resale)","130126755","01/07/16","Learning Disability Provider","Duke Street Bungalows","R4101"
"Wolverhampton City Council","http://opendatacommunities.org/id/metropolitan-district-council/wolverhampton","Af Blakemore/Blakemore Foodservice","4918320","370.51","Provisions (Not for resale)","130126755","01/07/16","Learning Disability Provider","Duke Street Bungalows","R4101"
"Wolverhampton City Council","http://opendatacommunities.org/id/metropolitan-district-council/wolverhampton","Af Blakemore/Blakemore Foodservice","4918320","32.17","Provisions (Not for resale)","130126755","01/07/16","Learning Disability Provider","Duke Street Bungalows","R4101"
"Wolverhampton City Council","http://opendatacommunities.org/id/metropolitan-district-council/wolverhampton","Af Blakemore/Blakemore Foodservice","4900018","297.99","Provisions (Not for resale)","130126740","01/07/16","Learning Disability Provider","Duke Street Bungalows","R4101"
"Wolverhampton City Council","http://opendatacommunities.org/id/metropolitan-district-council/wolverhampton","Af Blakemore/Blakemore Foodservice","4849496","-245.24","Provisions (Not for resale)","130126713","01/07/16","Learning Disability Provider","Duke Street Bungalows","R4101"
"Wolverhampton City Council","http://opendatacommunities.org/id/metropolitan-district-council/wolverhampton","Af Blakemore/Blakemore Foodservice","4849496","222.1","Provisions (Not for resale)","130126713","01/07/16","Learning Disability Provider","Duke Street Bungalows","R4101"
"Wolverhampton City Council","http://opendatacommunities.org/id/metropolitan-district-council/wolverhampton","Af Blakemore/Blakemore Foodservice","4849496","23.14","Provisions (Not for resale)","130126713","01/07/16","Learning Disability Provider","Duke Street Bungalows","R4101"
"Wolverhampton City Council","http://opendatacommunities.org/id/metropolitan-district-council/wolverhampton","Af Blakemore/Blakemore Foodservice","4900048","219.03","Provisions (Not for resale)","130126742","01/07/16","Learning Disability Provider","Duke Street Bungalows","R4101"
"Wolverhampton City Council","http://opendatacommunities.org/id/metropolitan-district-council/wolverhampton","Af Blakemore/Blakemore Foodservice","4889489","28","Provisions (Not for resale)","130126731","01/07/16","Learning Disability Provider","Duke Street Bungalows","R4101"
"Wolverhampton City Council","http://opendatacommunities.org/id/metropolitan-district-council/wolverhampton","Af Blakemore/Blakemore Foodservice","4889489","33.99","Provisions (Not for resale)","130126731","01/07/16","Learning Disability Provider","Duke Street Bungalows","R4101"
"Wolverhampton City Council","http://opendatacommunities.org/id/metropolitan-district-council/wolverhampton","Af Blakemore/Blakemore Foodservice","4849496","245.24","Provisions (Not for resale)","130126713","01/07/16","Learning Disability Provider","Duke Street Bungalows","R4101"
"Wolverhampton City Council","http://opendatacommunities.org/id/metropolitan-district-council/wolverhampton","Af Blakemore/Blakemore Foodservice","4782579","443.48","Provisions (Not for resale)","130126685","01/07/16","Learning Disability Provider","Duke Street Bungalows","R4101"
"Wolverhampton City Council","http://opendatacommunities.org/id/metropolitan-district-council/wolverhampton","Af Blakemore/Blakemore Foodservice","4782579","-443.48","Provisions (Not for resale)","130126685","01/07/16","Learning Disability Provider","Duke Street Bungalows","R4101"
"Wolverhampton City Council","http://opendatacommunities.org/id/metropolitan-district-council/wolverhampton","Af Blakemore/Blakemore Foodservice","4782579","390.54","Provisions (Not for resale)","130126685","01/07/16","Learning Disability Provider","Duke Street Bungalows","R4101"
"Wolverhampton City Council","http://opendatacommunities.org/id/metropolitan-district-council/wolverhampton","Af Blakemore/Blakemore Foodservice","4782579","52.94","Provisions (Not for resale)","130126685","01/07/16","Learning Disability Provider","Duke Street Bungalows","R4101"
"Wolverhampton City Council","http://opendatacommunities.org/id/metropolitan-district-council/wolverhampton","Af Blakemore/Blakemore Foodservice","4782679","150.45","Provisions (Not for resale)","130126689","01/07/16","Learning Disability Provider","Duke Street Bungalows","R4101"
"Wolverhampton City Council","http://opendatacommunities.org/id/metropolitan-district-council/wolverhampton","Af Blakemore/Blakemore Foodservice","4919256","44.47","Provisions (Resale)","130126758","27/07/16","Older People Provider Services","Bradley Lodge Resource Centre","R4102"
"Wolverhampton City Council","http://opendatacommunities.org/id/metropolitan-district-council/wolverhampton","Af Blakemore/Blakemore Foodservice","4919256","-44.47","Provisions (Resale)","130126758","27/07/16","Older People Provider Services","Bradley Lodge Resource Centre","R4102"
"Wolverhampton City Council","http://opendatacommunities.org/id/metropolitan-district-council/wolverhampton","Af Blakemore/Blakemore Foodservice","4919256","7","Provisions (Resale)","130126758","27/07/16","Older People Provider Services","Bradley Lodge Resource Centre","R4102"
"Wolverhampton City Council","http://opendatacommunities.org/id/metropolitan-district-council/wolverhampton","Af Blakemore/Blakemore Foodservice","4919256","37.47","Provisions (Resale)","130126758","27/07/16","Older People Provider Services","Bradley Lodge Resource Centre","R4102"
"Wolverhampton City Council","http://opendatacommunities.org/id/metropolitan-district-council/wolverhampton","Af Blakemore/Blakemore Foodservice","5034147","-32.9","Provisions (Not for resale)","130129890","27/07/16","Older People Provider Services","Blakenhall Resource Centre","R4101"
"Wolverhampton City Council","http://opendatacommunities.org/id/metropolitan-district-council/wolverhampton","Af Blakemore/Blakemore Foodservice","4916843","13.01","Provisions (Resale)","130126754","27/07/16","Older People Provider Services","Woden Resource Centre","R4102"
"Wolverhampton City Council","http://opendatacommunities.org/id/metropolitan-district-council/wolverhampton","Af Blakemore/Blakemore Foodservice","4868643","141.32","Provisions (Not for resale)","130126719","27/07/16","Learning Disability Provider","Duke Street Bungalows","R4101"
"Wolverhampton City Council","http://opendatacommunities.org/id/metropolitan-district-council/wolverhampton","Af Blakemore/Blakemore Foodservice","4967371","133.25","Provisions (Not for resale)","130127029","27/07/16","Learning Disability Provider","Duke Street Bungalows","R4101"
"Wolverhampton City Council","http://opendatacommunities.org/id/metropolitan-district-council/wolverhampton","Af Blakemore/Blakemore Foodservice","4952784","158.95","Provisions (Not for resale)","130127018","27/07/16","Learning Disability Provider","Duke Street Bungalows","R4101"
"Wolverhampton City Council","http://opendatacommunities.org/id/metropolitan-district-council/wolverhampton","Af Blakemore/Blakemore Foodservice","5009968","242.79","Provisions (Not for resale)","130127058","27/07/16","Learning Disability Provider","Duke Street Bungalows","R4101"
"Wolverhampton City Council","http://opendatacommunities.org/id/metropolitan-district-council/wolverhampton","Af Blakemore/Blakemore Foodservice","5009968","-242.79","Provisions (Not for resale)","130127058","27/07/16","Learning Disability Provider","Duke Street Bungalows","R4101"
"Wolverhampton City Council","http://opendatacommunities.org/id/metropolitan-district-council/wolverhampton","Af Blakemore/Blakemore Foodservice","5009968","21.8","Provisions (Not for resale)","130127058","27/07/16","Learning Disability Provider","Duke Street Bungalows","R4101"
"Wolverhampton City Council","http://opendatacommunities.org/id/metropolitan-district-council/wolverhampton","Af Blakemore/Blakemore Foodservice","5009968","220.99","Provisions (Not for resale)","130127058","27/07/16","Learning Disability Provider","Duke Street Bungalows","R4101"
"Wolverhampton City Council","http://opendatacommunities.org/id/metropolitan-district-council/wolverhampton","Af Blakemore/Blakemore Foodservice","4900016","190.84","Provisions (Not for resale)","130126739","27/07/16","Learning Disability Provider","Duke Street Bungalows","R4101"
"Wolverhampton City Council","http://opendatacommunities.org/id/metropolitan-district-council/wolverhampton","Af Blakemore/Blakemore Foodservice","4823271","78.01","Provisions (Not for resale)","130126705","27/07/16","Learning Disability Provider","Duke Street Bungalows","R4101"
"Wolverhampton City Council","http://opendatacommunities.org/id/metropolitan-district-council/wolverhampton","Af Blakemore/Blakemore Foodservice","4994633","79.89","Provisions (Not for resale)","130127047","27/07/16","Learning Disability Provider","Duke Street Bungalows","R4101"
"Wolverhampton City Council","http://opendatacommunities.org/id/metropolitan-district-council/wolverhampton","Af Blakemore/Blakemore Foodservice","5007832","72.99","Provisions (Not for resale)","130127054","27/07/16","Learning Disability Provider","Duke Street Bungalows","R4101"
"Wolverhampton City Council","http://opendatacommunities.org/id/metropolitan-district-council/wolverhampton","Af Blakemore/Blakemore Foodservice","5007832","-72.99","Provisions (Not for resale)","130127054","27/07/16","Learning Disability Provider","Duke Street Bungalows","R4101"
"Wolverhampton City Council","http://opendatacommunities.org/id/metropolitan-district-council/wolverhampton","Af Blakemore/Blakemore Foodservice","5007832","67.39","Provisions (Not for resale)","130127054","27/07/16","Learning Disability Provider","Duke Street Bungalows","R4101"
"Wolverhampton City Council","http://opendatacommunities.org/id/metropolitan-district-council/wolverhampton","Af Blakemore/Blakemore Foodservice","5007832","5.6","Provisions (Not for resale)","130127054","27/07/16","Learning Disability Provider","Duke Street Bungalows","R4101"
"Wolverhampton City Council","http://opendatacommunities.org/id/metropolitan-district-council/wolverhampton","Af Blakemore/Blakemore Foodservice","4868649","86.08","Provisions (Not for resale)","130126720","27/07/16","Learning Disability Provider","Duke Street Bungalows","R4101"
"Wolverhampton City Council","http://opendatacommunities.org/id/metropolitan-district-council/wolverhampton","Af Blakemore/Blakemore Foodservice","5009985","102.98","Provisions (Not for resale)","130127059","27/07/16","Learning Disability Provider","Duke Street Bungalows","R4101"
"Wolverhampton City Council","http://opendatacommunities.org/id/metropolitan-district-council/wolverhampton","Af Blakemore/Blakemore Foodservice","4900039","100.76","Provisions (Not for resale)","130126741","27/07/16","Learning Disability Provider","Duke Street Bungalows","R4101"
"Wolverhampton City Council","http://opendatacommunities.org/id/metropolitan-district-council/wolverhampton","Af Blakemore/Blakemore Foodservice","4900221","93.43","Provisions (Not for resale)","130126743","27/07/16","Learning Disability Provider","Duke Street Bungalows","R4101"
"Wolverhampton City Council","http://opendatacommunities.org/id/metropolitan-district-council/wolverhampton","Af Blakemore/Blakemore Foodservice","5009118","111.83","Provisions (Not for resale)","130127056","27/07/16","Learning Disability Provider","Duke Street Bungalows","R4101"
"Wolverhampton City Council","http://opendatacommunities.org/id/metropolitan-district-council/wolverhampton","Af Blakemore/Blakemore Foodservice","4324195","75.33","Provisions (Not for resale)","130123761","13/07/16","Learning Disability Provider","Duke Street Bungalows","R4101"
"Wolverhampton City Council","http://opendatacommunities.org/id/metropolitan-district-council/wolverhampton","Af Blakemore/Blakemore Foodservice","4758177","36.78","Provisions (Not for resale)","130123811","13/07/16","Older People Provider Services","Bradley Lodge Resource Centre","R4101"
"Wolverhampton City Council","http://opendatacommunities.org/id/metropolitan-district-council/wolverhampton","Af Blakemore/Blakemore Foodservice","4758177","-36.78","Provisions (Not for resale)","130123811","13/07/16","Older People Provider Services","Bradley Lodge Resource Centre","R4101"
"Wolverhampton City Council","http://opendatacommunities.org/id/metropolitan-district-council/wolverhampton","Af Blakemore/Blakemore Foodservice","4758177","31.53","Provisions (Not for resale)","130123811","13/07/16","Older People Provider Services","Bradley Lodge Resource Centre","R4101"
"Wolverhampton City Council","http://opendatacommunities.org/id/metropolitan-district-council/wolverhampton","Af Blakemore/Blakemore Foodservice","4758177","5.25","Provisions (Not for resale)","130123811","13/07/16","Older People Provider Services","Bradley Lodge Resource Centre","R4101"
"Wolverhampton City Council","http://opendatacommunities.org/id/metropolitan-district-council/wolverhampton","Af Blakemore/Blakemore Foodservice","4766179","14.67","Provisions (Not for resale)","130123592","13/07/16","Older People Provider Services","Bradley Lodge Resource Centre","R4101"
"Wolverhampton City Council","http://opendatacommunities.org/id/metropolitan-district-council/wolverhampton","Af Blakemore/Blakemore Foodservice","4766179","-14.67","Provisions (Not for resale)","130123592","13/07/16","Older People Provider Services","Bradley Lodge Resource Centre","R4101"
"Wolverhampton City Council","http://opendatacommunities.org/id/metropolitan-district-council/wolverhampton","Af Blakemore/Blakemore Foodservice","4766179","9.42","Provisions (Not for resale)","130123592","13/07/16","Older People Provider Services","Bradley Lodge Resource Centre","R4101"
"Wolverhampton City Council","http://opendatacommunities.org/id/metropolitan-district-council/wolverhampton","Af Blakemore/Blakemore Foodservice","4766179","5.25","Provisions (Not for resale)","130123592","13/07/16","Older People Provider Services","Bradley Lodge Resource Centre","R4101"
"Wolverhampton City Council","http://opendatacommunities.org/id/metropolitan-district-council/wolverhampton","Af Blakemore/Blakemore Foodservice","4813678","72.84","Provisions (Not for resale)","130126491","13/07/16","Older People Provider Services","Nelson Mandela House","R4101"
"Wolverhampton City Council","http://opendatacommunities.org/id/metropolitan-district-council/wolverhampton","Af Blakemore/Blakemore Foodservice","4826664","19.54","Provisions (Not for resale)","130126708","13/07/16","Older People Provider Services","Nelson Mandela House","R4101"
"Wolverhampton City Council","http://opendatacommunities.org/id/metropolitan-district-council/wolverhampton","Af Blakemore/Blakemore Foodservice","4779801","38.48","Provisions (Resale)","130126481","13/07/16","Learning Disability Provider","Community Enablement","R4102"
"Wolverhampton City Council","http://opendatacommunities.org/id/metropolitan-district-council/wolverhampton","Af Blakemore/Blakemore Foodservice","4779801","36.24","Provisions (Resale)","130126481","13/07/16","Learning Disability Provider","Community Enablement","R4102"
"Wolverhampton City Council","http://opendatacommunities.org/id/metropolitan-district-council/wolverhampton","Af Blakemore/Blakemore Foodservice","4925812","220.52","Provisions (Not for resale)","130126762","22/07/16","Learning Disability Provider","Duke Street Bungalows","R4101"
"Wolverhampton City Council","http://opendatacommunities.org/id/metropolitan-district-council/wolverhampton","Af Blakemore/Blakemore Foodservice","4813351","5.02","Provisions (Not for resale)","130126701","22/07/16","Learning Disability Provider","Duke Street Bungalows","R4101"
"Wolverhampton City Council","http://opendatacommunities.org/id/metropolitan-district-council/wolverhampton","Af Blakemore/Blakemore Foodservice","4813351","-5.02","Provisions (Not for resale)","130126701","22/07/16","Learning Disability Provider","Duke Street Bungalows","R4101"
"Wolverhampton City Council","http://opendatacommunities.org/id/metropolitan-district-council/wolverhampton","Af Blakemore/Blakemore Foodservice","4813351","5.02","Provisions (Not for resale)","130126701","22/07/16","Learning Disability Provider","Duke Street Bungalows","R4101"
"Wolverhampton City Council","http://opendatacommunities.org/id/metropolitan-district-council/wolverhampton","Af Blakemore/Blakemore Foodservice","4877941","11.68","Provisions (Resale)","130126723","08/07/16","Visitor Economy","Bantock - Tea Rooms","R4102"
"Wolverhampton City Council","http://opendatacommunities.org/id/metropolitan-district-council/wolverhampton","Af Blakemore/Blakemore Foodservice","4974792","42.54","Provisions (Resale)","130127038","08/07/16","Visitor Economy","Art Gallery Tea Room","R4102"
"Wolverhampton City Council","http://opendatacommunities.org/id/metropolitan-district-council/wolverhampton","Af Blakemore/Blakemore Foodservice","5022885","69.06","Provisions (Resale)","130127065","08/07/16","Visitor Economy","Art Gallery Tea Room","R4102"
"Wolverhampton City Council","http://opendatacommunities.org/id/metropolitan-district-council/wolverhampton","Af Blakemore/Blakemore Foodservice","4932332","24.21","Provisions (Resale)","130126766","08/07/16","Visitor Economy","Bantock - Tea Rooms","R4102"
"Wolverhampton City Council","http://opendatacommunities.org/id/metropolitan-district-council/wolverhampton","Af Blakemore/Blakemore Foodservice","5038894","7","Provisions (Resale)","130127082","08/07/16","Older People Provider Services","Bradley Lodge Resource Centre","R4102"
"Wolverhampton City Council","http://opendatacommunities.org/id/metropolitan-district-council/wolverhampton","Af Blakemore/Blakemore Foodservice","WCC000144","608.08","Provisions (Not for resale)","130124889","08/07/16","Leisure Services","WV Active Catering","R4101"
"Wolverhampton City Council","http://opendatacommunities.org/id/metropolitan-district-council/wolverhampton","Af Blakemore/Blakemore Foodservice","WCC000144","-608.08","Provisions (Not for resale)","130124889","08/07/16","Leisure Services","WV Active Catering","R4101"
"Wolverhampton City Council","http://opendatacommunities.org/id/metropolitan-district-council/wolverhampton","Af Blakemore/Blakemore Foodservice","WCC000144","173.11","Provisions (Not for resale)","130124889","08/07/16","Leisure Services","WV Active Catering","R4101"
"Wolverhampton City Council","http://opendatacommunities.org/id/metropolitan-district-council/wolverhampton","Af Blakemore/Blakemore Foodservice","WCC000144","434.97","Provisions (Not for resale)","130124889","08/07/16","Leisure Services","WV Active Catering","R4101"
"Wolverhampton City Council","http://opendatacommunities.org/id/metropolitan-district-council/wolverhampton","Af Blakemore/Blakemore Foodservice","WCC000145","72.24","Provisions (Not for resale)","130124890","08/07/16","Leisure Services","WV Active Catering","R4101"
"Wolverhampton City Council","http://opendatacommunities.org/id/metropolitan-district-council/wolverhampton","Af Blakemore/Blakemore Foodservice","WCA000022","1,140.35","Provisions (Not for resale)","130124888","08/07/16","Leisure Services","WV Active Catering","R4101"
"Wolverhampton City Council","http://opendatacommunities.org/id/metropolitan-district-council/wolverhampton","Af Blakemore/Blakemore Foodservice","WCA000022","396.28","Provisions (Not for resale)","130124888","08/07/16","Leisure Services","WV Active Catering","R4101"
"Wolverhampton City Council","http://opendatacommunities.org/id/metropolitan-district-council/wolverhampton","Af Blakemore/Blakemore Foodservice","4822895","219.3","Provisions (Resale)","130126494","08/07/16","Visitor Economy","Art Gallery Tea Room","R4102"
"Wolverhampton City Council","http://opendatacommunities.org/id/metropolitan-district-council/wolverhampton","Af Blakemore/Blakemore Foodservice","4825779","410.54","Provisions (Resale)","130126495","08/07/16","Visitor Economy","Bantock - Tea Rooms","R4102"
"Wolverhampton City Council","http://opendatacommunities.org/id/metropolitan-district-council/wolverhampton","Af Blakemore/Blakemore Foodservice","4825779","-410.54","Provisions (Resale)","130126495","08/07/16","Visitor Economy","Bantock - Tea Rooms","R4102"
"Wolverhampton City Council","http://opendatacommunities.org/id/metropolitan-district-council/wolverhampton","Af Blakemore/Blakemore Foodservice","4825779","217.44","Provisions (Resale)","130126495","08/07/16","Visitor Economy","Bantock - Tea Rooms","R4102"
"Wolverhampton City Council","http://opendatacommunities.org/id/metropolitan-district-council/wolverhampton","Af Blakemore/Blakemore Foodservice","4825779","193.1","Provisions (Resale)","130126495","08/07/16","Visitor Economy","Bantock - Tea Rooms","R4102"
"Wolverhampton City Council","http://opendatacommunities.org/id/metropolitan-district-council/wolverhampton","Af Blakemore/Blakemore Foodservice","4806295","471.53","Provisions (Resale)","130126490","08/07/16","Visitor Economy","Bantock - Tea Rooms","R4102"
"Wolverhampton City Council","http://opendatacommunities.org/id/metropolitan-district-council/wolverhampton","Af Blakemore/Blakemore Foodservice","4806295","-471.53","Provisions (Resale)","130126490","08/07/16","Visitor Economy","Bantock - Tea Rooms","R4102"
"Wolverhampton City Council","http://opendatacommunities.org/id/metropolitan-district-council/wolverhampton","Af Blakemore/Blakemore Foodservice","4806295","283.96","Provisions (Resale)","130126490","08/07/16","Visitor Economy","Bantock - Tea Rooms","R4102"
"Wolverhampton City Council","http://opendatacommunities.org/id/metropolitan-district-council/wolverhampton","Af Blakemore/Blakemore Foodservice","4806295","187.57","Provisions (Resale)","130126490","08/07/16","Visitor Economy","Bantock - Tea Rooms","R4102"
"Wolverhampton City Council","http://opendatacommunities.org/id/metropolitan-district-council/wolverhampton","Af Blakemore/Blakemore Foodservice","4816425","465.87","Provisions (Resale)","130126492","08/07/16","Visitor Economy","Bantock - Tea Rooms","R4102"
"Wolverhampton City Council","http://opendatacommunities.org/id/metropolitan-district-council/wolverhampton","Af Blakemore/Blakemore Foodservice","4816425","-465.87","Provisions (Resale)","130126492","08/07/16","Visitor Economy","Bantock - Tea Rooms","R4102"
"Wolverhampton City Council","http://opendatacommunities.org/id/metropolitan-district-council/wolverhampton","Af Blakemore/Blakemore Foodservice","4816425","276.66","Provisions (Resale)","130126492","08/07/16","Visitor Economy","Bantock - Tea Rooms","R4102"
"Wolverhampton City Council","http://opendatacommunities.org/id/metropolitan-district-council/wolverhampton","Af Blakemore/Blakemore Foodservice","4816425","189.21","Provisions (Resale)","130126492","08/07/16","Visitor Economy","Bantock - Tea Rooms","R4102"
"Wolverhampton City Council","http://opendatacommunities.org/id/metropolitan-district-council/wolverhampton","Af Blakemore/Blakemore Foodservice","4803416","-611.72","Provisions (Resale)","130126489","08/07/16","Visitor Economy","Art Gallery Tea Room","R4102"
"Wolverhampton City Council","http://opendatacommunities.org/id/metropolitan-district-council/wolverhampton","Af Blakemore/Blakemore Foodservice","4803416","323.81","Provisions (Resale)","130126489","08/07/16","Visitor Economy","Art Gallery Tea Room","R4102"
"Wolverhampton City Council","http://opendatacommunities.org/id/metropolitan-district-council/wolverhampton","Af Blakemore/Blakemore Foodservice","4803416","287.91","Provisions (Resale)","130126489","08/07/16","Visitor Economy","Art Gallery Tea Room","R4102"
"Wolverhampton City Council","http://opendatacommunities.org/id/metropolitan-district-council/wolverhampton","Af Blakemore/Blakemore Foodservice","4832972","319.09","Provisions (Resale)","130126497","08/07/16","Visitor Economy","Bantock - Tea Rooms","R4102"
"Wolverhampton City Council","http://opendatacommunities.org/id/metropolitan-district-council/wolverhampton","Af Blakemore/Blakemore Foodservice","4832972","-319.09","Provisions (Resale)","130126497","08/07/16","Visitor Economy","Bantock - Tea Rooms","R4102"
"Wolverhampton City Council","http://opendatacommunities.org/id/metropolitan-district-council/wolverhampton","Af Blakemore/Blakemore Foodservice","4832972","249.15","Provisions (Resale)","130126497","08/07/16","Visitor Economy","Bantock - Tea Rooms","R4102"
"Wolverhampton City Council","http://opendatacommunities.org/id/metropolitan-district-council/wolverhampton","Af Blakemore/Blakemore Foodservice","4832972","69.94","Provisions (Resale)","130126497","08/07/16","Visitor Economy","Bantock - Tea Rooms","R4102"
"Wolverhampton City Council","http://opendatacommunities.org/id/metropolitan-district-council/wolverhampton","Af Blakemore/Blakemore Foodservice","4838791","240.13","Provisions (Resale)","130126498","08/07/16","Visitor Economy","Art Gallery Tea Room","R4102"
"Wolverhampton City Council","http://opendatacommunities.org/id/metropolitan-district-council/wolverhampton","Af Blakemore/Blakemore Foodservice","4838791","-240.13","Provisions (Resale)","130126498","08/07/16","Visitor Economy","Art Gallery Tea Room","R4102"
"Wolverhampton City Council","http://opendatacommunities.org/id/metropolitan-district-council/wolverhampton","Af Blakemore/Blakemore Foodservice","4838791","176.75","Provisions (Resale)","130126498","08/07/16","Visitor Economy","Art Gallery Tea Room","R4102"
"Wolverhampton City Council","http://opendatacommunities.org/id/metropolitan-district-council/wolverhampton","Af Blakemore/Blakemore Foodservice","4838791","63.38","Provisions (Resale)","130126498","08/07/16","Visitor Economy","Art Gallery Tea Room","R4102"
"Wolverhampton City Council","http://opendatacommunities.org/id/metropolitan-district-council/wolverhampton","Af Blakemore/Blakemore Foodservice","4848821","257.96","Provisions (Resale)","130126501","08/07/16","Visitor Economy","Art Gallery Tea Room","R4102"
"Wolverhampton City Council","http://opendatacommunities.org/id/metropolitan-district-council/wolverhampton","Af Blakemore/Blakemore Foodservice","4848821","-257.96","Provisions (Resale)","130126501","08/07/16","Visitor Economy","Art Gallery Tea Room","R4102"
"Wolverhampton City Council","http://opendatacommunities.org/id/metropolitan-district-council/wolverhampton","Af Blakemore/Blakemore Foodservice","4848821","206.6","Provisions (Resale)","130126501","08/07/16","Visitor Economy","Art Gallery Tea Room","R4102"
"Wolverhampton City Council","http://opendatacommunities.org/id/metropolitan-district-council/wolverhampton","Af Blakemore/Blakemore Foodservice","4848821","51.36","Provisions (Resale)","130126501","08/07/16","Visitor Economy","Art Gallery Tea Room","R4102"
"Wolverhampton City Council","http://opendatacommunities.org/id/metropolitan-district-council/wolverhampton","Af Blakemore/Blakemore Foodservice","4801959","277.44","Provisions (Resale)","130126696","08/07/16","Visitor Economy","Bantock - Tea Rooms","R4102"
"Wolverhampton City Council","http://opendatacommunities.org/id/metropolitan-district-council/wolverhampton","Af Blakemore/Blakemore Foodservice","4801959","-277.44","Provisions (Resale)","130126696","08/07/16","Visitor Economy","Bantock - Tea Rooms","R4102"
"Wolverhampton City Council","http://opendatacommunities.org/id/metropolitan-district-council/wolverhampton","Af Blakemore/Blakemore Foodservice","4868856","313.93","Provisions (Resale)","130126504","08/07/16","Visitor Economy","Art Gallery Tea Room","R4102"
"Wolverhampton City Council","http://opendatacommunities.org/id/metropolitan-district-council/wolverhampton","Af Blakemore/Blakemore Foodservice","4861811","203.48","Provisions (Resale)","130126503","08/07/16","Visitor Economy","Bantock - Tea Rooms","R4102"
"Wolverhampton City Council","http://opendatacommunities.org/id/metropolitan-district-council/wolverhampton","Af Blakemore/Blakemore Foodservice","4861811","-203.48","Provisions (Resale)","130126503","08/07/16","Visitor Economy","Bantock - Tea Rooms","R4102"
"Wolverhampton City Council","http://opendatacommunities.org/id/metropolitan-district-council/wolverhampton","Af Blakemore/Blakemore Foodservice","4784054","101.3","Provisions (Resale)","130126690","08/07/16","Visitor Economy","Art Gallery Tea Room","R4102"
"Wolverhampton City Council","http://opendatacommunities.org/id/metropolitan-district-council/wolverhampton","Af Blakemore/Blakemore Foodservice","4784054","53.13","Provisions (Resale)","130126690","08/07/16","Visitor Economy","Art Gallery Tea Room","R4102"
"Wolverhampton City Council","http://opendatacommunities.org/id/metropolitan-district-council/wolverhampton","Af Blakemore/Blakemore Foodservice","4842055","152.6","Provisions (Resale)","130126499","08/07/16","Visitor Economy","Bantock - Tea Rooms","R4102"
"Wolverhampton City Council","http://opendatacommunities.org/id/metropolitan-district-council/wolverhampton","Af Blakemore/Blakemore Foodservice","4842055","-152.6","Provisions (Resale)","130126499","08/07/16","Visitor Economy","Bantock - Tea Rooms","R4102"
"Wolverhampton City Council","http://opendatacommunities.org/id/metropolitan-district-council/wolverhampton","Af Blakemore/Blakemore Foodservice","4842055","71.84","Provisions (Resale)","130126499","08/07/16","Visitor Economy","Bantock - Tea Rooms","R4102"
"Wolverhampton City Council","http://opendatacommunities.org/id/metropolitan-district-council/wolverhampton","Af Blakemore/Blakemore Foodservice","4842055","80.76","Provisions (Resale)","130126499","08/07/16","Visitor Economy","Bantock - Tea Rooms","R4102"
"Wolverhampton City Council","http://opendatacommunities.org/id/metropolitan-district-council/wolverhampton","Af Blakemore/Blakemore Foodservice","4861811","36.97","Provisions (Resale)","130126503","08/07/16","Visitor Economy","Bantock - Tea Rooms","R4102"
"Wolverhampton City Council","http://opendatacommunities.org/id/metropolitan-district-council/wolverhampton","Af Blakemore/Blakemore Foodservice","4856055","-9.22","Provisions (Resale)","130126716","08/07/16","Visitor Economy","Bantock - Tea Rooms","R4102"
"Wolverhampton City Council","http://opendatacommunities.org/id/metropolitan-district-council/wolverhampton","Af Blakemore/Blakemore Foodservice","4856055","9.22","Provisions (Resale)","130126716","08/07/16","Visitor Economy","Bantock - Tea Rooms","R4102"
"Wolverhampton City Council","http://opendatacommunities.org/id/metropolitan-district-council/wolverhampton","Af Blakemore/Blakemore Foodservice","4856055","-4.48","Provisions (Resale)","130126716","08/07/16","Visitor Economy","Bantock - Tea Rooms","R4102"
"Wolverhampton City Council","http://opendatacommunities.org/id/metropolitan-district-council/wolverhampton","Af Blakemore/Blakemore Foodservice","4856055","-4.74","Provisions (Resale)","130126716","08/07/16","Visitor Economy","Bantock - Tea Rooms","R4102"
"Wolverhampton City Council","http://opendatacommunities.org/id/metropolitan-district-council/wolverhampton","Af Blakemore/Blakemore Foodservice","4861811","166.51","Provisions (Resale)","130126503","08/07/16","Visitor Economy","Bantock - Tea Rooms","R4102"
"Wolverhampton City Council","http://opendatacommunities.org/id/metropolitan-district-council/wolverhampton","Af Blakemore/Blakemore Foodservice","4879041","211.9","Provisions (Resale)","130126508","08/07/16","Visitor Economy","Art Gallery Tea Room","R4102"
"Wolverhampton City Council","http://opendatacommunities.org/id/metropolitan-district-council/wolverhampton","Af Blakemore/Blakemore Foodservice","4879041","-211.9","Provisions (Resale)","130126508","08/07/16","Visitor Economy","Art Gallery Tea Room","R4102"
"Wolverhampton City Council","http://opendatacommunities.org/id/metropolitan-district-council/wolverhampton","Af Blakemore/Blakemore Foodservice","4879041","189.41","Provisions (Resale)","130126508","08/07/16","Visitor Economy","Art Gallery Tea Room","R4102"
"Wolverhampton City Council","http://opendatacommunities.org/id/metropolitan-district-council/wolverhampton","Af Blakemore/Blakemore Foodservice","4802776","-363.21","Provisions (Resale)","130126697","08/07/16","Visitor Economy","Bantock - Tea Rooms","R4102"
"Wolverhampton City Council","http://opendatacommunities.org/id/metropolitan-district-council/wolverhampton","Af Blakemore/Blakemore Foodservice","4802776","363.21","Provisions (Resale)","130126697","08/07/16","Visitor Economy","Bantock - Tea Rooms","R4102"
"Wolverhampton City Council","http://opendatacommunities.org/id/metropolitan-district-council/wolverhampton","Af Blakemore/Blakemore Foodservice","4802776","-194.99","Provisions (Resale)","130126697","08/07/16","Visitor Economy","Bantock - Tea Rooms","R4102"
"Wolverhampton City Council","http://opendatacommunities.org/id/metropolitan-district-council/wolverhampton","Af Blakemore/Blakemore Foodservice","4802776","-168.22","Provisions (Resale)","130126697","08/07/16","Visitor Economy","Bantock - Tea Rooms","R4102"
"Wolverhampton City Council","http://opendatacommunities.org/id/metropolitan-district-council/wolverhampton","Af Blakemore/Blakemore Foodservice","4872415","363.5","Provisions (Resale)","130126506","08/07/16","Visitor Economy","Bantock - Tea Rooms","R4102"
"Wolverhampton City Council","http://opendatacommunities.org/id/metropolitan-district-council/wolverhampton","Af Blakemore/Blakemore Foodservice","4872415","-363.5","Provisions (Resale)","130126506","08/07/16","Visitor Economy","Bantock - Tea Rooms","R4102"
"Wolverhampton City Council","http://opendatacommunities.org/id/metropolitan-district-council/wolverhampton","Af Blakemore/Blakemore Foodservice","4872415","266.35","Provisions (Resale)","130126506","08/07/16","Visitor Economy","Bantock - Tea Rooms","R4102"
"Wolverhampton City Council","http://opendatacommunities.org/id/metropolitan-district-council/wolverhampton","Af Blakemore/Blakemore Foodservice","4872415","97.15","Provisions (Resale)","130126506","08/07/16","Visitor Economy","Bantock - Tea Rooms","R4102"
"Wolverhampton City Council","http://opendatacommunities.org/id/metropolitan-district-council/wolverhampton","Af Blakemore/Blakemore Foodservice","4868856","-313.93","Provisions (Resale)","130126504","08/07/16","Visitor Economy","Art Gallery Tea Room","R4102"
"Wolverhampton City Council","http://opendatacommunities.org/id/metropolitan-district-council/wolverhampton","Af Blakemore/Blakemore Foodservice","4868856","207.9","Provisions (Resale)","130126504","08/07/16","Visitor Economy","Art Gallery Tea Room","R4102"
"Wolverhampton City Council","http://opendatacommunities.org/id/metropolitan-district-council/wolverhampton","Af Blakemore/Blakemore Foodservice","4868856","106.03","Provisions (Resale)","130126504","08/07/16","Visitor Economy","Art Gallery Tea Room","R4102"
"Wolverhampton City Council","http://opendatacommunities.org/id/metropolitan-district-council/wolverhampton","Af Blakemore/Blakemore Foodservice","4801959","109.22","Provisions (Resale)","130126696","08/07/16","Visitor Economy","Bantock - Tea Rooms","R4102"
"Wolverhampton City Council","http://opendatacommunities.org/id/metropolitan-district-council/wolverhampton","Af Blakemore/Blakemore Foodservice","4801959","168.22","Provisions (Resale)","130126696","08/07/16","Visitor Economy","Bantock - Tea Rooms","R4102"
"Wolverhampton City Council","http://opendatacommunities.org/id/metropolitan-district-council/wolverhampton","Af Blakemore/Blakemore Foodservice","4889139","264.85","Provisions (Resale)","130126730","08/07/16","Visitor Economy","Art Gallery Tea Room","R4102"
"Wolverhampton City Council","http://opendatacommunities.org/id/metropolitan-district-council/wolverhampton","Af Blakemore/Blakemore Foodservice","4879041","22.49","Provisions (Resale)","130126508","08/07/16","Visitor Economy","Art Gallery Tea Room","R4102"
"Wolverhampton City Council","http://opendatacommunities.org/id/metropolitan-district-council/wolverhampton","Af Blakemore/Blakemore Foodservice","4784054","154.43","Provisions (Resale)","130126690","08/07/16","Visitor Economy","Art Gallery Tea Room","R4102"
"Wolverhampton City Council","http://opendatacommunities.org/id/metropolitan-district-council/wolverhampton","Af Blakemore/Blakemore Foodservice","4784054","-154.43","Provisions (Resale)","130126690","08/07/16","Visitor Economy","Art Gallery Tea Room","R4102"
"Wolverhampton City Council","http://opendatacommunities.org/id/metropolitan-district-council/wolverhampton","Af Blakemore/Blakemore Foodservice","4891333","189.01","Provisions (Resale)","130126732","08/07/16","Visitor Economy","Bantock - Tea Rooms","R4102"
"Wolverhampton City Council","http://opendatacommunities.org/id/metropolitan-district-council/wolverhampton","Af Blakemore/Blakemore Foodservice","4891333","-189.01","Provisions (Resale)","130126732","08/07/16","Visitor Economy","Bantock - Tea Rooms","R4102"
"Wolverhampton City Council","http://opendatacommunities.org/id/metropolitan-district-council/wolverhampton","Af Blakemore/Blakemore Foodservice","4891333","158.67","Provisions (Resale)","130126732","08/07/16","Visitor Economy","Bantock - Tea Rooms","R4102"
"Wolverhampton City Council","http://opendatacommunities.org/id/metropolitan-district-council/wolverhampton","Af Blakemore/Blakemore Foodservice","4891333","30.34","Provisions (Resale)","130126732","08/07/16","Visitor Economy","Bantock - Tea Rooms","R4102"
"Wolverhampton City Council","http://opendatacommunities.org/id/metropolitan-district-council/wolverhampton","Af Blakemore/Blakemore Foodservice","4899816","163.74","Provisions (Resale)","130126738","08/07/16","Visitor Economy","Art Gallery Tea Room","R4102"
"Wolverhampton City Council","http://opendatacommunities.org/id/metropolitan-district-council/wolverhampton","Af Blakemore/Blakemore Foodservice","4899816","-163.74","Provisions (Resale)","130126738","08/07/16","Visitor Economy","Art Gallery Tea Room","R4102"
"Wolverhampton City Council","http://opendatacommunities.org/id/metropolitan-district-council/wolverhampton","Af Blakemore/Blakemore Foodservice","4899816","72.73","Provisions (Resale)","130126738","08/07/16","Visitor Economy","Art Gallery Tea Room","R4102"
"Wolverhampton City Council","http://opendatacommunities.org/id/metropolitan-district-council/wolverhampton","Af Blakemore/Blakemore Foodservice","4899816","91.01","Provisions (Resale)","130126738","08/07/16","Visitor Economy","Art Gallery Tea Room","R4102"
"Wolverhampton City Council","http://opendatacommunities.org/id/metropolitan-district-council/wolverhampton","Af Blakemore/Blakemore Foodservice","4906435","10.53","Provisions (Resale)","130126747","08/07/16","Visitor Economy","Bantock - Tea Rooms","R4102"
"Wolverhampton City Council","http://opendatacommunities.org/id/metropolitan-district-council/wolverhampton","Af Blakemore/Blakemore Foodservice","4900915","372.49","Provisions (Resale)","130126744","08/07/16","Visitor Economy","Bantock - Tea Rooms","R4102"
"Wolverhampton City Council","http://opendatacommunities.org/id/metropolitan-district-council/wolverhampton","Af Blakemore/Blakemore Foodservice","4900915","-372.49","Provisions (Resale)","130126744","08/07/16","Visitor Economy","Bantock - Tea Rooms","R4102"
"Wolverhampton City Council","http://opendatacommunities.org/id/metropolitan-district-council/wolverhampton","Af Blakemore/Blakemore Foodservice","4900915","258.34","Provisions (Resale)","130126744","08/07/16","Visitor Economy","Bantock - Tea Rooms","R4102"
"Wolverhampton City Council","http://opendatacommunities.org/id/metropolitan-district-council/wolverhampton","Af Blakemore/Blakemore Foodservice","4900915","114.15","Provisions (Resale)","130126744","08/07/16","Visitor Economy","Bantock - Tea Rooms","R4102"
"Wolverhampton City Council","http://opendatacommunities.org/id/metropolitan-district-council/wolverhampton","Af Blakemore/Blakemore Foodservice","4889139","-264.85","Provisions (Resale)","130126730","08/07/16","Visitor Economy","Art Gallery Tea Room","R4102"
"Wolverhampton City Council","http://opendatacommunities.org/id/metropolitan-district-council/wolverhampton","Af Blakemore/Blakemore Foodservice","4889139","203.21","Provisions (Resale)","130126730","08/07/16","Visitor Economy","Art Gallery Tea Room","R4102"
"Wolverhampton City Council","http://opendatacommunities.org/id/metropolitan-district-council/wolverhampton","Af Blakemore/Blakemore Foodservice","4889139","61.64","Provisions (Resale)","130126730","08/07/16","Visitor Economy","Art Gallery Tea Room","R4102"
"Wolverhampton City Council","http://opendatacommunities.org/id/metropolitan-district-council/wolverhampton","Af Blakemore/Blakemore Foodservice","4906438","316.99","Provisions (Resale)","130126748","08/07/16","Visitor Economy","Bantock - Tea Rooms","R4102"
"Wolverhampton City Council","http://opendatacommunities.org/id/metropolitan-district-council/wolverhampton","Af Blakemore/Blakemore Foodservice","4906438","-316.99","Provisions (Resale)","130126748","08/07/16","Visitor Economy","Bantock - Tea Rooms","R4102"
"Wolverhampton City Council","http://opendatacommunities.org/id/metropolitan-district-council/wolverhampton","Af Blakemore/Blakemore Foodservice","4906438","258.76","Provisions (Resale)","130126748","08/07/16","Visitor Economy","Bantock - Tea Rooms","R4102"
"Wolverhampton City Council","http://opendatacommunities.org/id/metropolitan-district-council/wolverhampton","Af Blakemore/Blakemore Foodservice","4906438","58.23","Provisions (Resale)","130126748","08/07/16","Visitor Economy","Bantock - Tea Rooms","R4102"
"Wolverhampton City Council","http://opendatacommunities.org/id/metropolitan-district-council/wolverhampton","Af Blakemore/Blakemore Foodservice","4934628","316.77","Provisions (Resale)","130126767","08/07/16","Visitor Economy","Art Gallery Tea Room","R4102"
"Wolverhampton City Council","http://opendatacommunities.org/id/metropolitan-district-council/wolverhampton","Af Blakemore/Blakemore Foodservice","4934628","-316.77","Provisions (Resale)","130126767","08/07/16","Visitor Economy","Art Gallery Tea Room","R4102"
"Wolverhampton City Council","http://opendatacommunities.org/id/metropolitan-district-council/wolverhampton","Af Blakemore/Blakemore Foodservice","4934628","200.41","Provisions (Resale)","130126767","08/07/16","Visitor Economy","Art Gallery Tea Room","R4102"
"Wolverhampton City Council","http://opendatacommunities.org/id/metropolitan-district-council/wolverhampton","Af Blakemore/Blakemore Foodservice","4916749","334.2","Provisions (Resale)","130126753","08/07/16","Visitor Economy","Art Gallery Tea Room","R4102"
"Wolverhampton City Council","http://opendatacommunities.org/id/metropolitan-district-council/wolverhampton","Af Blakemore/Blakemore Foodservice","4916749","-334.2","Provisions (Resale)","130126753","08/07/16","Visitor Economy","Art Gallery Tea Room","R4102"
"Wolverhampton City Council","http://opendatacommunities.org/id/metropolitan-district-council/wolverhampton","Af Blakemore/Blakemore Foodservice","4916749","273.51","Provisions (Resale)","130126753","08/07/16","Visitor Economy","Art Gallery Tea Room","R4102"
"Wolverhampton City Council","http://opendatacommunities.org/id/metropolitan-district-council/wolverhampton","Af Blakemore/Blakemore Foodservice","4916749","60.69","Provisions (Resale)","130126753","08/07/16","Visitor Economy","Art Gallery Tea Room","R4102"
"Wolverhampton City Council","http://opendatacommunities.org/id/metropolitan-district-council/wolverhampton","Af Blakemore/Blakemore Foodservice","4915009","245.74","Provisions (Resale)","130126752","08/07/16","Visitor Economy","Bantock - Tea Rooms","R4102"
"Wolverhampton City Council","http://opendatacommunities.org/id/metropolitan-district-council/wolverhampton","Af Blakemore/Blakemore Foodservice","4915009","-245.74","Provisions (Resale)","130126752","08/07/16","Visitor Economy","Bantock - Tea Rooms","R4102"
"Wolverhampton City Council","http://opendatacommunities.org/id/metropolitan-district-council/wolverhampton","Af Blakemore/Blakemore Foodservice","4915009","85.12","Provisions (Resale)","130126752","08/07/16","Visitor Economy","Bantock - Tea Rooms","R4102"
"Wolverhampton City Council","http://opendatacommunities.org/id/metropolitan-district-council/wolverhampton","Af Blakemore/Blakemore Foodservice","4915009","160.62","Provisions (Resale)","130126752","08/07/16","Visitor Economy","Bantock - Tea Rooms","R4102"
"Wolverhampton City Council","http://opendatacommunities.org/id/metropolitan-district-council/wolverhampton","Af Blakemore/Blakemore Foodservice","4925277","328.16","Provisions (Resale)","130126761","08/07/16","Visitor Economy","Art Gallery Tea Room","R4102"
"Wolverhampton City Council","http://opendatacommunities.org/id/metropolitan-district-council/wolverhampton","Af Blakemore/Blakemore Foodservice","4925277","-328.16","Provisions (Resale)","130126761","08/07/16","Visitor Economy","Art Gallery Tea Room","R4102"
"Wolverhampton City Council","http://opendatacommunities.org/id/metropolitan-district-council/wolverhampton","Af Blakemore/Blakemore Foodservice","4925277","212.73","Provisions (Resale)","130126761","08/07/16","Visitor Economy","Art Gallery Tea Room","R4102"
"Wolverhampton City Council","http://opendatacommunities.org/id/metropolitan-district-council/wolverhampton","Af Blakemore/Blakemore Foodservice","4925277","115.43","Provisions (Resale)","130126761","08/07/16","Visitor Economy","Art Gallery Tea Room","R4102"
"Wolverhampton City Council","http://opendatacommunities.org/id/metropolitan-district-council/wolverhampton","Af Blakemore/Blakemore Foodservice","4923368","220.97","Provisions (Resale)","130126759","08/07/16","Visitor Economy","Bantock - Tea Rooms","R4102"
"Wolverhampton City Council","http://opendatacommunities.org/id/metropolitan-district-council/wolverhampton","Af Blakemore/Blakemore Foodservice","4923368","-220.97","Provisions (Resale)","130126759","08/07/16","Visitor Economy","Bantock - Tea Rooms","R4102"
"Wolverhampton City Council","http://opendatacommunities.org/id/metropolitan-district-council/wolverhampton","Af Blakemore/Blakemore Foodservice","4923368","195.95","Provisions (Resale)","130126759","08/07/16","Visitor Economy","Bantock - Tea Rooms","R4102"
"Wolverhampton City Council","http://opendatacommunities.org/id/metropolitan-district-council/wolverhampton","Af Blakemore/Blakemore Foodservice","4923368","25.02","Provisions (Resale)","130126759","08/07/16","Visitor Economy","Bantock - Tea Rooms","R4102"
"Wolverhampton City Council","http://opendatacommunities.org/id/metropolitan-district-council/wolverhampton","Af Blakemore/Blakemore Foodservice","4888309","11.68","Provisions (Resale)","130127010","08/07/16","Visitor Economy","Bantock - Tea Rooms","R4102"
"Wolverhampton City Council","http://opendatacommunities.org/id/metropolitan-district-council/wolverhampton","Af Blakemore/Blakemore Foodservice","4959241","375.91","Provisions (Resale)","130127022","08/07/16","Visitor Economy","Bantock - Tea Rooms","R4102"
"Wolverhampton City Council","http://opendatacommunities.org/id/metropolitan-district-council/wolverhampton","Af Blakemore/Blakemore Foodservice","4959241","-375.91","Provisions (Resale)","130127022","08/07/16","Visitor Economy","Bantock - Tea Rooms","R4102"
"Wolverhampton City Council","http://opendatacommunities.org/id/metropolitan-district-council/wolverhampton","Af Blakemore/Blakemore Foodservice","4959241","281.01","Provisions (Resale)","130127022","08/07/16","Visitor Economy","Bantock - Tea Rooms","R4102"
"Wolverhampton City Council","http://opendatacommunities.org/id/metropolitan-district-council/wolverhampton","Af Blakemore/Blakemore Foodservice","4959241","94.9","Provisions (Resale)","130127022","08/07/16","Visitor Economy","Bantock - Tea Rooms","R4102"
"Wolverhampton City Council","http://opendatacommunities.org/id/metropolitan-district-council/wolverhampton","Af Blakemore/Blakemore Foodservice","4943402","412.84","Provisions (Resale)","130127015","08/07/16","Visitor Economy","Art Gallery Tea Room","R4102"
"Wolverhampton City Council","http://opendatacommunities.org/id/metropolitan-district-council/wolverhampton","Af Blakemore/Blakemore Foodservice","4943402","-412.84","Provisions (Resale)","130127015","08/07/16","Visitor Economy","Art Gallery Tea Room","R4102"
"Wolverhampton City Council","http://opendatacommunities.org/id/metropolitan-district-council/wolverhampton","Af Blakemore/Blakemore Foodservice","4943402","334.6","Provisions (Resale)","130127015","08/07/16","Visitor Economy","Art Gallery Tea Room","R4102"
"Wolverhampton City Council","http://opendatacommunities.org/id/metropolitan-district-council/wolverhampton","Af Blakemore/Blakemore Foodservice","4943402","78.24","Provisions (Resale)","130127015","08/07/16","Visitor Economy","Art Gallery Tea Room","R4102"
"Wolverhampton City Council","http://opendatacommunities.org/id/metropolitan-district-council/wolverhampton","Af Blakemore/Blakemore Foodservice","4967608","258.57","Provisions (Resale)","130127030","08/07/16","Visitor Economy","Art Gallery Tea Room","R4102"
"Wolverhampton City Council","http://opendatacommunities.org/id/metropolitan-district-council/wolverhampton","Af Blakemore/Blakemore Foodservice","4967608","-258.57","Provisions (Resale)","130127030","08/07/16","Visitor Economy","Art Gallery Tea Room","R4102"
"Wolverhampton City Council","http://opendatacommunities.org/id/metropolitan-district-council/wolverhampton","Af Blakemore/Blakemore Foodservice","4967608","113.24","Provisions (Resale)","130127030","08/07/16","Visitor Economy","Art Gallery Tea Room","R4102"
"Wolverhampton City Council","http://opendatacommunities.org/id/metropolitan-district-council/wolverhampton","Af Blakemore/Blakemore Foodservice","4950242","246","Provisions (Resale)","130127016","08/07/16","Visitor Economy","Bantock - Tea Rooms","R4102"
"Wolverhampton City Council","http://opendatacommunities.org/id/metropolitan-district-council/wolverhampton","Af Blakemore/Blakemore Foodservice","4950242","-246","Provisions (Resale)","130127016","08/07/16","Visitor Economy","Bantock - Tea Rooms","R4102"
"Wolverhampton City Council","http://opendatacommunities.org/id/metropolitan-district-council/wolverhampton","Af Blakemore/Blakemore Foodservice","4950242","182.64","Provisions (Resale)","130127016","08/07/16","Visitor Economy","Bantock - Tea Rooms","R4102"
"Wolverhampton City Council","http://opendatacommunities.org/id/metropolitan-district-council/wolverhampton","Af Blakemore/Blakemore Foodservice","4950242","63.36","Provisions (Resale)","130127016","08/07/16","Visitor Economy","Bantock - Tea Rooms","R4102"
"Wolverhampton City Council","http://opendatacommunities.org/id/metropolitan-district-council/wolverhampton","Af Blakemore/Blakemore Foodservice","4934628","116.36","Provisions (Resale)","130126767","08/07/16","Visitor Economy","Art Gallery Tea Room","R4102"
"Wolverhampton City Council","http://opendatacommunities.org/id/metropolitan-district-council/wolverhampton","Af Blakemore/Blakemore Foodservice","4942071","494.29","Provisions (Resale)","130127011","08/07/16","Visitor Economy","Bantock - Tea Rooms","R4102"
"Wolverhampton City Council","http://opendatacommunities.org/id/metropolitan-district-council/wolverhampton","Af Blakemore/Blakemore Foodservice","4942071","-494.29","Provisions (Resale)","130127011","08/07/16","Visitor Economy","Bantock - Tea Rooms","R4102"
"Wolverhampton City Council","http://opendatacommunities.org/id/metropolitan-district-council/wolverhampton","Af Blakemore/Blakemore Foodservice","4942071","286.23","Provisions (Resale)","130127011","08/07/16","Visitor Economy","Bantock - Tea Rooms","R4102"
"Wolverhampton City Council","http://opendatacommunities.org/id/metropolitan-district-council/wolverhampton","Af Blakemore/Blakemore Foodservice","4942071","208.06","Provisions (Resale)","130127011","08/07/16","Visitor Economy","Bantock - Tea Rooms","R4102"
"Wolverhampton City Council","http://opendatacommunities.org/id/metropolitan-district-council/wolverhampton","Af Blakemore/Blakemore Foodservice","4983634","431.31","Provisions (Resale)","130127043","08/07/16","Visitor Economy","Art Gallery Tea Room","R4102"
"Wolverhampton City Council","http://opendatacommunities.org/id/metropolitan-district-council/wolverhampton","Af Blakemore/Blakemore Foodservice","4983634","-431.31","Provisions (Resale)","130127043","08/07/16","Visitor Economy","Art Gallery Tea Room","R4102"
"Wolverhampton City Council","http://opendatacommunities.org/id/metropolitan-district-council/wolverhampton","Af Blakemore/Blakemore Foodservice","4967608","145.33","Provisions (Resale)","130127030","08/07/16","Visitor Economy","Art Gallery Tea Room","R4102"
"Wolverhampton City Council","http://opendatacommunities.org/id/metropolitan-district-council/wolverhampton","Af Blakemore/Blakemore Foodservice","4756742","101.86","Provisions (Resale)","130123808","08/07/16","Visitor Economy","Art Gallery Tea Room","R4102"
"Wolverhampton City Council","http://opendatacommunities.org/id/metropolitan-district-council/wolverhampton","Af Blakemore/Blakemore Foodservice","4974773","359.69","Provisions (Resale)","130127037","08/07/16","Visitor Economy","Art Gallery Tea Room","R4102"
"Wolverhampton City Council","http://opendatacommunities.org/id/metropolitan-district-council/wolverhampton","Af Blakemore/Blakemore Foodservice","4974773","-359.69","Provisions (Resale)","130127037","08/07/16","Visitor Economy","Art Gallery Tea Room","R4102"
"Wolverhampton City Council","http://opendatacommunities.org/id/metropolitan-district-council/wolverhampton","Af Blakemore/Blakemore Foodservice","4974773","251.76","Provisions (Resale)","130127037","08/07/16","Visitor Economy","Art Gallery Tea Room","R4102"
"Wolverhampton City Council","http://opendatacommunities.org/id/metropolitan-district-council/wolverhampton","Af Blakemore/Blakemore Foodservice","4974773","107.93","Provisions (Resale)","130127037","08/07/16","Visitor Economy","Art Gallery Tea Room","R4102"
"Wolverhampton City Council","http://opendatacommunities.org/id/metropolitan-district-council/wolverhampton","Af Blakemore/Blakemore Foodservice","4975983","348.74","Provisions (Resale)","130127041","08/07/16","Visitor Economy","Bantock - Tea Rooms","R4102"
"Wolverhampton City Council","http://opendatacommunities.org/id/metropolitan-district-council/wolverhampton","Af Blakemore/Blakemore Foodservice","4975983","-348.74","Provisions (Resale)","130127041","08/07/16","Visitor Economy","Bantock - Tea Rooms","R4102"
"Wolverhampton City Council","http://opendatacommunities.org/id/metropolitan-district-council/wolverhampton","Af Blakemore/Blakemore Foodservice","4975983","296.53","Provisions (Resale)","130127041","08/07/16","Visitor Economy","Bantock - Tea Rooms","R4102"
"Wolverhampton City Council","http://opendatacommunities.org/id/metropolitan-district-council/wolverhampton","Af Blakemore/Blakemore Foodservice","4975983","52.21","Provisions (Resale)","130127041","08/07/16","Visitor Economy","Bantock - Tea Rooms","R4102"
"Wolverhampton City Council","http://opendatacommunities.org/id/metropolitan-district-council/wolverhampton","Af Blakemore/Blakemore Foodservice","5028055","76.24","Provisions (Resale)","130127069","08/07/16","Visitor Economy","Art Gallery Tea Room","R4102"
"Wolverhampton City Council","http://opendatacommunities.org/id/metropolitan-district-council/wolverhampton","Af Blakemore/Blakemore Foodservice","5028055","62.98","Provisions (Resale)","130127069","08/07/16","Visitor Economy","Art Gallery Tea Room","R4102"
"Wolverhampton City Council","http://opendatacommunities.org/id/metropolitan-district-council/wolverhampton","Af Blakemore/Blakemore Foodservice","4990233","266.19","Provisions (Resale)","130127046","08/07/16","Visitor Economy","Bantock - Tea Rooms","R4102"
"Wolverhampton City Council","http://opendatacommunities.org/id/metropolitan-district-council/wolverhampton","Af Blakemore/Blakemore Foodservice","4990233","-266.19","Provisions (Resale)","130127046","08/07/16","Visitor Economy","Bantock - Tea Rooms","R4102"
"Wolverhampton City Council","http://opendatacommunities.org/id/metropolitan-district-council/wolverhampton","Af Blakemore/Blakemore Foodservice","4990233","261.26","Provisions (Resale)","130127046","08/07/16","Visitor Economy","Bantock - Tea Rooms","R4102"
"Wolverhampton City Council","http://opendatacommunities.org/id/metropolitan-district-council/wolverhampton","Af Blakemore/Blakemore Foodservice","4990233","4.93","Provisions (Resale)","130127046","08/07/16","Visitor Economy","Bantock - Tea Rooms","R4102"
"Wolverhampton City Council","http://opendatacommunities.org/id/metropolitan-district-council/wolverhampton","Af Blakemore/Blakemore Foodservice","4983634","266.54","Provisions (Resale)","130127043","08/07/16","Visitor Economy","Art Gallery Tea Room","R4102"
"Wolverhampton City Council","http://opendatacommunities.org/id/metropolitan-district-council/wolverhampton","Af Blakemore/Blakemore Foodservice","4983634","164.77","Provisions (Resale)","130127043","08/07/16","Visitor Economy","Art Gallery Tea Room","R4102"
"Wolverhampton City Council","http://opendatacommunities.org/id/metropolitan-district-council/wolverhampton","Af Blakemore/Blakemore Foodservice","4999974","276.78","Provisions (Resale)","130127048","08/07/16","Visitor Economy","Bantock - Tea Rooms","R4102"
"Wolverhampton City Council","http://opendatacommunities.org/id/metropolitan-district-council/wolverhampton","Af Blakemore/Blakemore Foodservice","4999974","-276.78","Provisions (Resale)","130127048","08/07/16","Visitor Economy","Bantock - Tea Rooms","R4102"
"Wolverhampton City Council","http://opendatacommunities.org/id/metropolitan-district-council/wolverhampton","Af Blakemore/Blakemore Foodservice","4999974","111.65","Provisions (Resale)","130127048","08/07/16","Visitor Economy","Bantock - Tea Rooms","R4102"
"Wolverhampton City Council","http://opendatacommunities.org/id/metropolitan-district-council/wolverhampton","Af Blakemore/Blakemore Foodservice","4999974","165.13","Provisions (Resale)","130127048","08/07/16","Visitor Economy","Bantock - Tea Rooms","R4102"
"Wolverhampton City Council","http://opendatacommunities.org/id/metropolitan-district-council/wolverhampton","Af Blakemore/Blakemore Foodservice","5015222","454.61","Provisions (Resale)","130127061","08/07/16","Visitor Economy","Bantock - Tea Rooms","R4102"
"Wolverhampton City Council","http://opendatacommunities.org/id/metropolitan-district-council/wolverhampton","Af Blakemore/Blakemore Foodservice","5015222","-454.61","Provisions (Resale)","130127061","08/07/16","Visitor Economy","Bantock - Tea Rooms","R4102"
"Wolverhampton City Council","http://opendatacommunities.org/id/metropolitan-district-council/wolverhampton","Af Blakemore/Blakemore Foodservice","5015222","225.3","Provisions (Resale)","130127061","08/07/16","Visitor Economy","Bantock - Tea Rooms","R4102"
"Wolverhampton City Council","http://opendatacommunities.org/id/metropolitan-district-council/wolverhampton","Af Blakemore/Blakemore Foodservice","5015222","229.31","Provisions (Resale)","130127061","08/07/16","Visitor Economy","Bantock - Tea Rooms","R4102"
"Wolverhampton City Council","http://opendatacommunities.org/id/metropolitan-district-council/wolverhampton","Af Blakemore/Blakemore Foodservice","5009335","469.8","Provisions (Resale)","130127057","08/07/16","Visitor Economy","Bantock - Tea Rooms","R4102"
"Wolverhampton City Council","http://opendatacommunities.org/id/metropolitan-district-council/wolverhampton","Af Blakemore/Blakemore Foodservice","5009335","-469.8","Provisions (Resale)","130127057","08/07/16","Visitor Economy","Bantock - Tea Rooms","R4102"
"Wolverhampton City Council","http://opendatacommunities.org/id/metropolitan-district-council/wolverhampton","Af Blakemore/Blakemore Foodservice","5009335","194.07","Provisions (Resale)","130127057","08/07/16","Visitor Economy","Bantock - Tea Rooms","R4102"
"Wolverhampton City Council","http://opendatacommunities.org/id/metropolitan-district-council/wolverhampton","Af Blakemore/Blakemore Foodservice","5009335","275.73","Provisions (Resale)","130127057","08/07/16","Visitor Economy","Bantock - Tea Rooms","R4102"
"Wolverhampton City Council","http://opendatacommunities.org/id/metropolitan-district-council/wolverhampton","Af Blakemore/Blakemore Foodservice","5010779","281.18","Provisions (Resale)","130127060","08/07/16","Visitor Economy","Art Gallery Tea Room","R4102"
"Wolverhampton City Council","http://opendatacommunities.org/id/metropolitan-district-council/wolverhampton","Af Blakemore/Blakemore Foodservice","5010779","-281.18","Provisions (Resale)","130127060","08/07/16","Visitor Economy","Art Gallery Tea Room","R4102"
"Wolverhampton City Council","http://opendatacommunities.org/id/metropolitan-district-council/wolverhampton","Af Blakemore/Blakemore Foodservice","5010779","173.39","Provisions (Resale)","130127060","08/07/16","Visitor Economy","Art Gallery Tea Room","R4102"
"Wolverhampton City Council","http://opendatacommunities.org/id/metropolitan-district-council/wolverhampton","Af Blakemore/Blakemore Foodservice","5010779","107.79","Provisions (Resale)","130127060","08/07/16","Visitor Economy","Art Gallery Tea Room","R4102"
"Wolverhampton City Council","http://opendatacommunities.org/id/metropolitan-district-council/wolverhampton","Af Blakemore/Blakemore Foodservice","5017232","337.57","Provisions (Resale)","130127062","08/07/16","Visitor Economy","Bantock - Tea Rooms","R4102"
"Wolverhampton City Council","http://opendatacommunities.org/id/metropolitan-district-council/wolverhampton","Af Blakemore/Blakemore Foodservice","5017232","-337.57","Provisions (Resale)","130127062","08/07/16","Visitor Economy","Bantock - Tea Rooms","R4102"
"Wolverhampton City Council","http://opendatacommunities.org/id/metropolitan-district-council/wolverhampton","Af Blakemore/Blakemore Foodservice","5017232","199.47","Provisions (Resale)","130127062","08/07/16","Visitor Economy","Bantock - Tea Rooms","R4102"
"Wolverhampton City Council","http://opendatacommunities.org/id/metropolitan-district-council/wolverhampton","Af Blakemore/Blakemore Foodservice","5017232","138.1","Provisions (Resale)","130127062","08/07/16","Visitor Economy","Bantock - Tea Rooms","R4102"
"Wolverhampton City Council","http://opendatacommunities.org/id/metropolitan-district-council/wolverhampton","Af Blakemore/Blakemore Foodservice","5002231","367.78","Provisions (Resale)","130127049","08/07/16","Visitor Economy","Art Gallery Tea Room","R4102"
"Wolverhampton City Council","http://opendatacommunities.org/id/metropolitan-district-council/wolverhampton","Af Blakemore/Blakemore Foodservice","5002231","-367.78","Provisions (Resale)","130127049","08/07/16","Visitor Economy","Art Gallery Tea Room","R4102"
"Wolverhampton City Council","http://opendatacommunities.org/id/metropolitan-district-council/wolverhampton","Af Blakemore/Blakemore Foodservice","5002231","223.58","Provisions (Resale)","130127049","08/07/16","Visitor Economy","Art Gallery Tea Room","R4102"
"Wolverhampton City Council","http://opendatacommunities.org/id/metropolitan-district-council/wolverhampton","Af Blakemore/Blakemore Foodservice","5002231","144.2","Provisions (Resale)","130127049","08/07/16","Visitor Economy","Art Gallery Tea Room","R4102"
"Wolverhampton City Council","http://opendatacommunities.org/id/metropolitan-district-council/wolverhampton","Af Blakemore/Blakemore Foodservice","5028055","139.22","Provisions (Resale)","130127069","08/07/16","Visitor Economy","Art Gallery Tea Room","R4102"
"Wolverhampton City Council","http://opendatacommunities.org/id/metropolitan-district-council/wolverhampton","Af Blakemore/Blakemore Foodservice","5028055","-139.22","Provisions (Resale)","130127069","08/07/16","Visitor Economy","Art Gallery Tea Room","R4102"
"Wolverhampton City Council","http://opendatacommunities.org/id/metropolitan-district-council/wolverhampton","Af Blakemore/Blakemore Foodservice","4756742","406.99","Provisions (Resale)","130123808","08/07/16","Visitor Economy","Art Gallery Tea Room","R4102"
"Wolverhampton City Council","http://opendatacommunities.org/id/metropolitan-district-council/wolverhampton","Af Blakemore/Blakemore Foodservice","4756742","-406.99","Provisions (Resale)","130123808","08/07/16","Visitor Economy","Art Gallery Tea Room","R4102"
"Wolverhampton City Council","http://opendatacommunities.org/id/metropolitan-district-council/wolverhampton","Af Blakemore/Blakemore Foodservice","4756742","305.13","Provisions (Resale)","130123808","08/07/16","Visitor Economy","Art Gallery Tea Room","R4102"
"Wolverhampton City Council","http://opendatacommunities.org/id/metropolitan-district-council/wolverhampton","Af Blakemore/Blakemore Foodservice","2549561","103.26","Provisions (Resale)","130126313","08/07/16","Visitor Economy","The Little Civic","R4102"
"Wolverhampton City Council","http://opendatacommunities.org/id/metropolitan-district-council/wolverhampton","Af Blakemore/Blakemore Foodservice","2549561","-103.26","Provisions (Resale)","130126313","08/07/16","Visitor Economy","The Little Civic","R4102"
"Wolverhampton City Council","http://opendatacommunities.org/id/metropolitan-district-council/wolverhampton","Af Blakemore/Blakemore Foodservice","2549561","91.59","Provisions (Resale)","130126313","08/07/16","Visitor Economy","The Little Civic","R4102"
"Wolverhampton City Council","http://opendatacommunities.org/id/metropolitan-district-council/wolverhampton","Af Blakemore/Blakemore Foodservice","2549561","11.67","Provisions (Resale)","130126313","08/07/16","Visitor Economy","The Little Civic","R4102"
"Wolverhampton City Council","http://opendatacommunities.org/id/metropolitan-district-council/wolverhampton","Af Blakemore/Blakemore Foodservice","4774837","243.2","Provisions (Resale)","130126479","08/07/16","Visitor Economy","Art Gallery Tea Room","R4102"
"Wolverhampton City Council","http://opendatacommunities.org/id/metropolitan-district-council/wolverhampton","Af Blakemore/Blakemore Foodservice","4774837","-243.2","Provisions (Resale)","130126479","08/07/16","Visitor Economy","Art Gallery Tea Room","R4102"
"Wolverhampton City Council","http://opendatacommunities.org/id/metropolitan-district-council/wolverhampton","Af Blakemore/Blakemore Foodservice","4774837","187.9","Provisions (Resale)","130126479","08/07/16","Visitor Economy","Art Gallery Tea Room","R4102"
"Wolverhampton City Council","http://opendatacommunities.org/id/metropolitan-district-council/wolverhampton","Af Blakemore/Blakemore Foodservice","4774837","55.3","Provisions (Resale)","130126479","08/07/16","Visitor Economy","Art Gallery Tea Room","R4102"
"Wolverhampton City Council","http://opendatacommunities.org/id/metropolitan-district-council/wolverhampton","Af Blakemore/Blakemore Foodservice","4803416","611.72","Provisions (Resale)","130126489","08/07/16","Visitor Economy","Art Gallery Tea Room","R4102"
"Wolverhampton City Council","http://opendatacommunities.org/id/metropolitan-district-council/wolverhampton","Af Blakemore/Blakemore Foodservice","4797071","363.21","Provisions (Resale)","130126487","08/07/16","Visitor Economy","Bantock - Tea Rooms","R4102"
"Wolverhampton City Council","http://opendatacommunities.org/id/metropolitan-district-council/wolverhampton","Af Blakemore/Blakemore Foodservice","4797071","-363.21","Provisions (Resale)","130126487","08/07/16","Visitor Economy","Bantock - Tea Rooms","R4102"
"Wolverhampton City Council","http://opendatacommunities.org/id/metropolitan-district-council/wolverhampton","Af Blakemore/Blakemore Foodservice","4797071","168.22","Provisions (Resale)","130126487","08/07/16","Visitor Economy","Bantock - Tea Rooms","R4102"
"Wolverhampton City Council","http://opendatacommunities.org/id/metropolitan-district-council/wolverhampton","Af Blakemore/Blakemore Foodservice","4797071","194.99","Provisions (Resale)","130126487","08/07/16","Visitor Economy","Bantock - Tea Rooms","R4102"
"Wolverhampton City Council","http://opendatacommunities.org/id/metropolitan-district-council/wolverhampton","Af Blakemore/Blakemore Foodservice","4777598","381.41","Provisions (Resale)","130126480","08/07/16","Visitor Economy","Bantock - Tea Rooms","R4102"
"Wolverhampton City Council","http://opendatacommunities.org/id/metropolitan-district-council/wolverhampton","Af Blakemore/Blakemore Foodservice","4777598","-381.41","Provisions (Resale)","130126480","08/07/16","Visitor Economy","Bantock - Tea Rooms","R4102"
"Wolverhampton City Council","http://opendatacommunities.org/id/metropolitan-district-council/wolverhampton","Af Blakemore/Blakemore Foodservice","4777598","276.49","Provisions (Resale)","130126480","08/07/16","Visitor Economy","Bantock - Tea Rooms","R4102"
"Wolverhampton City Council","http://opendatacommunities.org/id/metropolitan-district-council/wolverhampton","Af Blakemore/Blakemore Foodservice","4777598","104.92","Provisions (Resale)","130126480","08/07/16","Visitor Economy","Bantock - Tea Rooms","R4102"
"Wolverhampton City Council","http://opendatacommunities.org/id/metropolitan-district-council/wolverhampton","Af Blakemore/Blakemore Foodservice","4957885","-3.1","Provisions (Resale)","130127297","06/07/16","Visitor Economy","Art Gallery Tea Room","R4102"
"Wolverhampton City Council","http://opendatacommunities.org/id/metropolitan-district-council/wolverhampton","Af Blakemore/Blakemore Foodservice","2542126","98.83","Provisions (Resale)","130126311","06/07/16","Visitor Economy","The Little Civic","R4102"
"Wolverhampton City Council","http://opendatacommunities.org/id/metropolitan-district-council/wolverhampton","Af Blakemore/Blakemore Foodservice","5029887","220.74","Provisions (Resale)","130127073","06/07/16","Visitor Economy","Art Gallery Tea Room","R4102"
"Wolverhampton City Council","http://opendatacommunities.org/id/metropolitan-district-council/wolverhampton","Af Blakemore/Blakemore Foodservice","4768032","627.35","Provisions (Resale)","130126476","06/07/16","Visitor Economy","Bantock - Tea Rooms","R4102"
"Wolverhampton City Council","http://opendatacommunities.org/id/metropolitan-district-council/wolverhampton","Af Blakemore/Blakemore Foodservice","4768032","-627.35","Provisions (Resale)","130126476","06/07/16","Visitor Economy","Bantock - Tea Rooms","R4102"
"Wolverhampton City Council","http://opendatacommunities.org/id/metropolitan-district-council/wolverhampton","Af Blakemore/Blakemore Foodservice","4768032","341.86","Provisions (Resale)","130126476","06/07/16","Visitor Economy","Bantock - Tea Rooms","R4102"
"Wolverhampton City Council","http://opendatacommunities.org/id/metropolitan-district-council/wolverhampton","Af Blakemore/Blakemore Foodservice","4768032","285.49","Provisions (Resale)","130126476","06/07/16","Visitor Economy","Bantock - Tea Rooms","R4102"
"Wolverhampton City Council","http://opendatacommunities.org/id/metropolitan-district-council/wolverhampton","Af Blakemore/Blakemore Foodservice","4793701","183.73","Provisions (Resale)","130126484","06/07/16","Visitor Economy","Art Gallery Tea Room","R4102"
"Wolverhampton City Council","http://opendatacommunities.org/id/metropolitan-district-council/wolverhampton","Af Blakemore/Blakemore Foodservice","5070950","19.27","Provisions (Resale)","130125040","06/07/16","Parking Services","Shopmobility","R4102"
"Wolverhampton City Council","http://opendatacommunities.org/id/metropolitan-district-council/wolverhampton","Af Blakemore/Blakemore Foodservice","4866946","-2.7","Provisions (Resale)","130126717","06/07/16","Visitor Economy","Bantock - Tea Rooms","R4102"
"Wolverhampton City Council","http://opendatacommunities.org/id/metropolitan-district-council/wolverhampton","Af Blakemore/Blakemore Foodservice","4898769","-11.68","Provisions (Resale)","130126737","06/07/16","Visitor Economy","Bantock - Tea Rooms","R4102"
"Wolverhampton City Council","http://opendatacommunities.org/id/metropolitan-district-council/wolverhampton","Af Blakemore/Blakemore Foodservice","2547959","83.86","Provisions (Resale)","130126312","06/07/16","Visitor Economy","Art Gallery Tea Room","R4102"
"Wolverhampton City Council","http://opendatacommunities.org/id/metropolitan-district-council/wolverhampton","Af Blakemore/Blakemore Foodservice","2547959","-83.86","Provisions (Resale)","130126312","06/07/16","Visitor Economy","Art Gallery Tea Room","R4102"
"Wolverhampton City Council","http://opendatacommunities.org/id/metropolitan-district-council/wolverhampton","Af Blakemore/Blakemore Foodservice","2547959","18.56","Provisions (Resale)","130126312","06/07/16","Visitor Economy","Art Gallery Tea Room","R4102"
"Wolverhampton City Council","http://opendatacommunities.org/id/metropolitan-district-council/wolverhampton","Af Blakemore/Blakemore Foodservice","2547959","65.3","Provisions (Resale)","130126312","06/07/16","Visitor Economy","Art Gallery Tea Room","R4102"
"Wolverhampton City Council","http://opendatacommunities.org/id/metropolitan-district-council/wolverhampton","Af Blakemore/Blakemore Foodservice","4768721","19.29","Equipment - Purchase","130126477","06/07/16","Community Recreation","Blakenhall Community & Healthy Living Centre","R4000"
"Wolverhampton City Council","http://opendatacommunities.org/id/metropolitan-district-council/wolverhampton","Af Blakemore/Blakemore Foodservice","5031303","283.44","Provisions (Resale)","130127079","06/07/16","Visitor Economy","Bantock - Tea Rooms","R4102"
"Wolverhampton City Council","http://opendatacommunities.org/id/metropolitan-district-council/wolverhampton","Af Blakemore/Blakemore Foodservice","5031303","-283.44","Provisions (Resale)","130127079","06/07/16","Visitor Economy","Bantock - Tea Rooms","R4102"
"Wolverhampton City Council","http://opendatacommunities.org/id/metropolitan-district-council/wolverhampton","Af Blakemore/Blakemore Foodservice","5031303","108.05","Provisions (Resale)","130127079","06/07/16","Visitor Economy","Bantock - Tea Rooms","R4102"
"Wolverhampton City Council","http://opendatacommunities.org/id/metropolitan-district-council/wolverhampton","Af Blakemore/Blakemore Foodservice","5031303","175.39","Provisions (Resale)","130127079","06/07/16","Visitor Economy","Bantock - Tea Rooms","R4102"
"Wolverhampton City Council","http://opendatacommunities.org/id/metropolitan-district-council/wolverhampton","Af Blakemore/Blakemore Foodservice","5037503","174.98","Provisions (Resale)","130127081","06/07/16","Visitor Economy","Bantock - Tea Rooms","R4102"
"Wolverhampton City Council","http://opendatacommunities.org/id/metropolitan-district-council/wolverhampton","Af Blakemore/Blakemore Foodservice","5037503","-174.98","Provisions (Resale)","130127081","06/07/16","Visitor Economy","Bantock - Tea Rooms","R4102"
"Wolverhampton City Council","http://opendatacommunities.org/id/metropolitan-district-council/wolverhampton","Af Blakemore/Blakemore Foodservice","5037503","90.89","Provisions (Resale)","130127081","06/07/16","Visitor Economy","Bantock - Tea Rooms","R4102"
"Wolverhampton City Council","http://opendatacommunities.org/id/metropolitan-district-council/wolverhampton","Af Blakemore/Blakemore Foodservice","5037503","84.09","Provisions (Resale)","130127081","06/07/16","Visitor Economy","Bantock - Tea Rooms","R4102"
"Wolverhampton City Council","http://opendatacommunities.org/id/metropolitan-district-council/wolverhampton","Af Blakemore/Blakemore Foodservice","5029378","22.26","Provisions (Resale)","130127071","06/07/16","Older People Provider Services","Bradley Lodge Resource Centre","R4102"
"Wolverhampton City Council","http://opendatacommunities.org/id/metropolitan-district-council/wolverhampton","Af Blakemore/Blakemore Foodservice","5029378","-22.26","Provisions (Resale)","130127071","06/07/16","Older People Provider Services","Bradley Lodge Resource Centre","R4102"
"Wolverhampton City Council","http://opendatacommunities.org/id/metropolitan-district-council/wolverhampton","Af Blakemore/Blakemore Foodservice","5029378","7","Provisions (Resale)","130127071","06/07/16","Older People Provider Services","Bradley Lodge Resource Centre","R4102"
"Wolverhampton City Council","http://opendatacommunities.org/id/metropolitan-district-council/wolverhampton","Af Blakemore/Blakemore Foodservice","5029378","15.26","Provisions (Resale)","130127071","06/07/16","Older People Provider Services","Bradley Lodge Resource Centre","R4102"
"Wolverhampton City Council","http://opendatacommunities.org/id/metropolitan-district-council/wolverhampton","Af Blakemore/Blakemore Foodservice","5029389","148.7","Provisions (Resale)","130127072","06/07/16","Older People Provider Services","Bradley Lodge Resource Centre","R4102"
"Wolverhampton City Council","http://opendatacommunities.org/id/metropolitan-district-council/wolverhampton","Af Blakemore/Blakemore Foodservice","5029389","-148.7","Provisions (Resale)","130127072","06/07/16","Older People Provider Services","Bradley Lodge Resource Centre","R4102"
"Wolverhampton City Council","http://opendatacommunities.org/id/metropolitan-district-council/wolverhampton","Af Blakemore/Blakemore Foodservice","5029389","20.93","Provisions (Resale)","130127072","06/07/16","Older People Provider Services","Bradley Lodge Resource Centre","R4102"
"Wolverhampton City Council","http://opendatacommunities.org/id/metropolitan-district-council/wolverhampton","Af Blakemore/Blakemore Foodservice","5029389","127.77","Provisions (Resale)","130127072","06/07/16","Older People Provider Services","Bradley Lodge Resource Centre","R4102"
"Wolverhampton City Council","http://opendatacommunities.org/id/metropolitan-district-council/wolverhampton","Af Blakemore/Blakemore Foodservice","5038896","210.09","Provisions (Resale)","130127083","06/07/16","Older People Provider Services","Bradley Lodge Resource Centre","R4102"
"Wolverhampton City Council","http://opendatacommunities.org/id/metropolitan-district-council/wolverhampton","Af Blakemore/Blakemore Foodservice","5038896","-210.09","Provisions (Resale)","130127083","06/07/16","Older People Provider Services","Bradley Lodge Resource Centre","R4102"
"Wolverhampton City Council","http://opendatacommunities.org/id/metropolitan-district-council/wolverhampton","Af Blakemore/Blakemore Foodservice","5030285","34","Provisions (Resale)","130127074","06/07/16","Older People Provider Services","Bradley Lodge Resource Centre","R4102"
"Wolverhampton City Council","http://opendatacommunities.org/id/metropolitan-district-council/wolverhampton","Af Blakemore/Blakemore Foodservice","5038896","37.51","Provisions (Resale)","130127083","06/07/16","Older People Provider Services","Bradley Lodge Resource Centre","R4102"
"Wolverhampton City Council","http://opendatacommunities.org/id/metropolitan-district-council/wolverhampton","Af Blakemore/Blakemore Foodservice","5038896","172.58","Provisions (Resale)","130127083","06/07/16","Older People Provider Services","Bradley Lodge Resource Centre","R4102"
"Wolverhampton City Council","http://opendatacommunities.org/id/metropolitan-district-council/wolverhampton","Af Blakemore/Blakemore Foodservice","5038929","5.24","Provisions (Resale)","130127084","06/07/16","Older People Provider Services","Bradley Lodge Resource Centre","R4102"
"Wolverhampton City Council","http://opendatacommunities.org/id/metropolitan-district-council/wolverhampton","Af Blakemore/Blakemore Foodservice","5038929","-5.24","Provisions (Resale)","130127084","06/07/16","Older People Provider Services","Bradley Lodge Resource Centre","R4102"
"Wolverhampton City Council","http://opendatacommunities.org/id/metropolitan-district-council/wolverhampton","Af Blakemore/Blakemore Foodservice","5038929","3.5","Provisions (Resale)","130127084","06/07/16","Older People Provider Services","Bradley Lodge Resource Centre","R4102"
"Wolverhampton City Council","http://opendatacommunities.org/id/metropolitan-district-council/wolverhampton","Af Blakemore/Blakemore Foodservice","5038929","1.74","Provisions (Resale)","130127084","06/07/16","Older People Provider Services","Bradley Lodge Resource Centre","R4102"
"Wolverhampton City Council","http://opendatacommunities.org/id/metropolitan-district-council/wolverhampton","Af Blakemore/Blakemore Foodservice","5040074","7.49","Provisions (Resale)","130127087","06/07/16","Older People Provider Services","Bradley Lodge Resource Centre","R4102"
"Wolverhampton City Council","http://opendatacommunities.org/id/metropolitan-district-council/wolverhampton","Af Blakemore/Blakemore Foodservice","4782668","145.97","Provisions (Not for resale)","130126688","06/07/16","Learning Disability Provider","Duke Street Bungalows","R4101"
"Wolverhampton City Council","http://opendatacommunities.org/id/metropolitan-district-council/wolverhampton","Af Blakemore/Blakemore Foodservice","4782668","-145.97","Provisions (Not for resale)","130126688","06/07/16","Learning Disability Provider","Duke Street Bungalows","R4101"
"Wolverhampton City Council","http://opendatacommunities.org/id/metropolitan-district-council/wolverhampton","Af Blakemore/Blakemore Foodservice","4782668","144.22","Provisions (Not for resale)","130126688","06/07/16","Learning Disability Provider","Duke Street Bungalows","R4101"
"Wolverhampton City Council","http://opendatacommunities.org/id/metropolitan-district-council/wolverhampton","Af Blakemore/Blakemore Foodservice","4782668","1.75","Provisions (Not for resale)","130126688","06/07/16","Learning Disability Provider","Duke Street Bungalows","R4101"
"Wolverhampton City Council","http://opendatacommunities.org/id/metropolitan-district-council/wolverhampton","Af Blakemore/Blakemore Foodservice","4943054","106.24","Provisions (Not for resale)","130127014","06/07/16","Learning Disability Provider","Duke Street Bungalows","R4101"
"Wolverhampton City Council","http://opendatacommunities.org/id/metropolitan-district-council/wolverhampton","Af Blakemore/Blakemore Foodservice","4943054","-106.24","Provisions (Not for resale)","130127014","06/07/16","Learning Disability Provider","Duke Street Bungalows","R4101"
"Wolverhampton City Council","http://opendatacommunities.org/id/metropolitan-district-council/wolverhampton","Af Blakemore/Blakemore Foodservice","4943054","66.07","Provisions (Not for resale)","130127014","06/07/16","Learning Disability Provider","Duke Street Bungalows","R4101"
"Wolverhampton City Council","http://opendatacommunities.org/id/metropolitan-district-council/wolverhampton","Af Blakemore/Blakemore Foodservice","4782606","189.56","Provisions (Not for resale)","130126686","06/07/16","Learning Disability Provider","Duke Street Bungalows","R4101"
"Wolverhampton City Council","http://opendatacommunities.org/id/metropolitan-district-council/wolverhampton","Af Blakemore/Blakemore Foodservice","4934839","81.9","Provisions (Not for resale)","130126768","06/07/16","Learning Disability Provider","Duke Street Bungalows","R4101"
"Wolverhampton City Council","http://opendatacommunities.org/id/metropolitan-district-council/wolverhampton","Af Blakemore/Blakemore Foodservice","4846979","112.39","Provisions (Not for resale)","130126711","06/07/16","Learning Disability Provider","Duke Street Bungalows","R4101"
"Wolverhampton City Council","http://opendatacommunities.org/id/metropolitan-district-council/wolverhampton","Af Blakemore/Blakemore Foodservice","4846979","-112.39","Provisions (Not for resale)","130126711","06/07/16","Learning Disability Provider","Duke Street Bungalows","R4101"
"Wolverhampton City Council","http://opendatacommunities.org/id/metropolitan-district-council/wolverhampton","Af Blakemore/Blakemore Foodservice","4846979","100.4","Provisions (Not for resale)","130126711","06/07/16","Learning Disability Provider","Duke Street Bungalows","R4101"
"Wolverhampton City Council","http://opendatacommunities.org/id/metropolitan-district-council/wolverhampton","Af Blakemore/Blakemore Foodservice","4846979","11.99","Provisions (Not for resale)","130126711","06/07/16","Learning Disability Provider","Duke Street Bungalows","R4101"
"Wolverhampton City Council","http://opendatacommunities.org/id/metropolitan-district-council/wolverhampton","Af Blakemore/Blakemore Foodservice","4794135","127.38","Provisions (Not for resale)","130126692","06/07/16","Learning Disability Provider","Duke Street Bungalows","R4101"
"Wolverhampton City Council","http://opendatacommunities.org/id/metropolitan-district-council/wolverhampton","Af Blakemore/Blakemore Foodservice","4794135","-127.38","Provisions (Not for resale)","130126692","06/07/16","Learning Disability Provider","Duke Street Bungalows","R4101"
"Wolverhampton City Council","http://opendatacommunities.org/id/metropolitan-district-council/wolverhampton","Af Blakemore/Blakemore Foodservice","4794135","7.58","Provisions (Not for resale)","130126692","06/07/16","Learning Disability Provider","Duke Street Bungalows","R4101"
"Wolverhampton City Council","http://opendatacommunities.org/id/metropolitan-district-council/wolverhampton","Af Blakemore/Blakemore Foodservice","4794135","119.8","Provisions (Not for resale)","130126692","06/07/16","Learning Disability Provider","Duke Street Bungalows","R4101"
"Wolverhampton City Council","http://opendatacommunities.org/id/metropolitan-district-council/wolverhampton","Af Blakemore/Blakemore Foodservice","4839015","232.14","Provisions (Not for resale)","130126710","06/07/16","Learning Disability Provider","Duke Street Bungalows","R4101"
"Wolverhampton City Council","http://opendatacommunities.org/id/metropolitan-district-council/wolverhampton","Af Blakemore/Blakemore Foodservice","5031045","140.65","Provisions (Not for resale)","130127078","06/07/16","Learning Disability Provider","Duke Street Bungalows","R4101"
"Wolverhampton City Council","http://opendatacommunities.org/id/metropolitan-district-council/wolverhampton","Af Blakemore/Blakemore Foodservice","5030416","123.2","Provisions (Not for resale)","130127075","06/07/16","Learning Disability Provider","Duke Street Bungalows","R4101"
"Wolverhampton City Council","http://opendatacommunities.org/id/metropolitan-district-council/wolverhampton","Af Blakemore/Blakemore Foodservice","5039759","256.63","Provisions (Not for resale)","130127085","06/07/16","Learning Disability Provider","Duke Street Bungalows","R4101"
"Wolverhampton City Council","http://opendatacommunities.org/id/metropolitan-district-council/wolverhampton","Af Blakemore/Blakemore Foodservice","4943054","40.17","Provisions (Not for resale)","130127014","06/07/16","Learning Disability Provider","Duke Street Bungalows","R4101"
"Wolverhampton City Council","http://opendatacommunities.org/id/metropolitan-district-council/wolverhampton","Af Blakemore/Blakemore Foodservice","5009103","365.96","Provisions (Not for resale)","130127055","06/07/16","Learning Disability Provider","Duke Street Bungalows","R4101"
"Wolverhampton City Council","http://opendatacommunities.org/id/metropolitan-district-council/wolverhampton","Af Blakemore/Blakemore Foodservice","5009103","-365.96","Provisions (Not for resale)","130127055","06/07/16","Learning Disability Provider","Duke Street Bungalows","R4101"
"Wolverhampton City Council","http://opendatacommunities.org/id/metropolitan-district-council/wolverhampton","Af Blakemore/Blakemore Foodservice","5009103","322.73","Provisions (Not for resale)","130127055","06/07/16","Learning Disability Provider","Duke Street Bungalows","R4101"
"Wolverhampton City Council","http://opendatacommunities.org/id/metropolitan-district-council/wolverhampton","Af Blakemore/Blakemore Foodservice","5009103","43.23","Provisions (Not for resale)","130127055","06/07/16","Learning Disability Provider","Duke Street Bungalows","R4101"
"Wolverhampton City Council","http://opendatacommunities.org/id/metropolitan-district-council/wolverhampton","Af Blakemore/Blakemore Foodservice","5030546","361","Provisions (Not for resale)","130127077","06/07/16","Learning Disability Provider","Duke Street Bungalows","R4101"
"Wolverhampton City Council","http://opendatacommunities.org/id/metropolitan-district-council/wolverhampton","Af Blakemore/Blakemore Foodservice","5030546","-361","Provisions (Not for resale)","130127077","06/07/16","Learning Disability Provider","Duke Street Bungalows","R4101"
"Wolverhampton City Council","http://opendatacommunities.org/id/metropolitan-district-council/wolverhampton","Af Blakemore/Blakemore Foodservice","5030546","326.74","Provisions (Not for resale)","130127077","06/07/16","Learning Disability Provider","Duke Street Bungalows","R4101"
"Wolverhampton City Council","http://opendatacommunities.org/id/metropolitan-district-council/wolverhampton","Af Blakemore/Blakemore Foodservice","5030546","34.26","Provisions (Not for resale)","130127077","06/07/16","Learning Disability Provider","Duke Street Bungalows","R4101"
"Wolverhampton City Council","http://opendatacommunities.org/id/metropolitan-district-council/wolverhampton","Af Blakemore/Blakemore Foodservice","4961509","88.44","Provisions (Not for resale)","130127026","06/07/16","Learning Disability Provider","Duke Street Bungalows","R4101"
"Wolverhampton City Council","http://opendatacommunities.org/id/metropolitan-district-council/wolverhampton","Af Blakemore/Blakemore Foodservice","4983720","79.64","Provisions (Not for resale)","130127044","06/07/16","Learning Disability Provider","Duke Street Bungalows","R4101"
"Wolverhampton City Council","http://opendatacommunities.org/id/metropolitan-district-council/wolverhampton","Af Blakemore/Blakemore Foodservice","5039900","154.15","Provisions (Not for resale)","130127086","06/07/16","Learning Disability Provider","Duke Street Bungalows","R4101"
"Wolverhampton City Council","http://opendatacommunities.org/id/metropolitan-district-council/wolverhampton","Af Blakemore/Blakemore Foodservice","5039759","-256.63","Provisions (Not for resale)","130127085","06/07/16","Learning Disability Provider","Duke Street Bungalows","R4101"
"Wolverhampton City Council","http://opendatacommunities.org/id/metropolitan-district-council/wolverhampton","Af Blakemore/Blakemore Foodservice","5039759","222.96","Provisions (Not for resale)","130127085","06/07/16","Learning Disability Provider","Duke Street Bungalows","R4101"
"Wolverhampton City Council","http://opendatacommunities.org/id/metropolitan-district-council/wolverhampton","Af Blakemore/Blakemore Foodservice","5039759","33.67","Provisions (Not for resale)","130127085","06/07/16","Learning Disability Provider","Duke Street Bungalows","R4101"
"Wolverhampton City Council","http://opendatacommunities.org/id/metropolitan-district-council/wolverhampton","Af Blakemore/Blakemore Foodservice","4879063","216.23","Provisions (Not for resale)","130126724","15/07/16","Learning Disability Provider","Duke Street Bungalows","R4101"
"Wolverhampton City Council","http://opendatacommunities.org/id/metropolitan-district-council/wolverhampton","Af Blakemore/Blakemore Foodservice","4879063","-216.23","Provisions (Not for resale)","130126724","15/07/16","Learning Disability Provider","Duke Street Bungalows","R4101"
"Wolverhampton City Council","http://opendatacommunities.org/id/metropolitan-district-council/wolverhampton","Af Blakemore/Blakemore Foodservice","4879063","175.57","Provisions (Not for resale)","130126724","15/07/16","Learning Disability Provider","Duke Street Bungalows","R4101"
"Wolverhampton City Council","http://opendatacommunities.org/id/metropolitan-district-council/wolverhampton","Af Blakemore/Blakemore Foodservice","4879063","40.66","Provisions (Not for resale)","130126724","15/07/16","Learning Disability Provider","Duke Street Bungalows","R4101"
"Wolverhampton City Council","http://opendatacommunities.org/id/metropolitan-district-council/wolverhampton","Af Blakemore/Blakemore Foodservice","4295357","348.52","Provisions (Not for resale)","130123760","15/07/16","Learning Disability Provider","Duke Street Bungalows","R4101"
"Wolverhampton City Council","http://opendatacommunities.org/id/metropolitan-district-council/wolverhampton","Af Blakemore/Blakemore Foodservice","4295357","-348.52","Provisions (Not for resale)","130123760","15/07/16","Learning Disability Provider","Duke Street Bungalows","R4101"
"Wolverhampton City Council","http://opendatacommunities.org/id/metropolitan-district-council/wolverhampton","Af Blakemore/Blakemore Foodservice","4295357","343.27","Provisions (Not for resale)","130123760","15/07/16","Learning Disability Provider","Duke Street Bungalows","R4101"
"Wolverhampton City Council","http://opendatacommunities.org/id/metropolitan-district-council/wolverhampton","Af Blakemore/Blakemore Foodservice","4295357","5.25","Provisions (Not for resale)","130123760","15/07/16","Learning Disability Provider","Duke Street Bungalows","R4101"
"Wolverhampton City Council","http://opendatacommunities.org/id/metropolitan-district-council/wolverhampton","Af Blakemore/Blakemore Foodservice","4252315","348.52","Provisions (Not for resale)","130123759","15/07/16","Learning Disability Provider","Duke Street Bungalows","R4101"
"Wolverhampton City Council","http://opendatacommunities.org/id/metropolitan-district-council/wolverhampton","Af Blakemore/Blakemore Foodservice","4252315","-348.52","Provisions (Not for resale)","130123759","15/07/16","Learning Disability Provider","Duke Street Bungalows","R4101"
"Wolverhampton City Council","http://opendatacommunities.org/id/metropolitan-district-council/wolverhampton","Af Blakemore/Blakemore Foodservice","4252315","343.27","Provisions (Not for resale)","130123759","15/07/16","Learning Disability Provider","Duke Street Bungalows","R4101"
"Wolverhampton City Council","http://opendatacommunities.org/id/metropolitan-district-council/wolverhampton","Af Blakemore/Blakemore Foodservice","4252315","5.25","Provisions (Not for resale)","130123759","15/07/16","Learning Disability Provider","Duke Street Bungalows","R4101"
"Wolverhampton City Council","http://opendatacommunities.org/id/metropolitan-district-council/wolverhampton","Af Blakemore/Blakemore Foodservice","4209452","184.95","Provisions (Not for resale)","130123758","15/07/16","Learning Disability Provider","Duke Street Bungalows","R4101"
"Wolverhampton City Council","http://opendatacommunities.org/id/metropolitan-district-council/wolverhampton","Af Blakemore/Blakemore Foodservice","5032018","268.61","Provisions (Not for resale)","130120990","15/07/16","Older People Provider Services","Blakenhall Resource Centre","R4101"
"Wolverhampton City Council","http://opendatacommunities.org/id/metropolitan-district-council/wolverhampton","Af Blakemore/Blakemore Foodservice","5032018","-268.61","Provisions (Not for resale)","130120990","15/07/16","Older People Provider Services","Blakenhall Resource Centre","R4101"
"Wolverhampton City Council","http://opendatacommunities.org/id/metropolitan-district-council/wolverhampton","Af Blakemore/Blakemore Foodservice","5032018","229.67","Provisions (Not for resale)","130120990","15/07/16","Older People Provider Services","Blakenhall Resource Centre","R4101"
"Wolverhampton City Council","http://opendatacommunities.org/id/metropolitan-district-council/wolverhampton","Af Blakemore/Blakemore Foodservice","5032018","38.94","Provisions (Not for resale)","130120990","15/07/16","Older People Provider Services","Blakenhall Resource Centre","R4101"
"Wolverhampton City Council","http://opendatacommunities.org/id/metropolitan-district-council/wolverhampton","Af Blakemore/Blakemore Foodservice","5084472","415.07","Provisions (Not for resale)","130126772","15/07/16","Older People Provider Services","Blakenhall Resource Centre","R4101"
"Wolverhampton City Council","http://opendatacommunities.org/id/metropolitan-district-council/wolverhampton","Af Blakemore/Blakemore Foodservice","5084472","-415.07","Provisions (Not for resale)","130126772","15/07/16","Older People Provider Services","Blakenhall Resource Centre","R4101"
"Wolverhampton City Council","http://opendatacommunities.org/id/metropolitan-district-council/wolverhampton","Af Blakemore/Blakemore Foodservice","5084472","363.88","Provisions (Not for resale)","130126772","15/07/16","Older People Provider Services","Blakenhall Resource Centre","R4101"
"Wolverhampton City Council","http://opendatacommunities.org/id/metropolitan-district-council/wolverhampton","Af Blakemore/Blakemore Foodservice","5084472","51.19","Provisions (Not for resale)","130126772","15/07/16","Older People Provider Services","Blakenhall Resource Centre","R4101"
"Wolverhampton City Council","http://opendatacommunities.org/id/metropolitan-district-council/wolverhampton","Af Blakemore/Blakemore Foodservice","5024235","90.12","Provisions (Not for resale)","130127068","15/07/16","Older People Provider Services","Blakenhall Resource Centre","R4101"
"Wolverhampton City Council","http://opendatacommunities.org/id/metropolitan-district-council/wolverhampton","Af Blakemore/Blakemore Foodservice","5024235","-90.12","Provisions (Not for resale)","130127068","15/07/16","Older People Provider Services","Blakenhall Resource Centre","R4101"
"Wolverhampton City Council","http://opendatacommunities.org/id/metropolitan-district-council/wolverhampton","Af Blakemore/Blakemore Foodservice","5024235","5.25","Provisions (Not for resale)","130127068","15/07/16","Older People Provider Services","Blakenhall Resource Centre","R4101"
"Wolverhampton City Council","http://opendatacommunities.org/id/metropolitan-district-council/wolverhampton","Af Blakemore/Blakemore Foodservice","5024235","84.87","Provisions (Not for resale)","130127068","15/07/16","Older People Provider Services","Blakenhall Resource Centre","R4101"
"Wolverhampton City Council","http://opendatacommunities.org/id/metropolitan-district-council/wolverhampton","Af Blakemore/Blakemore Foodservice","5028608","32.9","Provisions (Not for resale)","130127070","15/07/16","Older People Provider Services","Blakenhall Resource Centre","R4101"
"Wolverhampton City Council","http://opendatacommunities.org/id/metropolitan-district-council/wolverhampton","T Bailey","22","990","TPP - Maintenance Contractor - General","190248655","08/07/16","Parking Services","Cycling Schemes - Bikeability","R5720"
"Wolverhampton City Council","http://opendatacommunities.org/id/metropolitan-district-council/wolverhampton","Aidapt Bathrooms Limited","250698","1,194.00","Equipment - Purchase","130130544","27/07/16","Independent Living Service","Independent Living Service","R4000"
"Wolverhampton City Council","http://opendatacommunities.org/id/metropolitan-district-council/wolverhampton","Aidapt Bathrooms Limited","250695","49.5","Equipment - Purchase","130130543","27/07/16","Independent Living Service","Independent Living Service","R4000"
"Wolverhampton City Council","http://opendatacommunities.org/id/metropolitan-district-council/wolverhampton","Aidapt Bathrooms Limited","249416","99","Equipment - Purchase","130129232","15/07/16","Independent Living Service","Independent Living Service","R4000"
"Wolverhampton City Council","http://opendatacommunities.org/id/metropolitan-district-council/wolverhampton","Aidservice Limited","90823","182","Equipment - Purchase","130128718","20/07/16","Independent Living Service","Independent Living Service","R4000"
"Wolverhampton City Council","http://opendatacommunities.org/id/metropolitan-district-council/wolverhampton","Aidservice Limited","90874","191","Equipment - Purchase","130129733","29/07/16","Independent Living Service","Independent Living Service","R4000"
"Wolverhampton City Council","http://opendatacommunities.org/id/metropolitan-district-council/wolverhampton","Aidservice Limited","90741","338","Equipment - Purchase","130127328","15/07/16","Independent Living Service","Independent Living Service","R4000"
"Wolverhampton City Council","http://opendatacommunities.org/id/metropolitan-district-council/wolverhampton","Airport Express West Midlands Limited","1367","1,520.00","Client Transport","130129215","20/07/16","School Planning & Resources","Special - Transport","R3042"
"Wolverhampton City Council","http://opendatacommunities.org/id/metropolitan-district-council/wolverhampton","Airport Express West Midlands Limited","1368","1,265.00","Client Transport","130129216","20/07/16","School Planning & Resources","Secondary- Transport","R3042"
"Wolverhampton City Council","http://opendatacommunities.org/id/metropolitan-district-council/wolverhampton","Airport Express West Midlands Limited","1363","875","Client Transport","130128245","08/07/16","School Planning & Resources","Special - Transport","R3042"
"Wolverhampton City Council","http://opendatacommunities.org/id/metropolitan-district-council/wolverhampton","Airport-Link","BDW028","1,805.00","Client Transport","130128978","13/07/16","Schools","Pupil Referral Units ISB","R3042"
"Wolverhampton City Council","http://opendatacommunities.org/id/metropolitan-district-council/wolverhampton","Airport-Link","BDW027","1,864.28","Client Transport","130128977","15/07/16","Schools","Pupil Referral Units ISB","R3042"
"Wolverhampton City Council","http://opendatacommunities.org/id/metropolitan-district-council/wolverhampton","Airport-Link","BDW025","1,805.00","Client Transport","130127529","06/07/16","Schools","Pupil Referral Units ISB","R3042"
"Wolverhampton City Council","http://opendatacommunities.org/id/metropolitan-district-council/wolverhampton","Airport-Link","BDW024","1,880.12","Client Transport","130127528","06/07/16","Schools","Pupil Referral Units ISB","R3042"
"Wolverhampton City Council","http://opendatacommunities.org/id/metropolitan-district-council/wolverhampton","Albrighton Feeds Limited","32236","329.3","Provisions (Not for resale)","130130943","29/07/16","Environmental Maintenance","Pendeford Nature Reserve","R4101"
"Wolverhampton City Council","http://opendatacommunities.org/id/metropolitan-district-council/wolverhampton","Albrighton Feeds Limited","32236","5","Materials","130130943","29/07/16","Environmental Maintenance","Pendeford Nature Reserve","R4007"
"Wolverhampton City Council","http://opendatacommunities.org/id/metropolitan-district-council/wolverhampton","Aldersley Church Early Learning Committee","EYPP Sum 2016","667.8","TPP - Private Nursery Education Funding","190255274","29/07/16","Early Years","Early Years Non Maintained Schools","R5035"
"Wolverhampton City Council","http://opendatacommunities.org/id/metropolitan-district-council/wolverhampton","Aldersley Church Early Learning Committee","NEF Sum 16 Inst 2","4,250.58","TPP - Private Nursery Education Funding","190251368","20/07/16","Early Years","Early Years Non Maintained Schools","R5035"
"Wolverhampton City Council","http://opendatacommunities.org/id/metropolitan-district-council/wolverhampton","Aldersley Church Early Learning Committee","T42 Sum 16 Inst 2","1,778.98","Grant Payments","190251370","20/07/16","Early Years","2 Year Olds Pilot - Early Learning & Childcare","R4700"
"Wolverhampton City Council","http://opendatacommunities.org/id/metropolitan-district-council/wolverhampton","Aldersley High Sch/Aldersley Acad Tr","SEN Top Ups for RB Aldersley Summer Term 2016","12,360.76","Grant Payments","190252691","22/07/16","Schools","High Needs Top Up -Mainstream Schools/Academies","R4700"
"Wolverhampton City Council","http://opendatacommunities.org/id/metropolitan-district-council/wolverhampton","Alexander Dennis Limited","837668","10.34","Equipment - Purchase","190250224","13/07/16","Fleet Services","Fleet Management","R4000"
"Wolverhampton City Council","http://opendatacommunities.org/id/metropolitan-district-council/wolverhampton","Alexander Dennis Limited","837667","9.72","Equipment - Purchase","190250223","13/07/16","Fleet Services","Fleet Management","R4000"
"Wolverhampton City Council","http://opendatacommunities.org/id/metropolitan-district-council/wolverhampton","Alexander Dennis Limited","837667","26.75","Equipment - Purchase","190250223","13/07/16","Fleet Services","Fleet Management","R4000"
"Wolverhampton City Council","http://opendatacommunities.org/id/metropolitan-district-council/wolverhampton","Alexander Dennis Limited","836379","38.8","Equipment - Purchase","190250222","13/07/16","Fleet Services","Fleet Management","R4000"
"Wolverhampton City Council","http://opendatacommunities.org/id/metropolitan-district-council/wolverhampton","Alexander Dennis Limited","836379","46.97","Equipment - Purchase","190250222","13/07/16","Fleet Services","Fleet Management","R4000"
"Wolverhampton City Council","http://opendatacommunities.org/id/metropolitan-district-council/wolverhampton","Alexander Dennis Limited","837669","200.96","Equipment - Purchase","190250225","13/07/16","Fleet Services","Fleet Management","R4000"
"Wolverhampton City Council","http://opendatacommunities.org/id/metropolitan-district-council/wolverhampton","Alexander Dennis Limited","837670","36.92","Equipment - Purchase","190250226","13/07/16","Fleet Services","Fleet Management","R4000"
"Wolverhampton City Council","http://opendatacommunities.org/id/metropolitan-district-council/wolverhampton","Alexander Dennis Limited","837670","27.24","Equipment - Purchase","190250226","13/07/16","Fleet Services","Fleet Management","R4000"
"Wolverhampton City Council","http://opendatacommunities.org/id/metropolitan-district-council/wolverhampton","Alexander Dennis Limited","837670","6.3","Equipment - Purchase","190250226","13/07/16","Fleet Services","Fleet Management","R4000"
"Wolverhampton City Council","http://opendatacommunities.org/id/metropolitan-district-council/wolverhampton","Alexander Dennis Limited","837670","74.03","Equipment - Purchase","190250226","13/07/16","Fleet Services","Fleet Management","R4000"
"Wolverhampton City Council","http://opendatacommunities.org/id/metropolitan-district-council/wolverhampton","Alexander Dennis Limited","836378","9.72","Equipment - Purchase","190249699","13/07/16","Fleet Services","Fleet Management","R4000"
"Wolverhampton City Council","http://opendatacommunities.org/id/metropolitan-district-council/wolverhampton","Alexander Dennis Limited","836378","26.75","Equipment - Purchase","190249699","13/07/16","Fleet Services","Fleet Management","R4000"
"Wolverhampton City Council","http://opendatacommunities.org/id/metropolitan-district-council/wolverhampton","Alexander Dennis Limited","823700","18.85","Equipment - Purchase","190249698","13/07/16","Fleet Services","Fleet Management","R4000"
"Wolverhampton City Council","http://opendatacommunities.org/id/metropolitan-district-council/wolverhampton","Alexander Dennis Limited","837669","191.3","Equipment - Purchase","190250225","13/07/16","Fleet Services","Fleet Management","R4000"
"Wolverhampton City Council","http://opendatacommunities.org/id/metropolitan-district-council/wolverhampton","Alexander Dennis Limited","837669","46.97","Equipment - Purchase","190250225","13/07/16","Fleet Services","Fleet Management","R4000"
"Wolverhampton City Council","http://opendatacommunities.org/id/metropolitan-district-council/wolverhampton","Alexander Dennis Limited","837669","38.8","Equipment - Purchase","190250225","13/07/16","Fleet Services","Fleet Management","R4000"
"Wolverhampton City Council","http://opendatacommunities.org/id/metropolitan-district-council/wolverhampton","Alexander Dennis Limited","837669","58.14","Equipment - Purchase","190250225","13/07/16","Fleet Services","Fleet Management","R4000"
"Wolverhampton City Council","http://opendatacommunities.org/id/metropolitan-district-council/wolverhampton","Alexander Dennis Limited","837669","14.6","Equipment - Purchase","190250225","13/07/16","Fleet Services","Fleet Management","R4000"
"Wolverhampton City Council","http://opendatacommunities.org/id/metropolitan-district-council/wolverhampton","Alexander Dennis Limited","836379","8.5","Equipment - Purchase","190250222","13/07/16","Fleet Services","Fleet Management","R4000"
"Wolverhampton City Council","http://opendatacommunities.org/id/metropolitan-district-council/wolverhampton","Alexander Dennis Limited","836379","14.6","Equipment - Purchase","190250222","13/07/16","Fleet Services","Fleet Management","R4000"
"Wolverhampton City Council","http://opendatacommunities.org/id/metropolitan-district-council/wolverhampton","Alexander Dennis Limited","836379","58.14","Equipment - Purchase","190250222","13/07/16","Fleet Services","Fleet Management","R4000"
"Wolverhampton City Council","http://opendatacommunities.org/id/metropolitan-district-council/wolverhampton","Alexander Dennis Limited","836379","200.96","Equipment - Purchase","190250222","13/07/16","Fleet Services","Fleet Management","R4000"
"Wolverhampton City Council","http://opendatacommunities.org/id/metropolitan-district-council/wolverhampton","Alexander Dennis Limited","837668","5.33","Equipment - Purchase","190250224","13/07/16","Fleet Services","Fleet Management","R4000"
"Wolverhampton City Council","http://opendatacommunities.org/id/metropolitan-district-council/wolverhampton","Alexander Dennis Limited","836380","27.24","Equipment - Purchase","190247885","06/07/16","Fleet Services","Fleet Management","R4000"
"Wolverhampton City Council","http://opendatacommunities.org/id/metropolitan-district-council/wolverhampton","Alexander Dennis Limited","836380","36.92","Equipment - Purchase","190247885","06/07/16","Fleet Services","Fleet Management","R4000"
"Wolverhampton City Council","http://opendatacommunities.org/id/metropolitan-district-council/wolverhampton","Alexander Dennis Limited","836380","74.03","Equipment - Purchase","190247885","06/07/16","Fleet Services","Fleet Management","R4000"
"Wolverhampton City Council","http://opendatacommunities.org/id/metropolitan-district-council/wolverhampton","Alexander Dennis Limited","836380","6.3","Equipment - Purchase","190247885","06/07/16","Fleet Services","Fleet Management","R4000"
"Wolverhampton City Council","http://opendatacommunities.org/id/metropolitan-district-council/wolverhampton","Alice Whyley Creative Wonderland","HS4.0","275","Services - Professional Fees","130125315","01/07/16","Mental Health Commissioning","Head Start Wolverhampton","R4400"
"Wolverhampton City Council","http://opendatacommunities.org/id/metropolitan-district-council/wolverhampton","Alice Whyley Creative Wonderland","HS4.0: Headstart Wolverhampton","275","Services - Professional Fees","130125116","06/07/16","Mental Health Commissioning","Head Start Wolverhampton","R4400"
"Wolverhampton City Council","http://opendatacommunities.org/id/metropolitan-district-council/wolverhampton","All Saints Action Network Limited","101772","10","Services - Fees and Charges","130126942","01/07/16","Early Intervention","EIP Locality 3","R4401"
"Wolverhampton City Council","http://opendatacommunities.org/id/metropolitan-district-council/wolverhampton","All Saints Action Network Limited","102818","205","Training Expenses","130128010","27/07/16","Skills","Connexions Contract","R1650"
"Wolverhampton City Council","http://opendatacommunities.org/id/metropolitan-district-council/wolverhampton","All Saints Action Network Limited","T42 Sum 16 Inst 2","135","Grant Payments","190251370","20/07/16","Early Years","2 Year Olds Pilot - Early Learning & Childcare","R4700"
"Wolverhampton City Council","http://opendatacommunities.org/id/metropolitan-district-council/wolverhampton","All Saints Action Network Limited","NEF Sum 16 Inst 2","22,761.21","TPP - Private Nursery Education Funding","190251368","20/07/16","Early Years","Early Years Non Maintained Schools","R5035"
"Wolverhampton City Council","http://opendatacommunities.org/id/metropolitan-district-council/wolverhampton","All Saints Action Network Limited","EYPP Sum 2016","2,003.40","TPP - Private Nursery Education Funding","190255274","29/07/16","Early Years","Early Years Non Maintained Schools","R5035"
"Wolverhampton City Council","http://opendatacommunities.org/id/metropolitan-district-council/wolverhampton","All Saints Action Network Limited","TF2 Sum 16 Inst 2","10,800.00","Grant Payments","190254751","27/07/16","Early Years","2 Year Olds Pilot - Early Learning & Childcare","R4700"
"Wolverhampton City Council","http://opendatacommunities.org/id/metropolitan-district-council/wolverhampton","All Saints Action Network Limited","102813","72","Room Hire","130128009","08/07/16","Transformation - Public Health","Transformation","R2201"
"Wolverhampton City Council","http://opendatacommunities.org/id/metropolitan-district-council/wolverhampton","All Saints Action Network Limited","102813","340.5","Catering","130128009","08/07/16","Transformation - Public Health","Transformation","R4100"
"Wolverhampton City Council","http://opendatacommunities.org/id/metropolitan-district-council/wolverhampton","Allsigns International Limited","435631","127.5","Equipment - Purchase","130127283","01/07/16","Catering","Education Catering - General Overheads","R4000"
"Wolverhampton City Council","http://opendatacommunities.org/id/metropolitan-district-council/wolverhampton","Allstar Business Solutions Limited","E2006853959","1,731.44","Petrol","190249707","13/07/16","Fleet Services","Fleet Management","R3000"
"Wolverhampton City Council","http://opendatacommunities.org/id/metropolitan-district-council/wolverhampton","Alphabiolabs","4365","51.67","Services - Professional Fees","130109809","27/07/16","Child Protection","Head of Service - CINCP","R4400"
"Wolverhampton City Council","http://opendatacommunities.org/id/metropolitan-district-council/wolverhampton","Alphatec 2000 Limited","8213","190","Equipment - R & M","130129732","29/07/16","ICTS","Document Centre - General","R4003"
"Wolverhampton City Council","http://opendatacommunities.org/id/metropolitan-district-council/wolverhampton","Andrews Creative Services","AC2016-05/06","450","Services - Professional Fees","130127854","20/07/16","Democratic Services","Mayoral Expenses","R4400"
"Wolverhampton City Council","http://opendatacommunities.org/id/metropolitan-district-council/wolverhampton","Andrews Creative Services","AC2016-05/06","-450","Services - Professional Fees","130127854","20/07/16","Democratic Services","Mayoral Expenses","R4400"
"Wolverhampton City Council","http://opendatacommunities.org/id/metropolitan-district-council/wolverhampton","Andrews Creative Services","AC2016-05/06","450","Services - Professional Fees","130127854","20/07/16","Democratic Services","Mayoral Expenses","R4400"
"Wolverhampton City Council","http://opendatacommunities.org/id/metropolitan-district-council/wolverhampton","Angel Springs Limited","3142623","15.64","Provisions (Not for resale)","130128653","20/07/16","Facilities Management","Victoria Square, Block 11","R4101"
"Wolverhampton City Council","http://opendatacommunities.org/id/metropolitan-district-council/wolverhampton","Angel Springs Limited","3142618","25.92","Provisions (Not for resale)","130128500","20/07/16","Mental Health Assesment & Care Management","46a, Second Avenue, Low Hill","R4101"
"Wolverhampton City Council","http://opendatacommunities.org/id/metropolitan-district-council/wolverhampton","Angel Springs Limited","3142655","15.64","Provisions (Not for resale)","130128507","20/07/16","Facilities Management","Culwell Street Depot","R4101"
"Wolverhampton City Council","http://opendatacommunities.org/id/metropolitan-district-council/wolverhampton","Angel Springs Limited","3142620","16.2","Provisions (Not for resale)","130128501","20/07/16","Customer Services","City Direct 24hr Control Centre","R4101"
"Wolverhampton City Council","http://opendatacommunities.org/id/metropolitan-district-council/wolverhampton","Angel Springs Limited","3142622","32.4","Provisions (Not for resale)","130128503","20/07/16","Fleet Services","Passenger Transport - General","R4101"
"Wolverhampton City Council","http://opendatacommunities.org/id/metropolitan-district-council/wolverhampton","Angel Springs Limited","3142617","10.3","Provisions (Not for resale)","130128499","20/07/16","Parking Services","Shopmobility","R4101"
"Wolverhampton City Council","http://opendatacommunities.org/id/metropolitan-district-council/wolverhampton","Angel Springs Limited","3142615","22.68","Provisions (Not for resale)","130128497","20/07/16","Parking Services","Car Parks Operational Staff","R4101"
"Wolverhampton City Council","http://opendatacommunities.org/id/metropolitan-district-council/wolverhampton","Angel Springs Limited","3142616","6.48","Provisions (Not for resale)","130128498","20/07/16","Parking Services","Parking Enforcement","R4101"
"Wolverhampton City Council","http://opendatacommunities.org/id/metropolitan-district-council/wolverhampton","Angel Springs Limited","3142621","42.77","Provisions (Not for resale)","130128502","20/07/16","Democratic Services","Members Expenses","R4101"
"Wolverhampton City Council","http://opendatacommunities.org/id/metropolitan-district-council/wolverhampton","Angel Springs Limited","3142624","12.96","Provisions (Not for resale)","130129247","20/07/16","School Planning & Resources","Education Data Services","R4101"
"Wolverhampton City Council","http://opendatacommunities.org/id/metropolitan-district-council/wolverhampton","Angel Springs Limited","3142651","69.2","Provisions (Not for resale)","130128506","20/07/16","Highways Maintenance","Patching","R4101"
"Wolverhampton City Council","http://opendatacommunities.org/id/metropolitan-district-council/wolverhampton","Angel Springs Limited","3142626","13.75","Provisions (Not for resale)","130128504","20/07/16","Skills","Connexions Contract","R4101"
"Wolverhampton City Council","http://opendatacommunities.org/id/metropolitan-district-council/wolverhampton","Angel Springs Limited","3142660","192.52","Provisions (Not for resale)","130129248","20/07/16","Fleet Services","Fleet Management","R4101"
"Wolverhampton City Council","http://opendatacommunities.org/id/metropolitan-district-council/wolverhampton","Angel Springs Limited","3142658","31.28","Provisions (Not for resale)","130130784","29/07/16","Early Years","Children�s Village Children Centre","R4101"
"Wolverhampton City Council","http://opendatacommunities.org/id/metropolitan-district-council/wolverhampton","Angel Springs Limited","3068748","15.64","Provisions (Not for resale)","130130782","27/07/16","Facilities Management","Culwell Street Depot","R4101"
"Wolverhampton City Council","http://opendatacommunities.org/id/metropolitan-district-council/wolverhampton","Angel Springs Limited","2995678","15.64","Provisions (Not for resale)","130130778","27/07/16","Facilities Management","Culwell Street Depot","R4101"
"Wolverhampton City Council","http://opendatacommunities.org/id/metropolitan-district-council/wolverhampton","Angel Springs Limited","3032114","15.64","Provisions (Not for resale)","130130780","27/07/16","Facilities Management","Culwell Street Depot","R4101"
"Wolverhampton City Council","http://opendatacommunities.org/id/metropolitan-district-council/wolverhampton","Angel Springs Limited","3105538","93.96","Provisions (Not for resale)","130125784","01/07/16","Operation & Maintenance of Existing Network","Surface Water Management","R4101"
"Wolverhampton City Council","http://opendatacommunities.org/id/metropolitan-district-council/wolverhampton","Angel Springs Limited","3068719","6.48","Provisions (Not for resale)","130125782","01/07/16","Operation & Maintenance of Existing Network","Surface Water Management","R4101"
"Wolverhampton City Council","http://opendatacommunities.org/id/metropolitan-district-council/wolverhampton","Angel Springs Limited","3068713","67.49","Provisions (Not for resale)","130128332","13/07/16","Democratic Services","Members Expenses","R4101"
"Wolverhampton City Council","http://opendatacommunities.org/id/metropolitan-district-council/wolverhampton","Angel Springs Limited","3105535","15.64","Provisions (Not for resale)","130124164","13/07/16","Facilities Management","Victoria Square, Block 11","R4101"
"Wolverhampton City Council","http://opendatacommunities.org/id/metropolitan-district-council/wolverhampton","Angel Springs Limited","3142648","206.25","Provisions (Not for resale)","130128505","22/07/16","Facilities Management","Civic Centre","R4101"
"Wolverhampton City Council","http://opendatacommunities.org/id/metropolitan-district-council/wolverhampton","Angel Springs Limited","3105572","3.24","Provisions (Not for resale)","130129072","15/07/16","Fleet Services","Fleet Management","R4101"
"Wolverhampton City Council","http://opendatacommunities.org/id/metropolitan-district-council/wolverhampton","Angel Springs Limited","3068753","160.12","Provisions (Not for resale)","130129071","15/07/16","Fleet Services","Fleet Management","R4101"
"Wolverhampton City Council","http://opendatacommunities.org/id/metropolitan-district-council/wolverhampton","Angelbell Limited T/A Hulleys Frozen","777265","269.38","Provisions (Resale)","130125292","01/07/16","Visitor Economy","Bantock - Tea Rooms","R4102"
"Wolverhampton City Council","http://opendatacommunities.org/id/metropolitan-district-council/wolverhampton","Angelbell Limited T/A Hulleys Frozen","782703","154.52","Provisions (Resale)","130125293","01/07/16","Visitor Economy","Bantock - Tea Rooms","R4102"
"Wolverhampton City Council","http://opendatacommunities.org/id/metropolitan-district-council/wolverhampton","Angelbell Limited T/A Hulleys Frozen","783553","252.55","Provisions (Resale)","130125294","08/07/16","Visitor Economy","Bantock - Tea Rooms","R4102"
"Wolverhampton City Council","http://opendatacommunities.org/id/metropolitan-district-council/wolverhampton","Anglia Dna Services Limited","40129","93.5","Services - Professional Fees","130114404","06/07/16","Child Protection","Head of Service - CINCP","R4400"
"Wolverhampton City Council","http://opendatacommunities.org/id/metropolitan-district-council/wolverhampton","Anglia Dna Services Limited","40530","560","Services - Professional Fees","130120986","06/07/16","Child Protection","Head of Service - CINCP","R4400"
"Wolverhampton City Council","http://opendatacommunities.org/id/metropolitan-district-council/wolverhampton","Apcoa Parking (UK) Limited","237908","53,060.55","TPP - Traffic Management","130128325","20/07/16","Parking Services","Parking Enforcement","R5050"
"Wolverhampton City Council","http://opendatacommunities.org/id/metropolitan-district-council/wolverhampton","Apetito Limited","9001748010","1,041.96","Provisions (Resale)","130127325","20/07/16","Catering","Meals on Wheels","R4102"
"Wolverhampton City Council","http://opendatacommunities.org/id/metropolitan-district-council/wolverhampton","Apetito Limited","9001753157","21.6","Provisions (Resale)","130128404","20/07/16","Catering","Meals on Wheels","R4102"
"Wolverhampton City Council","http://opendatacommunities.org/id/metropolitan-district-council/wolverhampton","Apetito Limited","9001748009","198.8","Provisions (Resale)","130127324","20/07/16","Catering","Meals on Wheels","R4102"
"Wolverhampton City Council","http://opendatacommunities.org/id/metropolitan-district-council/wolverhampton","Apetito Limited","9001756546","1,055.22","Provisions (Resale)","130128964","29/07/16","Catering","Meals on Wheels","R4102"
"Wolverhampton City Council","http://opendatacommunities.org/id/metropolitan-district-council/wolverhampton","Apetito Limited","9001753159","1,038.92","Provisions (Resale)","130128405","29/07/16","Catering","Meals on Wheels","R4102"
"Wolverhampton City Council","http://opendatacommunities.org/id/metropolitan-district-council/wolverhampton","Apetito Limited","9001727673","1,042.85","Provisions (Resale)","130124235","01/07/16","Catering","Meals on Wheels","R4102"
"Wolverhampton City Council","http://opendatacommunities.org/id/metropolitan-district-council/wolverhampton","Apetito Limited","9001731396","1,168.53","Provisions (Resale)","130124708","01/07/16","Catering","Meals on Wheels","R4102"
"Wolverhampton City Council","http://opendatacommunities.org/id/metropolitan-district-council/wolverhampton","Apetito Limited","9001731395","128.5","Provisions (Resale)","130124707","01/07/16","Catering","Meals on Wheels","R4102"
"Wolverhampton City Council","http://opendatacommunities.org/id/metropolitan-district-council/wolverhampton","Apetito Limited","9001743972","1,176.30","Provisions (Resale)","130126539","15/07/16","Catering","Meals on Wheels","R4102"
"Wolverhampton City Council","http://opendatacommunities.org/id/metropolitan-district-council/wolverhampton","Apetito Limited","9001743971","128.5","Provisions (Resale)","130126538","15/07/16","Catering","Meals on Wheels","R4102"
"Wolverhampton City Council","http://opendatacommunities.org/id/metropolitan-district-council/wolverhampton","Apetito Limited","9001741424","1,229.01","Provisions (Resale)","130126218","15/07/16","Catering","Meals on Wheels","R4102"
"Wolverhampton City Council","http://opendatacommunities.org/id/metropolitan-district-council/wolverhampton","Apetito Limited","9001733929","160.08","Provisions (Resale)","130125106","08/07/16","Catering","Meals on Wheels","R4102"
"Wolverhampton City Council","http://opendatacommunities.org/id/metropolitan-district-council/wolverhampton","Apetito Limited","9001733930","1,032.10","Provisions (Resale)","130125107","08/07/16","Catering","Meals on Wheels","R4102"
"Wolverhampton City Council","http://opendatacommunities.org/id/metropolitan-district-council/wolverhampton","Apetito Limited","9001737781","1,298.90","Provisions (Resale)","130125652","08/07/16","Catering","Meals on Wheels","R4102"
"Wolverhampton City Council","http://opendatacommunities.org/id/metropolitan-district-council/wolverhampton","Apollo Distribution Solutions","52940","170.85","Services - Professional Fees","130130588","27/07/16","Bereavement Services","Coroners","R4400"
"Wolverhampton City Council","http://opendatacommunities.org/id/metropolitan-district-council/wolverhampton","Apollo Distribution Solutions","53022","159.35","Services - Professional Fees","130130589","29/07/16","Bereavement Services","Coroners","R4400"
"Wolverhampton City Council","http://opendatacommunities.org/id/metropolitan-district-council/wolverhampton","Aquajoy Bathlifts Limited","970200","3,135.00","Equipment - Purchase","130124818","01/07/16","Independent Living Service","Independent Living Service","R4000"
"Wolverhampton City Council","http://opendatacommunities.org/id/metropolitan-district-council/wolverhampton","Aquajoy Bathlifts Limited","974586","1,767.00","Equipment - R & M","130126111","15/07/16","Independent Living Service","Independent Living Service","R4003"
"Wolverhampton City Council","http://opendatacommunities.org/id/metropolitan-district-council/wolverhampton","Archive Servs Data&Records Mngt Limited","6272","28.5","Storage","130130714","27/07/16","Early Years","Children�s Village Children Centre","R4910"
"Wolverhampton City Council","http://opendatacommunities.org/id/metropolitan-district-council/wolverhampton","Archive Servs Data&Records Mngt Limited","6300","3,136.81","Storage","130130348","27/07/16","Looked After Children","Head of Service - LAC","R4910"
"Wolverhampton City Council","http://opendatacommunities.org/id/metropolitan-district-council/wolverhampton","Archive Servs Data&Records Mngt Limited","6172","66.06","Storage","130123489","13/07/16","Looked After Children","Head of Service - LAC","R4910"
"Wolverhampton City Council","http://opendatacommunities.org/id/metropolitan-district-council/wolverhampton","Archive Servs Data&Records Mngt Limited","6100","66.06","Storage","130119204","06/07/16","Looked After Children","Head of Service - LAC","R4910"
"Wolverhampton City Council","http://opendatacommunities.org/id/metropolitan-district-council/wolverhampton","Arfican Caribbean Elders Group","EG01","458.9","Grant Payments","130126056","15/07/16","Older People Commissioning","Older People Commissioning","R4700"
"Wolverhampton City Council","http://opendatacommunities.org/id/metropolitan-district-council/wolverhampton","Arnold Clark Finance Limited","HI2036608","147","Hire of Vehicles","190252029","20/07/16","Fleet Services","Fleet Management","R3200"
"Wolverhampton City Council","http://opendatacommunities.org/id/metropolitan-district-council/wolverhampton","Arnold Clark Finance Limited","HI2036609","147","Hire of Vehicles","190252030","20/07/16","Fleet Services","Fleet Management","R3200"
"Wolverhampton City Council","http://opendatacommunities.org/id/metropolitan-district-council/wolverhampton","Arnold Clark Finance Limited","HI2032237","147","Hire of Vehicles","190252023","20/07/16","Fleet Services","Fleet Management","R3200"
"Wolverhampton City Council","http://opendatacommunities.org/id/metropolitan-district-council/wolverhampton","Arnold Clark Finance Limited","HI2032239","147","Hire of Vehicles","190252025","20/07/16","Fleet Services","Fleet Management","R3200"
"Wolverhampton City Council","http://opendatacommunities.org/id/metropolitan-district-council/wolverhampton","Arnold Clark Finance Limited","HI2032238","147","Hire of Vehicles","190252024","20/07/16","Fleet Services","Fleet Management","R3200"
"Wolverhampton City Council","http://opendatacommunities.org/id/metropolitan-district-council/wolverhampton","Arnold Clark Finance Limited","HI2032241","147","Hire of Vehicles","190252026","20/07/16","Fleet Services","Fleet Management","R3200"
"Wolverhampton City Council","http://opendatacommunities.org/id/metropolitan-district-council/wolverhampton","Arnold Clark Finance Limited","HI2036611","117.6","Hire of Vehicles","190252032","20/07/16","Fleet Services","Fleet Management","R3200"
"Wolverhampton City Council","http://opendatacommunities.org/id/metropolitan-district-council/wolverhampton","Arnold Clark Finance Limited","HI2036607","147","Hire of Vehicles","190252028","20/07/16","Fleet Services","Fleet Management","R3200"
"Wolverhampton City Council","http://opendatacommunities.org/id/metropolitan-district-council/wolverhampton","Arnold Clark Finance Limited","HI2035429","147","Hire of Vehicles","190252027","20/07/16","Fleet Services","Fleet Management","R3200"
"Wolverhampton City Council","http://opendatacommunities.org/id/metropolitan-district-council/wolverhampton","Arnold Clark Finance Limited","HI2027395","147","Hire of Vehicles","190248999","13/07/16","Fleet Services","Fleet Management","R3200"
"Wolverhampton City Council","http://opendatacommunities.org/id/metropolitan-district-council/wolverhampton","Arnold Clark Finance Limited","HI2015949","88.2","Hire of Vehicles","190248993","13/07/16","Fleet Services","Fleet Management","R3200"
"Wolverhampton City Council","http://opendatacommunities.org/id/metropolitan-district-council/wolverhampton","Arnold Clark Finance Limited","HI2027396","147","Hire of Vehicles","190249000","13/07/16","Fleet Services","Fleet Management","R3200"
"Wolverhampton City Council","http://opendatacommunities.org/id/metropolitan-district-council/wolverhampton","Arnold Clark Finance Limited","HI2015948","147","Hire of Vehicles","190248992","13/07/16","Fleet Services","Fleet Management","R3200"
"Wolverhampton City Council","http://opendatacommunities.org/id/metropolitan-district-council/wolverhampton","Arnold Clark Finance Limited","HI2018619","58.8","Hire of Vehicles","190248998","13/07/16","Fleet Services","Fleet Management","R3200"
"Wolverhampton City Council","http://opendatacommunities.org/id/metropolitan-district-council/wolverhampton","Arnold Clark Finance Limited","HI2015945","147","Hire of Vehicles","190248989","13/07/16","Fleet Services","Fleet Management","R3200"
"Wolverhampton City Council","http://opendatacommunities.org/id/metropolitan-district-council/wolverhampton","Arnold Clark Finance Limited","HI2015945","147","Hire of Vehicles","190248989","13/07/16","Fleet Services","Fleet Management","R3200"
